Ref No,Fund Type,Dept,Cost Centre Description    ,Description    ,Creditor Name    ,GL Code Net Amount,Payment date        
2,Revenue,CAHD,South - Bed Purchasing and Direct payments,Permanent Nursing, Stanley House,6211.88, 24-Sep-2019
3,Revenue,CAHD,Jointly Funded H&SC Packages,Permanent Nursing, Stanley House,1776.56, 24-Sep-2019
4,Revenue,CAHD,North - bed purchasing and direct  payments,Permanent Nursing, Stanley House,8209.68, 24-Sep-2019
5,Revenue,CAHD,Central - Bed Purchasing and Direct Payments,Permanent Nursing, Stanley House,8582.16, 24-Sep-2019
6,Revenue,CAHD,MH Purchasing - Younger,Permanent Nursing, Stanley House,4738.16, 24-Sep-2019
7,Revenue,CAHD,Jointly Funded H&SC Packages,Permanent Nursing, Stanley House,4522.60, 24-Sep-2019
8,Revenue,CAHD,18-25 Year Olds,Permanent Residential,1 St Georges House,13333.52, 24-Sep-2019
9,Revenue,CAHD,CSC - Asylum Seekers - Unaccompanied,Adults - Family Support,16Pluscare Support Solutions,1837.44, 25-Sep-2019
10,Revenue,CAHD,CSC - Asylum Seekers - Unaccompanied,Adults - Family Support,16Pluscare Support Solutions,5872.33, 06-Sep-2019
11,Revenue,CAHD,CSC - Care Leavers Independent Living,Independent Living,16Pluscare Support Solutions,5872.33, 06-Sep-2019
12,Revenue,CAHD,CSC - Care Leavers Independent Living,Independent Living,16Pluscare Support Solutions,5872.33, 10-Sep-2019
13,Revenue,CAHD,CSC - Care Leavers Independent Living,Independent Living,16Pluscare Support Solutions,5872.33, 10-Sep-2019
14,Revenue,CAHD,North - bed purchasing and direct  payments,Permanent Nursing,1St Floor Lingfield House,2367.00, 24-Sep-2019
15,Revenue,CAHD,North - bed purchasing and direct  payments,Permanent Nursing,1St Floor Lingfield House,13018.50, 24-Sep-2019
16,Revenue,CAHD,Central - Community based support,Day Care / Social Activities,3 Trees Community Support Ltd,390.40, 03-Sep-2019
17,Revenue,CAHD,Central - Community based support,Other Small Contracts,3 Trees Community Support Ltd,5172.28, 03-Sep-2019
18,Revenue,CAHD,Central - Community based support,Supported Living,3 Trees Community Support Ltd,5578.45, 03-Sep-2019
19,Revenue,CAHD,North - Community based support,Day Care / Social Activities,3 Trees Community Support Ltd,527.04, 03-Sep-2019
20,Revenue,CAHD,Central - Community based support,Day Care / Social Activities,3 Trees Community Support Ltd,390.40, 03-Sep-2019
21,Revenue,CAHD,Central - Community based support,Other Small Contracts,3 Trees Community Support Ltd,5165.44, 03-Sep-2019
22,Revenue,CAHD,Central - Community based support,Supported Living,3 Trees Community Support Ltd,5578.45, 03-Sep-2019
23,Revenue,CAHD,Central - Community based support,Day Care / Social Activities,3 Trees Community Support Ltd,390.40, 11-Sep-2019
24,Revenue,CAHD,Central - Community based support,Other Small Contracts,3 Trees Community Support Ltd,5145.92, 11-Sep-2019
25,Revenue,CAHD,Central - Community based support,Supported Living,3 Trees Community Support Ltd,5566.24, 11-Sep-2019
26,Revenue,CAHD,North - Community based support,Day Care / Social Activities,3 Trees Community Support Ltd,673.44, 11-Sep-2019
27,Revenue,CAHD,Central - Community based support,Day Care / Social Activities,3 Trees Community Support Ltd,390.40, 19-Sep-2019
28,Revenue,CAHD,Central - Community based support,Other Small Contracts,3 Trees Community Support Ltd,5165.44, 19-Sep-2019
29,Revenue,CAHD,Central - Community based support,Supported Living,3 Trees Community Support Ltd,5436.93, 19-Sep-2019
30,Revenue,CAHD,North - Community based support,Day Care / Social Activities,3 Trees Community Support Ltd,692.96, 19-Sep-2019
31,Revenue,CAHD,Central - Community based support,Day Care / Social Activities,3 Trees Community Support Ltd,287.92, 23-Sep-2019
32,Revenue,CAHD,Central - Community based support,Other Small Contracts,3 Trees Community Support Ltd,5165.44, 23-Sep-2019
33,Revenue,CAHD,Central - Community based support,Supported Living,3 Trees Community Support Ltd,5346.64, 23-Sep-2019
34,Revenue,CAHD,North - Community based support,Day Care / Social Activities,3 Trees Community Support Ltd,653.92, 23-Sep-2019
35,Revenue,CAHD,South - Bed Purchasing and Direct payments,Permanent Residential,5Th Floor Harlech Court,16667.12, 24-Sep-2019
36,Revenue,CAHD,South - Bed Purchasing and Direct payments,Permanent Residential,5Th Floor Harlech Court,10419.52, 24-Sep-2019
37,Revenue,CAHD,S28A cases,Permanent Residential,5Th Floor Harlech Court,10904.68, 24-Sep-2019
38,Revenue,CAHD,South - Bed Purchasing and Direct payments,Permanent Residential,5Th Floor Harlech Court,11436.40, 24-Sep-2019
39,Revenue,CAHD,North - bed purchasing and direct  payments,Permanent Residential,5Th Floor Harlech Court,12498.56, 24-Sep-2019
40,Revenue,CAHD,North - bed purchasing and direct  payments,Permanent Residential,5Th Floor Harlech Court,10537.24, 24-Sep-2019
41,Revenue,CAHD,North - bed purchasing and direct  payments,Permanent Residential,5Th Floor Harlech Court,9071.12, 24-Sep-2019
42,Revenue,CAHD,North Hub Offices,Mechanical & Electrical Maintenance,A E Horder (Contracting) Limited,859.34, 18-Sep-2019
43,Revenue,CAHD,North Hub Offices,Mechanical & Electrical Maintenance,A E Horder (Contracting) Limited,808.32, 18-Sep-2019
44,Revenue,CAHD,South - community based support,Day Care / Social Activities,About Me Care and Support Limited,1386.32, 16-Sep-2019
45,Revenue,CAHD,Section 117 Placements MH Younger,Permanent Residential,Acorn Care Providers,6608.20, 24-Sep-2019
46,Revenue,CAHD,North - S117,Permanent Residential,Acorn Care Providers,3900.00, 24-Sep-2019
47,Revenue,CAHD,Jointly Funded H&SC Packages,Permanent Residential,Acorn Care Providers,2100.00, 24-Sep-2019
48,Revenue,CAHD,MH Purchasing - Younger,Permanent Residential,Acorn Care Providers,6144.00, 24-Sep-2019
49,Revenue,CAHD,Training - Adult Services,Training Expenses,Acorn Health & Safety Limited,477.00, 05-Sep-2019
50,Revenue,CAHD,Training - Adult Services,Training Expenses,Acorn Health & Safety Limited,427.50, 26-Sep-2019
51,Revenue,CAHD,CSC - Agency Fostering,Foster Parent Allowances,Action for Children,6750.00, 25-Sep-2019
52,Revenue,CAHD,South - community based support,Supported Living,Action on Hearing Loss,938.00, 20-Sep-2019
53,Revenue,CAHD,South - community based support,Supported Living,Action on Hearing Loss,938.00, 09-Sep-2019
54,Revenue,CAHD,South - community based support,Supported Living,Action on Hearing Loss,750.40, 20-Sep-2019
55,Revenue,CAHD,South - community based support,Supported Living,Action on Hearing Loss,924.60, 20-Sep-2019
56,Revenue,CAHD,Mental Capacity Act / DOLS,Grants to Voluntary Bodies,Adapt (North East),551.85, 11-Sep-2019
57,Revenue,CAHD,South - community based support,Other Small Contracts,Advantedge Commercial Finance Limited,571.20, 04-Sep-2019
58,Revenue,CAHD,South - community based support,Other Small Contracts,Advantedge Commercial Finance Limited,799.68, 04-Sep-2019
59,Revenue,CAHD,South - community based support,Other Small Contracts,Advantedge Commercial Finance Limited,533.12, 04-Sep-2019
60,Revenue,CAHD,South - community based support,Other Small Contracts,Advantedge Commercial Finance Limited,628.32, 04-Sep-2019
61,Revenue,CAHD,South - community based support,Other Small Contracts,Advantedge Commercial Finance Limited,2094.40, 04-Sep-2019
62,Revenue,CAHD,South - community based support,Other Small Contracts,Advantedge Commercial Finance Limited,952.00, 04-Sep-2019
63,Revenue,CAHD,North - Community based support,Other Small Contracts,Advantedge Commercial Finance Limited,799.68, 04-Sep-2019
64,Revenue,CAHD,South - community based support,Day Care / Social Activities,Age Concern,1180.96, 24-Sep-2019
65,Revenue,CAHD,South - community based support,Day Care / Social Activities,Age Concern,634.24, 24-Sep-2019
66,Revenue,CAHD,South - community based support,Day Care / Social Activities,Age Concern,921.08, 24-Sep-2019
67,Revenue,CAHD,South - community based support,Day Care / Social Activities,Age Concern,590.48, 24-Sep-2019
68,Revenue,CAHD,South - community based support,Day Care / Social Activities,Age Concern,694.60, 24-Sep-2019
69,Revenue,CAHD,South - community based support,Day Care / Social Activities,Age Concern,720.00, 24-Sep-2019
70,Revenue,CAHD,South - community based support,Day Care / Social Activities,Age Concern,590.48, 24-Sep-2019
71,Revenue,CAHD,South - community based support,Day Care / Social Activities,Age Concern,955.36, 24-Sep-2019
72,Revenue,CAHD,South - community based support,Day Care / Social Activities,Age Concern,640.20, 24-Sep-2019
73,Revenue,CAHD,South - community based support,Day Care / Social Activities,Age Concern,536.00, 24-Sep-2019
74,Revenue,CAHD,South - community based support,Day Care / Social Activities,Age Concern,1180.96, 24-Sep-2019
75,Revenue,CAHD,South - community based support,Day Care / Social Activities,Age Concern,634.24, 24-Sep-2019
76,Revenue,CAHD,North - Community based support,Day Care / Social Activities,Age Concern,915.64, 24-Sep-2019
77,Revenue,CAHD,North - Community based support,Day Care / Social Activities,Age Concern,621.60, 24-Sep-2019
78,Revenue,CAHD,North - Community based support,Day Care / Social Activities,Age Concern,1456.40, 24-Sep-2019
79,Revenue,CAHD,North - Community based support,Day Care / Social Activities,Age Concern,720.00, 24-Sep-2019
80,Revenue,CAHD,Central - Community based support,Day Care / Social Activities,Age Concern,1180.96, 24-Sep-2019
81,Revenue,CAHD,Central - Community based support,Day Care / Social Activities,Age Concern,634.24, 24-Sep-2019
82,Revenue,CAHD,Central - Community based support,Day Care / Social Activities,Age Concern,640.20, 24-Sep-2019
83,Revenue,CAHD,Central - Community based support,Day Care / Social Activities,Age Concern,536.00, 24-Sep-2019
84,Revenue,CAHD,North - Community based support,Day Care / Social Activities,Age Concern,1034.80, 24-Sep-2019
85,Revenue,CAHD,Central - Community based support,Day Care / Social Activities,Age Concern,915.64, 24-Sep-2019
86,Revenue,CAHD,Central - Community based support,Day Care / Social Activities,Age Concern,621.60, 24-Sep-2019
87,Revenue,CAHD,Central - Community based support,Day Care / Social Activities,Age Concern,728.20, 24-Sep-2019
88,Revenue,CAHD,South - community based support,Day Care / Social Activities,Age UK - Grace Court,590.48, 24-Sep-2019
89,Revenue,CAHD,South - community based support,Day Care / Social Activities,Age UK - Grace Court,590.48, 24-Sep-2019
90,Revenue,CAHD,South - community based support,Day Care / Social Activities,Age UK - Grace Court,590.48, 24-Sep-2019
91,Revenue,CAHD,Central - Community based support,Other Small Contracts,Agincare UK Limited,425.70, 23-Sep-2019
92,Revenue,CAHD,South - community based support,Other Small Contracts,Agincare UK Limited,506.11, 23-Sep-2019
93,Revenue,CAHD,Extra Care Housing,Private & Voluntary Home Care,Agincare UK Limited,28508.53, 04-Sep-2019
94,Revenue,CAHD,Extra Care Housing,Private & Voluntary Home Care,Agincare UK Limited,3181.52, 06-Sep-2019
95,Revenue,CAHD,CSC - YOT Pooled Budget,Training Expenses,Aim Project,506.50, 23-Sep-2019
96,Revenue,CAHD,18-25 Year Olds,Permanent Residential,Alexander House,12155.16, 24-Sep-2019
97,Revenue,CAHD,South - community based support,Other Small Contracts,AliMo Care Ltd,533.52, 09-Sep-2019
98,Revenue,CAHD,North - Community based support,Other Small Contracts,AliMo Care Ltd,126.36, 09-Sep-2019
99,Revenue,CAHD,South - community based support,Other Small Contracts,AliMo Care Ltd,542.88, 23-Sep-2019
100,Revenue,CAHD,North - Community based support,Other Small Contracts,AliMo Care Ltd,126.36, 23-Sep-2019
101,Revenue,CAHD,South - community based support,Other Small Contracts,AliMo Care Ltd,510.12, 19-Sep-2019
102,Revenue,CAHD,North - Community based support,Other Small Contracts,AliMo Care Ltd,121.68, 19-Sep-2019
103,Revenue,CAHD,South - community based support,Other Small Contracts,AliMo Care Ltd,533.52, 23-Sep-2019
104,Revenue,CAHD,North - Community based support,Other Small Contracts,AliMo Care Ltd,126.36, 23-Sep-2019
105,Revenue,CAHD,Mental Health and Emotional Wellbeing,Project Funding,Alive Activities Limited,3144.96, 13-Sep-2019
106,Revenue,CAHD,North - bed purchasing and direct  payments,Permanent Nursing,Allambie Court,2320.44, 24-Sep-2019
107,Revenue,CAHD,CSC - Vinney Green Secure Unit,R & M by Departments,Amari Plastics PLC,774.00, 20-Sep-2019
108,Revenue,CAHD,CSC - Residential Placements,Permanent Residential,Amberleigh Care Ltd,17244.86, 03-Sep-2019
109,Revenue,CAHD,CSC - Residential Placements,Permanent Residential,Amberleigh Care Ltd,17244.86, 12-Sep-2019
110,Revenue,CAHD,North - bed purchasing and direct  payments,Permanent Nursing,Amerind Grove Nursing Home,2706.32, 24-Sep-2019
111,Revenue,CAHD,CSC - Agency Fostering,Foster Parent Allowances,Amicus Foster Care Ltd,1457.82, 03-Sep-2019
112,Revenue,CAHD,CSC - Agency Fostering,Foster Parent Allowances,Amicus Foster Care Ltd,3262.44, 03-Sep-2019
113,Revenue,CAHD,CSC - Agency Fostering,Foster Parent Allowances,Amicus Foster Care Ltd,4879.00, 03-Sep-2019
114,Revenue,CAHD,CSC - Agency Fostering,Foster Parent Allowances,Amicus Foster Care Ltd,5514.28, 03-Sep-2019
115,Revenue,CAHD,CSC - Vinney Green Secure Unit,External Lecturers Fees,Individual,1050.00, 19-Sep-2019
116,Revenue,CAHD,"Education, Learning and Skills",Premises Hire,Aquaterra Leisure,435.00, 02-Sep-2019
117,Revenue,CAHD,Jointly Funded H&SC Packages,Permanent Residential,Ash View House,1111.40, 24-Sep-2019
118,Revenue,CAHD,South - Bed Purchasing and Direct payments,Permanent Residential,Ash View House,5421.04, 24-Sep-2019
119,Revenue,CAHD,S117 Placements PCT,Permanent Residential,Ash View House,7556.32, 24-Sep-2019
120,Revenue,CAHD,18-25 Year Olds,Permanent Residential,Ash View House,7099.52, 24-Sep-2019
121,Revenue,CAHD,Section 117 Placements MH Younger,Permanent Residential,Ash View House,4924.12, 24-Sep-2019
122,Revenue,CAHD,Jointly Funded H&SC Packages,Permanent Residential,Ash View House,2110.40, 24-Sep-2019
123,Revenue,CAHD,South - S117,Permanent Residential,Ash View House,6692.80, 24-Sep-2019
124,Revenue,CAHD,18-25 Year Olds,Permanent Residential,Ash View House,6615.52, 24-Sep-2019
125,Revenue,CAHD,Drug and Alcohol Programme,Rent,Ashville Asset Management Limited,1211.02, 27-Sep-2019
126,Revenue,CAHD,Drug and Alcohol Programme,Rent,Ashville Asset Management Limited,4550.00, 27-Sep-2019
127,Revenue,CAHD,North - bed purchasing and direct  payments,Permanent Residential,Aspects 2 Limited,7231.88, 24-Sep-2019
128,Revenue,CAHD,South - community based support,Adults - Family Support,Ategi Limited,1112.16, 09-Sep-2019
129,Revenue,CAHD,North - Community based support,Adults - Family Support,Ategi Limited,1532.00, 10-Sep-2019
130,Revenue,CAHD,South - community based support,Adults - Family Support,Ategi Limited,2224.32, 10-Sep-2019
131,Revenue,CAHD,South - Bed Purchasing and Direct payments,Adults - Family Support,Ategi Limited,15783.59, 19-Sep-2019
132,Revenue,CAHD,South - Bed Purchasing and Direct payments,Adults - Family Support,Ategi Limited,1565.02, 30-Sep-2019
133,Revenue,CAHD,Shared Lives,Other Supplies & Services,Ategi Limited,50430.75, 30-Sep-2019
134,Revenue,CAHD,South - Bed Purchasing and Direct payments,Permanent Residential,Autism Specialised Care Homes,6506.88, 24-Sep-2019
135,Revenue,CAHD,South - Bed Purchasing and Direct payments,Respite Emergency - Residential,Avery Homes Downend Limited,607.71, 24-Sep-2019
136,Revenue,CAHD,North - bed purchasing and direct  payments,Permanent Residential,Avery Homes Downend Limited,4200.00, 24-Sep-2019
137,Revenue,CAHD,North - bed purchasing and direct  payments,Permanent Residential,Avery Homes Downend Limited,4300.80, 24-Sep-2019
138,Revenue,CAHD,North - bed purchasing and direct  payments,Permanent Residential,Avery Homes Downend Limited,5420.00, 24-Sep-2019
139,Revenue,CAHD,North - bed purchasing and direct  payments,Permanent Residential,Avery Homes Downend Limited,4420.00, 24-Sep-2019
140,Revenue,CAHD,North - bed purchasing and direct  payments,Respite Emergency - Residential,Avery Homes Downend Limited,1815.00, 24-Sep-2019
141,Revenue,CAHD,Younger Adult Mental Health,Health Services (Third Party Payments),Avon & Wiltshire Mental Health,1693.33, 11-Sep-2019
142,Revenue,CAHD,MECC Making Every Contact Count,Other Small Contracts,Avon Local Medical Committee,14000.00, 06-Sep-2019
143,Revenue,CAHD,South - Bed Purchasing and Direct payments,Permanent Residential,Avon Valley Care Home,3714.29, 24-Sep-2019
144,Revenue,CAHD,South - Bed Purchasing and Direct payments,Permanent Residential,Avon Valley Care Home,3960.00, 24-Sep-2019
145,Revenue,CAHD,South - Bed Purchasing and Direct payments,Permanent Residential,Avon Valley Care Home,4000.00, 24-Sep-2019
146,Revenue,CAHD,CSC - Quality Review Unit,Agency Staff (Admin/Support Staff) Pay,Baltimore Consulting Group,1920.00, 19-Sep-2019
147,Revenue,CAHD,CSC - Family Group Conferencing,Grants to Voluntary Bodies,Barnardo Services Limited,5422.75, 24-Sep-2019
148,Revenue,CAHD,Pensions - Non DSG,Annual Pension,Bath & North East Somerset Council,108348.83, 04-Sep-2019
149,Revenue,CAHD,Positive Activities Subsidy for Young Pe,Other Supplies & Services,Bath & North East Somerset Council,2950.00, 23-Sep-2019
150,Revenue,CAHD,Pathway 3 - (Complex Beds),Permanent Nursing,Beaufort Care Ltd,5571.00, 13-Sep-2019
151,Revenue,CAHD,South Glos Users in South Glos Homes,Permanent Nursing,Beaufort Grange Care Home,662.24, 24-Sep-2019
152,Revenue,CAHD,South Glos Users in South Glos Homes,Permanent Nursing,Beaufort Grange Care Home,662.24, 24-Sep-2019
153,Revenue,CAHD,South Glos Users in South Glos Homes,Permanent Nursing,Beaufort Grange Care Home,662.24, 24-Sep-2019
154,Revenue,CAHD,South Glos Users in South Glos Homes,Permanent Nursing,Beaufort Grange Care Home,662.24, 24-Sep-2019
155,Revenue,CAHD,South Glos Users in South Glos Homes,Permanent Nursing,Beaufort Grange Care Home,662.24, 24-Sep-2019
156,Revenue,CAHD,South Glos Users in South Glos Homes,Permanent Nursing,Beaufort Grange Care Home,662.24, 24-Sep-2019
157,Revenue,CAHD,South Glos Users in South Glos Homes,Permanent Nursing,Beaufort Grange Care Home,662.24, 24-Sep-2019
158,Revenue,CAHD,South Glos Users in South Glos Homes,Permanent Nursing,Beaufort Grange Care Home,662.24, 24-Sep-2019
159,Revenue,CAHD,South Glos Users in South Glos Homes,Permanent Nursing,Beaufort Grange Care Home,662.24, 24-Sep-2019
160,Revenue,CAHD,South Glos Users in South Glos Homes,Permanent Nursing,Beaufort Grange Care Home,662.24, 24-Sep-2019
161,Revenue,CAHD,South Glos Users in South Glos Homes,Permanent Nursing,Beaufort Grange Care Home,662.24, 24-Sep-2019
162,Revenue,CAHD,North - S117,Permanent Nursing,Beaufort Grange Care Home,4877.04, 24-Sep-2019
163,Revenue,CAHD,South Glos Users in South Glos Homes,Permanent Nursing,Beaufort Grange Care Home,662.24, 24-Sep-2019
164,Revenue,CAHD,South Glos Users in South Glos Homes,Permanent Nursing,Beaufort Grange Care Home,662.24, 24-Sep-2019
165,Revenue,CAHD,South Glos Users in South Glos Homes,Permanent Nursing,Beaufort Grange Care Home,662.24, 24-Sep-2019
166,Revenue,CAHD,South Glos Users in South Glos Homes,Permanent Nursing,Beaufort Grange Care Home,662.24, 24-Sep-2019
167,Revenue,CAHD,South Glos Users in South Glos Homes,Permanent Nursing,Beaufort Grange Care Home,662.24, 24-Sep-2019
168,Revenue,CAHD,South Glos Users in South Glos Homes,Permanent Nursing,Beaufort Grange Care Home,662.24, 24-Sep-2019
169,Revenue,CAHD,North - bed purchasing and direct  payments,Permanent Residential,Beaufort Grange Care Home,7625.37, 24-Sep-2019
170,Revenue,CAHD,North - bed purchasing and direct  payments,Permanent Residential,Beaufort Grange Care Home,5337.76, 24-Sep-2019
171,Revenue,CAHD,South Glos Users in South Glos Homes,Permanent Nursing,Beaufort Grange Care Home,662.24, 24-Sep-2019
172,Revenue,CAHD,North - S117,Permanent Nursing,Beaufort Grange Care Home,5005.76, 24-Sep-2019
173,Revenue,CAHD,South Glos Users in South Glos Homes,Permanent Nursing,Beaufort Grange Care Home,662.24, 24-Sep-2019
174,Revenue,CAHD,South Glos Users in South Glos Homes,Permanent Nursing,Beaufort Grange Care Home,662.24, 24-Sep-2019
175,Revenue,CAHD,South Glos Users in South Glos Homes,Permanent Nursing,Beaufort Grange Care Home,662.24, 24-Sep-2019
176,Revenue,CAHD,South Glos Users in South Glos Homes,Permanent Nursing,Beaufort Grange Care Home,662.24, 24-Sep-2019
177,Revenue,CAHD,South Glos Users in South Glos Homes,Permanent Nursing,Beaufort Grange Care Home,662.24, 24-Sep-2019
178,Revenue,CAHD,South Glos Users in South Glos Homes,Permanent Nursing,Beaufort Grange Care Home,662.24, 24-Sep-2019
179,Revenue,CAHD,South Glos Users in South Glos Homes,Permanent Nursing,Beaufort Grange Care Home,662.24, 24-Sep-2019
180,Revenue,CAHD,South Glos Users in South Glos Homes,Permanent Nursing,Beaufort Grange Care Home,662.24, 24-Sep-2019
181,Revenue,CAHD,South - Bed Purchasing and Direct payments,Permanent Residential,Beaufort Grange Care Home,5156.20, 24-Sep-2019
182,Revenue,CAHD,South Glos Users in South Glos Homes,Permanent Nursing,Beaufort Grange Care Home,662.24, 24-Sep-2019
183,Revenue,CAHD,South Glos Users in South Glos Homes,Permanent Nursing,Beaufort Grange Care Home,662.24, 24-Sep-2019
184,Revenue,CAHD,South Glos Users in South Glos Homes,Permanent Nursing,Beaufort Grange Care Home,662.24, 24-Sep-2019
185,Revenue,CAHD,South Glos Users in South Glos Homes,Permanent Nursing,Beaufort Grange Care Home,662.24, 24-Sep-2019
186,Revenue,CAHD,South Glos Users in South Glos Homes,Permanent Nursing,Beaufort Grange Care Home,662.24, 24-Sep-2019
187,Revenue,CAHD,South Glos Users in South Glos Homes,Permanent Nursing,Beaufort Grange Care Home,662.24, 24-Sep-2019
188,Revenue,CAHD,South Glos Users in South Glos Homes,Permanent Nursing,Beaufort Grange Care Home,662.24, 24-Sep-2019
189,Revenue,CAHD,South Glos Users in South Glos Homes,Permanent Nursing,Beaufort Grange Care Home,662.24, 24-Sep-2019
190,Revenue,CAHD,South Glos Users in South Glos Homes,Permanent Nursing,Beaufort Grange Care Home,662.24, 24-Sep-2019
191,Revenue,CAHD,South Glos Users in South Glos Homes,Permanent Nursing,Beaufort Grange Care Home,662.24, 24-Sep-2019
192,Revenue,CAHD,South Glos Users in South Glos Homes,Permanent Nursing,Beaufort Grange Care Home,662.24, 24-Sep-2019
193,Revenue,CAHD,South Glos Users in South Glos Homes,Permanent Nursing,Beaufort Grange Care Home,662.24, 24-Sep-2019
194,Revenue,CAHD,South Glos Users in South Glos Homes,Permanent Nursing,Beaufort Grange Care Home,662.24, 24-Sep-2019
195,Revenue,CAHD,South Glos Users in South Glos Homes,Permanent Nursing,Beaufort Grange Care Home,662.24, 24-Sep-2019
196,Revenue,CAHD,North - bed purchasing and direct  payments,Permanent Residential,Beaufort House,2549.56, 24-Sep-2019
197,Revenue,CAHD,Central - Bed Purchasing and Direct Payments,Permanent Residential,Beaufort House,2867.20, 24-Sep-2019
198,Revenue,CAHD,Central - Bed Purchasing and Direct Payments,Permanent Residential,Beaufort House,2775.60, 24-Sep-2019
199,Revenue,CAHD,North - bed purchasing and direct  payments,Permanent Residential,Beaufort House,2571.40, 24-Sep-2019
200,Revenue,CAHD,South - Bed Purchasing and Direct payments,Permanent Residential,Beaufort House,2536.84, 24-Sep-2019
201,Revenue,CAHD,North - bed purchasing and direct  payments,Permanent Residential,Beaufort House,3072.00, 24-Sep-2019
202,Revenue,CAHD,Central - Bed Purchasing and Direct Payments,Permanent Residential,Beaufort House,2775.60, 24-Sep-2019
203,Revenue,CAHD,North - bed purchasing and direct  payments,Permanent Residential,Beaufort House,2699.92, 24-Sep-2019
204,Revenue,CAHD,South - Bed Purchasing and Direct payments,Permanent Residential,Beaufort House,2713.00, 24-Sep-2019
205,Revenue,CAHD,South Glos Users in South Glos Homes,Permanent Nursing,Beechwood Care Home,1028.00, 24-Sep-2019
206,Revenue,CAHD,18-25 Year Olds,Permanent Residential,Beechwood Court,15254.92, 24-Sep-2019
207,Revenue,CAHD,South - S117,Permanent Residential,Bidna House,3692.64, 24-Sep-2019
208,Revenue,CAHD,Central - Community based support,Other Small Contracts,Blakehill Healthcare Ltd,2050.00, 25-Sep-2019
209,Revenue,CAHD,Central - Community based support,Other Small Contracts,Blakehill Healthcare Ltd,5250.00, 05-Sep-2019
210,Revenue,CAHD,Central - Community based support,Other Small Contracts,Blakehill Healthcare Ltd,4196.96, 25-Sep-2019
211,Revenue,CAHD,Central - Community based support,Other Small Contracts,Blakehill Healthcare Ltd,4862.50, 05-Sep-2019
212,Revenue,CAHD,Central - Community based support,Other Small Contracts,Blakehill Healthcare Ltd,5037.50, 05-Sep-2019
213,Revenue,CAHD,Central - Community based support,Other Small Contracts,Blakehill Healthcare Ltd,3591.83, 25-Sep-2019
214,Revenue,CAHD,Central - Community based support,Other Small Contracts,Blakehill Healthcare Ltd,9300.00, 13-Sep-2019
215,Revenue,CAHD,Central - Community based support,Other Small Contracts,Blakehill Healthcare Ltd,4212.50, 25-Sep-2019
216,Revenue,CAHD,Central - Community based support,Other Small Contracts,Blakehill Healthcare Ltd,2800.00, 05-Sep-2019
217,Revenue,CAHD,Central - Community based support,Other Small Contracts,Blakehill Healthcare Ltd,5625.00, 05-Sep-2019
218,Revenue,CAHD,Central - Community based support,Other Small Contracts,Blakehill Healthcare Ltd,750.00, 09-Sep-2019
219,Revenue,CAHD,Central - Community based support,Other Small Contracts,Blakehill Healthcare Ltd,7400.00, 25-Sep-2019
220,Revenue,CAHD,Central - Community based support,Other Small Contracts,Blakehill Healthcare Ltd,4279.17, 25-Sep-2019
221,Revenue,CAHD,Central - Community based support,Other Small Contracts,Blakehill Healthcare Ltd,3500.00, 17-Sep-2019
222,Revenue,CAHD,Central - Community based support,Other Small Contracts,Blakehill Healthcare Ltd,6620.00, 25-Sep-2019
223,Revenue,CAHD,Central - Community based support,Other Small Contracts,Blakehill Healthcare Ltd,9476.67, 05-Sep-2019
224,Revenue,CAHD,South - Bed Purchasing and Direct payments,Permanent Nursing,Blossom Field,4780.36, 24-Sep-2019
225,Revenue,CAHD,South Glos Users in South Glos Homes,Permanent Nursing,Blossom Field,662.24, 24-Sep-2019
226,Revenue,CAHD,North - S117,Permanent Nursing,Blossom Field,3693.56, 24-Sep-2019
227,Revenue,CAHD,South Glos Users in South Glos Homes,Permanent Nursing,Blossom Field,662.24, 24-Sep-2019
228,Revenue,CAHD,North - bed purchasing and direct  payments,Permanent Nursing,Blossom Field,4730.40, 24-Sep-2019
229,Revenue,CAHD,South Glos Users in South Glos Homes,Permanent Nursing,Blossom Field,662.24, 24-Sep-2019
230,Revenue,CAHD,North - bed purchasing and direct  payments,Permanent Nursing,Blossom Field,4770.40, 24-Sep-2019
231,Revenue,CAHD,South Glos Users in South Glos Homes,Permanent Nursing,Blossom Field,662.24, 24-Sep-2019
232,Revenue,CAHD,South Glos Users in South Glos Homes,Permanent Nursing,Blossom Field,662.24, 24-Sep-2019
233,Revenue,CAHD,North - bed purchasing and direct  payments,Permanent Nursing,Blossom Field,3891.20, 24-Sep-2019
234,Revenue,CAHD,South Glos Users in South Glos Homes,Permanent Nursing,Blossom Field,662.24, 24-Sep-2019
235,Revenue,CAHD,Bed Purchasing - Southmead Hospital,Permanent Nursing,Blossom Field,5000.00, 24-Sep-2019
236,Revenue,CAHD,South Glos Users in South Glos Homes,Permanent Nursing,Blossom Field,662.24, 24-Sep-2019
237,Revenue,CAHD,South Glos Users in South Glos Homes,Permanent Nursing,Blossom Field,662.24, 24-Sep-2019
238,Revenue,CAHD,South - Bed Purchasing and Direct payments,Permanent Nursing,Blossom Field,4413.08, 24-Sep-2019
239,Revenue,CAHD,South Glos Users in South Glos Homes,Permanent Nursing,Blossom Field,662.24, 24-Sep-2019
240,Revenue,CAHD,North - bed purchasing and direct  payments,Permanent Nursing,Blossom Field,3533.92, 24-Sep-2019
241,Revenue,CAHD,South Glos Users in South Glos Homes,Permanent Nursing,Blossom Field,662.24, 24-Sep-2019
242,Revenue,CAHD,North - bed purchasing and direct  payments,Permanent Nursing,Blossom Field,4799.88, 24-Sep-2019
243,Revenue,CAHD,South Glos Users in South Glos Homes,Permanent Nursing,Blossom Field,662.24, 24-Sep-2019
244,Revenue,CAHD,South Glos Users in South Glos Homes,Permanent Nursing,Blossom Field,662.24, 24-Sep-2019
245,Revenue,CAHD,North - bed purchasing and direct  payments,Permanent Nursing,Blossom Field,4800.00, 24-Sep-2019
246,Revenue,CAHD,South Glos Users in South Glos Homes,Permanent Nursing,Blossom Field,662.24, 24-Sep-2019
247,Revenue,CAHD,South Glos Users in South Glos Homes,Permanent Nursing,Blossom Field,662.24, 24-Sep-2019
248,Revenue,CAHD,South Glos Users in South Glos Homes,Permanent Nursing,Blossom Field,662.24, 24-Sep-2019
249,Revenue,CAHD,Central - Bed Purchasing and Direct Payments,Permanent Nursing,Blossom Field,4267.36, 24-Sep-2019
250,Revenue,CAHD,South Glos Users in South Glos Homes,Permanent Nursing,Blossom Field,662.24, 24-Sep-2019
251,Revenue,CAHD,South Glos Users in South Glos Homes,Permanent Nursing,Blossom Field,662.24, 24-Sep-2019
252,Revenue,CAHD,South Glos Users in South Glos Homes,Permanent Nursing,Blossom Field,662.24, 24-Sep-2019
253,Revenue,CAHD,North - bed purchasing and direct  payments,Permanent Nursing,Blossom Field,4267.36, 24-Sep-2019
254,Revenue,CAHD,South Glos Users in South Glos Homes,Permanent Nursing,Blossom Field,662.24, 24-Sep-2019
255,Revenue,CAHD,South Glos Users in South Glos Homes,Permanent Nursing,Blossom Field,662.24, 24-Sep-2019
256,Revenue,CAHD,Central - Bed Purchasing and Direct Payments,Respite Planned - Nursing,Blossom Field,4800.00, 24-Sep-2019
257,Revenue,CAHD,South Glos Users in South Glos Homes,Permanent Nursing,Blossom Field,662.24, 24-Sep-2019
258,Revenue,CAHD,South Glos Users in South Glos Homes,Permanent Nursing,Blossom Field,662.24, 24-Sep-2019
259,Revenue,CAHD,North - bed purchasing and direct  payments,Permanent Nursing,Blossom Field,3634.96, 24-Sep-2019
260,Revenue,CAHD,South Glos Users in South Glos Homes,Permanent Nursing,Blossom Field,662.24, 24-Sep-2019
261,Revenue,CAHD,North - bed purchasing and direct  payments,Permanent Nursing,Blossom Field,5000.00, 24-Sep-2019
262,Revenue,CAHD,South Glos Users in South Glos Homes,Permanent Nursing,Blossom Field,662.24, 24-Sep-2019
263,Revenue,CAHD,South Glos Users in South Glos Homes,Permanent Nursing,Blossom Field,662.24, 24-Sep-2019
264,Revenue,CAHD,North - bed purchasing and direct  payments,Permanent Residential,Bluebells,3699.60, 24-Sep-2019
265,Revenue,CAHD,Pathway 1 - Re-Ablement Home Care,Other Small Contracts,Bluebird Care (South Gloucestershire),1676.10, 23-Sep-2019
266,Revenue,CAHD,Central - Community based support,Other Small Contracts,Bluebird Care (South Gloucestershire),1630.80, 03-Sep-2019
267,Revenue,CAHD,South - community based support,Other Small Contracts,Bluebird Care (South Gloucestershire),566.13, 03-Sep-2019
268,Revenue,CAHD,North - Community based support,Other Small Contracts,Bluebird Care (South Gloucestershire),946.25, 03-Sep-2019
269,Revenue,CAHD,Central - Community based support,Other Small Contracts,Bluebird Care (South Gloucestershire),1600.60, 05-Sep-2019
270,Revenue,CAHD,South - community based support,Other Small Contracts,Bluebird Care (South Gloucestershire),582.30, 05-Sep-2019
271,Revenue,CAHD,North - Community based support,Other Small Contracts,Bluebird Care (South Gloucestershire),940.24, 05-Sep-2019
272,Revenue,CAHD,Central - Community based support,Other Small Contracts,Bluebird Care (South Gloucestershire),1615.70, 05-Sep-2019
273,Revenue,CAHD,South - community based support,Other Small Contracts,Bluebird Care (South Gloucestershire),575.84, 05-Sep-2019
274,Revenue,CAHD,North - Community based support,Other Small Contracts,Bluebird Care (South Gloucestershire),981.67, 05-Sep-2019
275,Revenue,CAHD,Central - Community based support,Other Small Contracts,Bluebird Care (South Gloucestershire),1630.80, 23-Sep-2019
276,Revenue,CAHD,South - community based support,Other Small Contracts,Bluebird Care (South Gloucestershire),1208.95, 23-Sep-2019
277,Revenue,CAHD,North - Community based support,Other Small Contracts,Bluebird Care (South Gloucestershire),989.52, 23-Sep-2019
278,Revenue,CAHD,Training - Adult Services,Training Expenses,Individual,2100.00, 10-Sep-2019
279,Revenue,CAHD,S28A cases,Permanent Residential,Bradbury House,6505.16, 24-Sep-2019
280,Revenue,CAHD,18-25 Year Olds,Permanent Residential,Bradbury House,9917.08, 24-Sep-2019
281,Revenue,CAHD,North - S117,Permanent Residential,Bradbury House,5740.24, 24-Sep-2019
282,Revenue,CAHD,Jointly Funded H&SC Packages,Permanent Residential,Bradbury House,7927.00, 24-Sep-2019
283,Revenue,CAHD,South - Bed Purchasing and Direct payments,Permanent Residential,Bradbury House,9777.00, 24-Sep-2019
284,Revenue,CAHD,South - Bed Purchasing and Direct payments,Permanent Residential,Bradbury House,2444.25, 24-Sep-2019
285,Revenue,CAHD,CSC - Residential Placements,Permanent Residential,Branas ISAF Ltd,21035.71, 10-Sep-2019
286,Revenue,CAHD,CSC - Residential Placements,Permanent Residential,Branas ISAF Ltd,19928.57, 25-Sep-2019
287,Revenue,CAHD,CSC - Residential Placements,Permanent Residential,Branas ISAF Ltd,21035.71, 25-Sep-2019
288,Revenue,CAHD,Social Lettings Agency,Fees - General,Individual,8.15, 03-Sep-2019
289,Revenue,CAHD,Social Lettings Agency,Other Supplies & Services,Individual,766.10, 03-Sep-2019
290,Revenue,CAHD,North - bed purchasing and direct  payments,Permanent Residential,Bridge House Care Home,2625.52, 24-Sep-2019
291,Revenue,CAHD,North - bed purchasing and direct  payments,Permanent Residential,Bridgwater Court,10773.64, 24-Sep-2019
292,Revenue,CAHD,Sexual Health,Other Small Contracts,Bristol City Council,460268.00, 19-Sep-2019
293,Revenue,CAHD,Placements OLA Special Schools and RB,Other L.A.'s - General,Bristol City Council - Schools,2578.00, 20-Sep-2019
294,Revenue,CAHD,Placements OLA Special Schools and RB,Other L.A.'s - General,Bristol City Council - Schools,1381.00, 20-Sep-2019
295,Revenue,CAHD,Statemented Support Payments to OLAs,Other L.A.'s - General,Bristol City Council - Schools,1379.43, 30-Sep-2019
296,Revenue,CAHD,Placements OLA Special Schools and RB,Other L.A.'s - General,Bristol City Council - Schools,914.33, 20-Sep-2019
297,Revenue,CAHD,Placements OLA Special Schools and RB,Other L.A.'s - General,Bristol City Council - Schools,1305.58, 20-Sep-2019
298,Revenue,CAHD,Statemented Support Payments to OLAs,Other L.A.'s - General,Bristol City Council - Schools,660.24, 30-Sep-2019
299,Revenue,CAHD,Placements OLA Special Schools and RB,Other L.A.'s - General,Bristol City Council - Schools,3356.33, 20-Sep-2019
300,Revenue,CAHD,Placements OLA Special Schools and RB,Other L.A.'s - General,Bristol City Council - Schools,2578.00, 20-Sep-2019
301,Revenue,CAHD,Placements OLA Special Schools and RB,Other L.A.'s - General,Bristol City Council - Schools,1381.00, 20-Sep-2019
302,Revenue,CAHD,Placements OLA Special Schools and RB,Other L.A.'s - General,Bristol City Council - Schools,2050.17, 20-Sep-2019
303,Revenue,CAHD,Placements OLA Special Schools and RB,Other L.A.'s - General,Bristol City Council - Schools,1381.00, 20-Sep-2019
304,Revenue,CAHD,Placements OLA Special Schools and RB,Other L.A.'s - General,Bristol City Council - Schools,1381.00, 20-Sep-2019
305,Revenue,CAHD,Placements OLA Special Schools and RB,Other L.A.'s - General,Bristol City Council - Schools,2050.17, 20-Sep-2019
306,Revenue,CAHD,Placements OLA Special Schools and RB,Other L.A.'s - General,Bristol City Council - Schools,7010.26, 20-Sep-2019
307,Revenue,CAHD,Placements OLA Special Schools and RB,Other L.A.'s - General,Bristol City Council - Schools,1675.30, 20-Sep-2019
308,Revenue,CAHD,Placements OLA Special Schools and RB,Other L.A.'s - General,Bristol City Council - Schools,809.00, 20-Sep-2019
309,Revenue,CAHD,Placements OLA Special Schools and RB,Other L.A.'s - General,Bristol City Council - Schools,883.50, 20-Sep-2019
310,Revenue,CAHD,Placements OLA Special Schools and RB,Other L.A.'s - General,Bristol City Council - Schools,4107.54, 20-Sep-2019
311,Revenue,CAHD,Placements OLA Special Schools and RB,Other L.A.'s - General,Bristol City Council - Schools,777.50, 20-Sep-2019
312,Revenue,CAHD,Placements OLA Special Schools and RB,Other L.A.'s - General,Bristol City Council - Schools,1031.20, 20-Sep-2019
313,Revenue,CAHD,Placements OLA Special Schools and RB,Other L.A.'s - General,Bristol City Council - Schools,2783.92, 20-Sep-2019
314,Revenue,CAHD,Placements OLA Special Schools and RB,Other L.A.'s - General,Bristol City Council - Schools,2578.00, 20-Sep-2019
315,Revenue,CAHD,Placements OLA Special Schools and RB,Other L.A.'s - General,Bristol City Council - Schools,809.00, 20-Sep-2019
316,Revenue,CAHD,Placements OLA Special Schools and RB,Other L.A.'s - General,Bristol City Council - Schools,2578.00, 20-Sep-2019
317,Revenue,CAHD,Placements OLA Special Schools and RB,Other L.A.'s - General,Bristol City Council - Schools,883.50, 20-Sep-2019
318,Revenue,CAHD,Placements OLA Special Schools and RB,Other L.A.'s - General,Bristol City Council - Schools,2062.40, 20-Sep-2019
319,Revenue,CAHD,Placements OLA Special Schools and RB,Other L.A.'s - General,Bristol City Council - Schools,2578.00, 20-Sep-2019
320,Revenue,CAHD,Placements OLA Special Schools and RB,Other L.A.'s - General,Bristol City Council - Schools,1305.58, 20-Sep-2019
321,Revenue,CAHD,North Hub Offices,Educational Materials,Bristol Clifton & West of England Zoological,720.00, 23-Sep-2019
322,Revenue,CAHD,South Hub Offices,"Holidays, Outings & Visits",Bristol Clifton & West of England Zoological,960.00, 02-Sep-2019
323,Revenue,CAHD,CSC - Principle Social Worker,Intra Directorate Recharges,Bristol Dyslexia Centre,500.00, 04-Sep-2019
324,Revenue,CAHD,Bed and Breakfast,Bed & Breakfast,Bristol Housing & Support Limited,420.00, 09-Sep-2019
325,Revenue,CAHD,Bed and Breakfast,Bed & Breakfast,Bristol Housing & Support Limited,420.00, 16-Sep-2019
326,Revenue,CAHD,Statemented Support Payments to OLAs,Other L.A.'s - General,Broadlands Academy,1332.27, 30-Sep-2019
327,Revenue,CAHD,South Glos Users in South Glos Homes,Permanent Nursing,Brunelcare,733.19, 19-Sep-2019
328,Revenue,CAHD,South Glos Users in South Glos Homes,Permanent Nursing,Brunelcare,733.19, 19-Sep-2019
329,Revenue,CAHD,South Glos Users in South Glos Homes,Permanent Nursing,Brunelcare,733.19, 19-Sep-2019
330,Revenue,CAHD,South Glos Users in South Glos Homes,Permanent Nursing,Brunelcare,733.19, 19-Sep-2019
331,Revenue,CAHD,South Glos Users in South Glos Homes,Permanent Nursing,Brunelcare,733.19, 19-Sep-2019
332,Revenue,CAHD,South Glos Users in South Glos Homes,Permanent Nursing,Brunelcare,733.19, 19-Sep-2019
333,Revenue,CAHD,South Glos Users in South Glos Homes,Permanent Nursing,Brunelcare,733.19, 19-Sep-2019
334,Revenue,CAHD,South Glos Users in South Glos Homes,Permanent Nursing,Brunelcare,733.19, 19-Sep-2019
335,Revenue,CAHD,South Glos Users in South Glos Homes,Permanent Nursing,Brunelcare,733.19, 19-Sep-2019
336,Revenue,CAHD,South Glos Users in South Glos Homes,Permanent Nursing,Brunelcare,733.19, 19-Sep-2019
337,Revenue,CAHD,South Glos Users in South Glos Homes,Permanent Nursing,Brunelcare,733.19, 19-Sep-2019
338,Revenue,CAHD,South Glos Users in South Glos Homes,Permanent Nursing,Brunelcare,733.19, 19-Sep-2019
339,Revenue,CAHD,South Glos Users in South Glos Homes,Permanent Nursing,Brunelcare,733.19, 19-Sep-2019
340,Revenue,CAHD,South - S117,Permanent Nursing,Brunelcare,3669.07, 19-Sep-2019
341,Revenue,CAHD,North - S117,Permanent Nursing,Brunelcare,3669.07, 19-Sep-2019
342,Revenue,CAHD,North - S117,Permanent Nursing,Brunelcare,3669.07, 19-Sep-2019
343,Revenue,CAHD,South - Bed Purchasing and Direct payments,Permanent Nursing,Brunelcare,3669.07, 19-Sep-2019
344,Revenue,CAHD,South - Bed Purchasing and Direct payments,Permanent Nursing,Brunelcare,3038.66, 19-Sep-2019
345,Revenue,CAHD,South - Bed Purchasing and Direct payments,Permanent Nursing,Brunelcare,2674.86, 19-Sep-2019
346,Revenue,CAHD,South - Bed Purchasing and Direct payments,Permanent Nursing,Brunelcare,2831.98, 19-Sep-2019
347,Revenue,CAHD,South - Bed Purchasing and Direct payments,Permanent Nursing,Brunelcare,2938.31, 19-Sep-2019
348,Revenue,CAHD,South - Bed Purchasing and Direct payments,Permanent Nursing,Brunelcare,3056.38, 19-Sep-2019
349,Revenue,CAHD,South - Bed Purchasing and Direct payments,Permanent Nursing,Brunelcare,2663.87, 19-Sep-2019
350,Revenue,CAHD,South - Bed Purchasing and Direct payments,Permanent Nursing,Brunelcare,2672.82, 19-Sep-2019
351,Revenue,CAHD,Enhanced Dementia Beds,Respite Planned - Nursing,Brunelcare,4375.43, 19-Sep-2019
352,Revenue,CAHD,South - Bed Purchasing and Direct payments,Respite Planned - Nursing,Brunelcare,828.50, 19-Sep-2019
353,Revenue,CAHD,South - Bed Purchasing and Direct payments,Respite Planned - Nursing,Brunelcare,946.86, 19-Sep-2019
354,Revenue,CAHD,South - Bed Purchasing and Direct payments,Respite Planned - Nursing,Brunelcare,710.04, 19-Sep-2019
355,Revenue,CAHD,North - bed purchasing and direct  payments,Permanent Nursing,Brunelcare,2753.69, 19-Sep-2019
356,Revenue,CAHD,North - bed purchasing and direct  payments,Permanent Nursing,Brunelcare,2945.09, 19-Sep-2019
357,Revenue,CAHD,North - bed purchasing and direct  payments,Permanent Nursing,Brunelcare,2938.49, 19-Sep-2019
358,Revenue,CAHD,North - bed purchasing and direct  payments,Permanent Nursing,Brunelcare,3669.07, 19-Sep-2019
359,Revenue,CAHD,North - bed purchasing and direct  payments,Respite Planned - Nursing,Brunelcare,710.14, 19-Sep-2019
360,Revenue,CAHD,Central - Bed Purchasing and Direct Payments,Permanent Nursing,Brunelcare,2675.55, 19-Sep-2019
361,Revenue,CAHD,South - Bed Purchasing and Direct payments,Respite Emergency - Nursing,Brunelcare,1538.64, 19-Sep-2019
362,Revenue,CAHD,South - community based support,Other Small Contracts,Brunelcare,21237.70, 06-Sep-2019
363,Revenue,CAHD,North - Community based support,Other Small Contracts,Brunelcare,316.91, 06-Sep-2019
364,Revenue,CAHD,South - community based support,Other Small Contracts,Brunelcare,21147.83, 19-Sep-2019
365,Revenue,CAHD,North - Community based support,Other Small Contracts,Brunelcare,293.26, 19-Sep-2019
366,Revenue,CAHD,Pathway 1 - Re-Ablement Home Care,Other Small Contracts,Brunelcare,506.68, 23-Sep-2019
367,Revenue,CAHD,Information Systems - Software,Computer Equipment - Purchase,BT Global Services Solutions,489.74, 19-Sep-2019
368,Revenue,CAHD,North - S117,Permanent Residential,Buckland Care,7714.29, 30-Sep-2019
369,Revenue,CAHD,Training Budget - Children`s Social Serv,Training Expenses,BW Training & Coaching Ltd,90.00, 27-Sep-2019
370,Revenue,CAHD,Training - Adult Services,Training Expenses,BW Training & Coaching Ltd,540.00, 27-Sep-2019
371,Revenue,CAHD,CSC - Vinney Green Secure Unit,R & M by Departments,BWS Standfast Fire & Security Systems,455.60, 30-Sep-2019
372,Revenue,CAHD,Social Lettings Agency,Fees - General,Individual,16.16, 26-Sep-2019
373,Revenue,CAHD,Social Lettings Agency,Other Supplies & Services,Individual,710.96, 26-Sep-2019
374,Revenue,CAHD,Statemented Support Payments to OLAs,Other L.A.'s - General,Cabot Learning Federation,1544.49, 30-Sep-2019
375,Revenue,CAHD,Statemented Support Academies,Other Public Bodies,Cabot Learning Federation,1202.39, 30-Sep-2019
376,Revenue,CAHD,Statemented Support Academies,Other Public Bodies,Cabot Learning Federation,518.76, 30-Sep-2019
377,Revenue,CAHD,Statemented Support Academies,Other Public Bodies,Cabot Learning Federation,554.13, 30-Sep-2019
378,Revenue,CAHD,Statemented Support Academies,Other Public Bodies,Cabot Learning Federation,565.92, 30-Sep-2019
379,Revenue,CAHD,Statemented Support Academies,Other Public Bodies,Cabot Learning Federation,1048.67, 30-Sep-2019
380,Revenue,CAHD,Statemented Support Academies,Other Public Bodies,Cabot Learning Federation,2616.63, 30-Sep-2019
381,Revenue,CAHD,Statemented Support Payments to OLAs,Other L.A.'s - General,Cabot Learning Federation,1013.94, 30-Sep-2019
382,Revenue,CAHD,Academy Resource Base Funding,Other Public Bodies,Cabot Learning Federation,978.34, 30-Sep-2019
383,Revenue,CAHD,Academy Resource Base Funding,Other Public Bodies,Cabot Learning Federation,1134.86, 30-Sep-2019
384,Revenue,CAHD,Academy Resource Base Funding,Other Public Bodies,Cabot Learning Federation,1134.86, 30-Sep-2019
385,Revenue,CAHD,Academy Resource Base Funding,Other Public Bodies,Cabot Learning Federation,1134.86, 30-Sep-2019
386,Revenue,CAHD,Academy Resource Base Funding,Other Public Bodies,Cabot Learning Federation,978.34, 30-Sep-2019
387,Revenue,CAHD,Academy Resource Base Funding,Other Public Bodies,Cabot Learning Federation,1134.86, 30-Sep-2019
388,Revenue,CAHD,Academy Resource Base Funding,Other Public Bodies,Cabot Learning Federation,626.06, 30-Sep-2019
389,Revenue,CAHD,Academy Resource Base Funding,Other Public Bodies,Cabot Learning Federation,1134.86, 30-Sep-2019
390,Revenue,CAHD,Academy Resource Base Funding,Other Public Bodies,Cabot Learning Federation,1134.86, 30-Sep-2019
391,Revenue,CAHD,Academy Resource Base Funding,Other Public Bodies,Cabot Learning Federation,1134.86, 30-Sep-2019
392,Revenue,CAHD,Academy Resource Base Funding,Other Public Bodies,Cabot Learning Federation,1643.52, 30-Sep-2019
393,Revenue,CAHD,Academy Resource Base Funding,Other Public Bodies,Cabot Learning Federation,1643.52, 30-Sep-2019
394,Revenue,CAHD,Academy Resource Base Funding,Other Public Bodies,Cabot Learning Federation,1487.06, 30-Sep-2019
395,Revenue,CAHD,Academy Resource Base Funding,Other Public Bodies,Cabot Learning Federation,626.06, 30-Sep-2019
396,Revenue,CAHD,Academy Resource Base Funding,Other Public Bodies,Cabot Learning Federation,1643.52, 30-Sep-2019
397,Revenue,CAHD,Academy Resource Base Funding,Other Public Bodies,Cabot Learning Federation,1643.52, 30-Sep-2019
398,Revenue,CAHD,Academy Resource Base Funding,Other Public Bodies,Cabot Learning Federation,1487.06, 30-Sep-2019
399,Revenue,CAHD,Academy Resource Base Funding,Other Public Bodies,Cabot Learning Federation,1487.06, 30-Sep-2019
400,Revenue,CAHD,Statemented Support Academies,Other Public Bodies,Cabot Learning Federation,695.61, 30-Sep-2019
401,Revenue,CAHD,Statemented Support Academies,Other Public Bodies,Cabot Learning Federation,530.55, 30-Sep-2019
402,Revenue,CAHD,Statemented Support Academies,Other Public Bodies,Cabot Learning Federation,918.75, 30-Sep-2019
403,Revenue,CAHD,Statemented Support Payments to OLAs,Other L.A.'s - General,Cabot Learning Federation,872.46, 30-Sep-2019
404,Revenue,CAHD,Statemented Support Academies,Other Public Bodies,Cabot Learning Federation,554.13, 30-Sep-2019
405,Revenue,CAHD,Statemented Support Academies,Other Public Bodies,Cabot Learning Federation,742.77, 30-Sep-2019
406,Revenue,CAHD,Statemented Support Academies,Other Public Bodies,Cabot Learning Federation,778.14, 30-Sep-2019
407,Revenue,CAHD,Statemented Support Academies,Other Public Bodies,Cabot Learning Federation,943.20, 30-Sep-2019
408,Revenue,CAHD,Statemented Support Academies,Other Public Bodies,Cabot Learning Federation,813.51, 30-Sep-2019
409,Revenue,CAHD,Statemented Support Payments to OLAs,Other L.A.'s - General,Cabot Learning Federation,601.29, 30-Sep-2019
410,Revenue,CAHD,Statemented Support Academies,Other Public Bodies,Cabot Learning Federation,860.67, 30-Sep-2019
411,Revenue,CAHD,Statemented Support Academies,Other Public Bodies,Cabot Learning Federation,589.50, 30-Sep-2019
412,Revenue,CAHD,Statemented Support Academies,Other Public Bodies,Cabot Learning Federation,801.72, 30-Sep-2019
413,Revenue,CAHD,Statemented Support Academies,Other Public Bodies,Cabot Learning Federation,1096.47, 30-Sep-2019
414,Revenue,CAHD,Statemented Support Academies,Other Public Bodies,Cabot Learning Federation,730.98, 30-Sep-2019
415,Revenue,CAHD,Statemented Support Academies,Other Public Bodies,Cabot Learning Federation,907.83, 30-Sep-2019
416,Revenue,CAHD,Statemented Support Academies,Other Public Bodies,Cabot Learning Federation,530.55, 30-Sep-2019
417,Revenue,CAHD,Statemented Support Academies,Other Public Bodies,Cabot Learning Federation,742.77, 30-Sep-2019
418,Revenue,CAHD,Statemented Support Academies,Other Public Bodies,Cabot Learning Federation,907.83, 30-Sep-2019
419,Revenue,CAHD,Statemented Support Payments to OLAs,Other L.A.'s - General,Cabot Learning Federation,1072.89, 30-Sep-2019
420,Revenue,CAHD,Statemented Support Academies,Other Public Bodies,Cabot Learning Federation,1296.90, 30-Sep-2019
421,Revenue,CAHD,NHS Health Checks,Other Small Contracts,Cadbury Heath Healthcare,3059.00, 06-Sep-2019
422,Revenue,CAHD,Sexual Health,Other Small Contracts,Cadbury Heath Healthcare,1207.50, 12-Sep-2019
423,Revenue,CAHD,Sexual Health,Other Small Contracts,Cadbury Heath Healthcare,1022.04, 12-Sep-2019
424,Revenue,CAHD,CSC - Residential Placements,Permanent Residential,Cambian Childcare Ltd,750.00, 12-Sep-2019
425,Revenue,CAHD,CSC - Residential Placements,Permanent Residential,Cambian Childcare Ltd,19928.66, 10-Sep-2019
426,Revenue,CAHD,CSC - Residential Placements,Permanent Residential,Cambian Childcare Ltd,23250.00, 10-Sep-2019
427,Revenue,CAHD,CSC - Residential Placements,Permanent Residential,Cambian Childcare Ltd,3542.99, 19-Sep-2019
428,Revenue,CAHD,Post 16 High Needs Placements,Other Private Contractors,Cambian Whinfell School Limited,27747.77, 18-Sep-2019
429,Revenue,CAHD,Post 16 High Needs Placements,Other Private Contractors,Cambian Whinfell School Limited,27833.33, 18-Sep-2019
430,Revenue,CAHD,Post 16 High Needs Placements,Other Private Contractors,Cambian Whinfell School Limited,28867.27, 18-Sep-2019
431,Revenue,CAHD,Post 16 High Needs Placements,Other Private Contractors,Cambian Whinfell School Limited,28734.89, 18-Sep-2019
432,Revenue,CAHD,Post 16 High Needs Placements,Other Private Contractors,Cambian Whinfell School Limited,24166.67, 18-Sep-2019
433,Revenue,CAHD,Post 16 High Needs Placements,Other Private Contractors,Cambian Whinfell School Limited,48238.15, 18-Sep-2019
434,Revenue,CAHD,North - Community based support,Day Care / Social Activities,Camphill Communities Thornbury Limited,468.27, 06-Sep-2019
435,Revenue,CAHD,North - Community based support,Other Small Contracts,Camphill Communities Thornbury Limited,175.01, 06-Sep-2019
436,Revenue,CAHD,North - Community based support,Supported Living,Camphill Communities Thornbury Limited,491.92, 06-Sep-2019
437,Revenue,CAHD,North - Community based support,Day Care / Social Activities,Camphill Communities Thornbury Limited,846.67, 13-Sep-2019
438,Revenue,CAHD,North - Community based support,Supported Living,Camphill Communities Thornbury Limited,491.92, 13-Sep-2019
439,Revenue,CAHD,North - Community based support,Day Care / Social Activities,Camphill Communities Thornbury Limited,941.27, 20-Sep-2019
440,Revenue,CAHD,North - Community based support,Supported Living,Camphill Communities Thornbury Limited,430.43, 20-Sep-2019
441,Revenue,CAHD,North - Community based support,Day Care / Social Activities,Camphill Communities Thornbury Limited,591.25, 27-Sep-2019
442,Revenue,CAHD,North - Community based support,Other Small Contracts,Camphill Communities Thornbury Limited,170.28, 27-Sep-2019
443,Revenue,CAHD,North - Community based support,Supported Living,Camphill Communities Thornbury Limited,610.17, 27-Sep-2019
444,Revenue,CAHD,North - S117,Permanent Residential,Canjayor,3937.76, 24-Sep-2019
445,Revenue,CAHD,Central - Community based support,Other Small Contracts,Care 1st Homecare,2005.60, 05-Sep-2019
446,Revenue,CAHD,Central - Community based support,Other Small Contracts,Care 1st Homecare,2877.60, 05-Sep-2019
447,Revenue,CAHD,Central - Community based support,Other Small Contracts,Care 1st Homecare,2929.97, 06-Sep-2019
448,Revenue,CAHD,18-25 Year Olds,Other Small Contracts,Care Horizons Limited,135.24, 03-Sep-2019
449,Revenue,CAHD,Central - Community based support,Other Small Contracts,Care Horizons Limited,951.51, 03-Sep-2019
450,Revenue,CAHD,South - community based support,Other Small Contracts,Care Horizons Limited,169.05, 03-Sep-2019
451,Revenue,CAHD,North - Community based support,Day Care / Social Activities,Care Horizons Limited,352.59, 03-Sep-2019
452,Revenue,CAHD,North - Community based support,Other Small Contracts,Care Horizons Limited,478.17, 03-Sep-2019
453,Revenue,CAHD,Younger MH non-res purchasing,Other Small Contracts,Care Horizons Limited,304.29, 03-Sep-2019
454,Revenue,CAHD,18-25 Year Olds,Other Small Contracts,Care Horizons Limited,135.24, 03-Sep-2019
455,Revenue,CAHD,Central - Community based support,Other Small Contracts,Care Horizons Limited,1014.30, 03-Sep-2019
456,Revenue,CAHD,South - community based support,Other Small Contracts,Care Horizons Limited,173.88, 03-Sep-2019
457,Revenue,CAHD,North - Community based support,Day Care / Social Activities,Care Horizons Limited,400.89, 03-Sep-2019
458,Revenue,CAHD,North - Community based support,Other Small Contracts,Care Horizons Limited,478.17, 03-Sep-2019
459,Revenue,CAHD,Younger MH non-res purchasing,Other Small Contracts,Care Horizons Limited,347.76, 03-Sep-2019
460,Revenue,CAHD,18-25 Year Olds,Other Small Contracts,Care Horizons Limited,57.96, 19-Sep-2019
461,Revenue,CAHD,Central - Community based support,Other Small Contracts,Care Horizons Limited,782.46, 19-Sep-2019
462,Revenue,CAHD,South - community based support,Other Small Contracts,Care Horizons Limited,72.45, 19-Sep-2019
463,Revenue,CAHD,North - Community based support,Day Care / Social Activities,Care Horizons Limited,405.72, 19-Sep-2019
464,Revenue,CAHD,North - Community based support,Other Small Contracts,Care Horizons Limited,598.92, 19-Sep-2019
465,Revenue,CAHD,Younger MH non-res purchasing,Other Small Contracts,Care Horizons Limited,323.61, 19-Sep-2019
466,Revenue,CAHD,18-25 Year Olds,Other Small Contracts,Care Horizons Limited,57.96, 19-Sep-2019
467,Revenue,CAHD,Central - Community based support,Other Small Contracts,Care Horizons Limited,1202.67, 19-Sep-2019
468,Revenue,CAHD,South - community based support,Other Small Contracts,Care Horizons Limited,241.50, 19-Sep-2019
469,Revenue,CAHD,North - Community based support,Day Care / Social Activities,Care Horizons Limited,410.55, 19-Sep-2019
470,Revenue,CAHD,North - Community based support,Other Small Contracts,Care Horizons Limited,821.10, 19-Sep-2019
471,Revenue,CAHD,Younger MH non-res purchasing,Other Small Contracts,Care Horizons Limited,212.52, 19-Sep-2019
472,Revenue,CAHD,Central - Community based support,Other Small Contracts,Care Horizons Limited,1226.82, 23-Sep-2019
473,Revenue,CAHD,South - community based support,Other Small Contracts,Care Horizons Limited,173.88, 23-Sep-2019
474,Revenue,CAHD,North - Community based support,Day Care / Social Activities,Care Horizons Limited,410.55, 23-Sep-2019
475,Revenue,CAHD,North - Community based support,Other Small Contracts,Care Horizons Limited,956.34, 23-Sep-2019
476,Revenue,CAHD,Younger MH non-res purchasing,Other Small Contracts,Care Horizons Limited,309.12, 23-Sep-2019
477,Revenue,CAHD,Central - Community based support,Other Small Contracts,Care Horizons Limited,1125.39, 30-Sep-2019
478,Revenue,CAHD,South - community based support,Other Small Contracts,Care Horizons Limited,178.71, 30-Sep-2019
479,Revenue,CAHD,North - Community based support,Day Care / Social Activities,Care Horizons Limited,405.72, 30-Sep-2019
480,Revenue,CAHD,North - Community based support,Other Small Contracts,Care Horizons Limited,961.17, 30-Sep-2019
481,Revenue,CAHD,Younger MH non-res purchasing,Other Small Contracts,Care Horizons Limited,333.27, 30-Sep-2019
482,Revenue,CAHD,Home Care Monitoring (CM2000),Other Small Contracts,Care Horizons Limited,726.12, 26-Sep-2019
483,Revenue,CAHD,Central - Community based support,Other Small Contracts,Carepride Ltd,531.30, 17-Sep-2019
484,Revenue,CAHD,CSC - Care Leavers Independent Living,Independent Living,Caretech Community Services,4982.14, 19-Sep-2019
485,Revenue,CAHD,CSC - Care Leavers Independent Living,Independent Living,Caretech Community Services,4982.14, 26-Sep-2019
486,Revenue,CAHD,South - community based support,Other Small Contracts,Caring Comes 1st Limited,1206.15, 16-Sep-2019
487,Revenue,CAHD,South - community based support,Other Small Contracts,Caring Comes 1st Limited,1099.56, 11-Sep-2019
488,Revenue,CAHD,South - community based support,Other Small Contracts,Caring Comes 1st Limited,639.54, 16-Sep-2019
489,Revenue,CAHD,South - community based support,Other Small Contracts,Caring Comes 1st Limited,931.26, 16-Sep-2019
490,Revenue,CAHD,South - community based support,Other Small Contracts,Caring Comes 1st Limited,1380.06, 24-Sep-2019
491,Revenue,CAHD,South - community based support,Other Small Contracts,Caring Comes 1st Limited,628.32, 11-Sep-2019
492,Revenue,CAHD,South - community based support,Other Small Contracts,Caring Comes 1st Limited,940.61, 11-Sep-2019
493,Revenue,CAHD,South - community based support,Other Small Contracts,Caring Comes 1st Limited,1189.32, 17-Sep-2019
494,Revenue,CAHD,South - community based support,Other Small Contracts,Caring Comes 1st Limited,673.20, 16-Sep-2019
495,Revenue,CAHD,South - community based support,Other Small Contracts,Caring Comes 1st Limited,1391.28, 17-Sep-2019
496,Revenue,CAHD,South - community based support,Other Small Contracts,Caring Comes 1st Limited,1189.32, 17-Sep-2019
497,Revenue,CAHD,South - community based support,Other Small Contracts,Caring Comes 1st Limited,806.42, 11-Sep-2019
498,Revenue,CAHD,South - community based support,Other Small Contracts,Caring Comes 1st Limited,525.08, 11-Sep-2019
499,Revenue,CAHD,South - community based support,Other Small Contracts,Caring Comes 1st Limited,549.78, 17-Sep-2019
500,Revenue,CAHD,South - community based support,Other Small Contracts,Caring Comes 1st Limited,673.20, 17-Sep-2019
501,Revenue,CAHD,South - community based support,Other Small Contracts,Caring Comes 1st Limited,2781.60, 16-Sep-2019
502,Revenue,CAHD,South - community based support,Other Small Contracts,Caring Comes 1st Limited,1323.96, 12-Sep-2019
503,Revenue,CAHD,South - community based support,Other Small Contracts,Caring Comes 1st Limited,1161.50, 17-Sep-2019
504,Revenue,CAHD,South - community based support,Other Small Contracts,Caring Comes 1st Limited,862.50, 16-Sep-2019
505,Revenue,CAHD,South - community based support,Other Small Contracts,Caring Comes 1st Limited,1370.85, 17-Sep-2019
506,Revenue,CAHD,South - community based support,Other Small Contracts,Caring Comes 1st Limited,1391.28, 17-Sep-2019
507,Revenue,CAHD,South - community based support,Other Small Contracts,Caring Comes 1st Limited,529.59, 16-Sep-2019
508,Revenue,CAHD,South - community based support,Other Small Contracts,Caring Comes 1st Limited,5808.79, 20-Sep-2019
509,Revenue,CAHD,South - community based support,Other Small Contracts,Caring Comes 1st Limited,561.00, 11-Sep-2019
510,Revenue,CAHD,South - community based support,Other Small Contracts,Caring Comes 1st Limited,549.78, 11-Sep-2019
511,Revenue,CAHD,South - community based support,Other Small Contracts,Caring Comes 1st Limited,538.56, 16-Sep-2019
512,Revenue,CAHD,South - community based support,Other Small Contracts,Caring Comes 1st Limited,628.32, 11-Sep-2019
513,Revenue,CAHD,South - community based support,Other Small Contracts,Caring Comes 1st Limited,2120.58, 16-Sep-2019
514,Revenue,CAHD,South - community based support,Other Small Contracts,Caring Comes 1st Limited,897.60, 11-Sep-2019
515,Revenue,CAHD,South - community based support,Other Small Contracts,Caring Comes 1st Limited,1054.68, 17-Sep-2019
516,Revenue,CAHD,South - community based support,Other Small Contracts,Caring Comes 1st Limited,785.40, 17-Sep-2019
517,Revenue,CAHD,South - community based support,Other Small Contracts,Caring Comes 1st Limited,622.71, 11-Sep-2019
518,Revenue,CAHD,South - community based support,Other Small Contracts,Caring Comes 1st Limited,976.14, 11-Sep-2019
519,Revenue,CAHD,South - community based support,Other Small Contracts,Caring Comes 1st Limited,746.13, 17-Sep-2019
520,Revenue,CAHD,South - community based support,Other Small Contracts,Caring Comes 1st Limited,1486.65, 17-Sep-2019
521,Revenue,CAHD,South - community based support,Other Small Contracts,Caring Comes 1st Limited,998.58, 11-Sep-2019
522,Revenue,CAHD,South - community based support,Other Small Contracts,Caring Comes 1st Limited,1099.56, 12-Sep-2019
523,Revenue,CAHD,South - community based support,Other Small Contracts,Caring Comes 1st Limited,605.88, 11-Sep-2019
524,Revenue,CAHD,South - community based support,Other Small Contracts,Caring Comes 1st Limited,639.54, 17-Sep-2019
525,Revenue,CAHD,South - community based support,Other Small Contracts,Caring Comes 1st Limited,538.56, 17-Sep-2019
526,Revenue,CAHD,South - community based support,Other Small Contracts,Caring Comes 1st Limited,574.47, 16-Sep-2019
527,Revenue,CAHD,South - community based support,Other Small Contracts,Caring Comes 1st Limited,516.12, 16-Sep-2019
528,Revenue,CAHD,South - community based support,Other Small Contracts,Caring Comes 1st Limited,605.88, 16-Sep-2019
529,Revenue,CAHD,South - community based support,Other Small Contracts,Caring Comes 1st Limited,639.54, 17-Sep-2019
530,Revenue,CAHD,South - community based support,Other Small Contracts,Caring Comes 1st Limited,1082.73, 11-Sep-2019
531,Revenue,CAHD,South - community based support,Other Small Contracts,Caring Comes 1st Limited,1161.27, 17-Sep-2019
532,Revenue,CAHD,South - community based support,Other Small Contracts,Caring Comes 1st Limited,628.32, 11-Sep-2019
533,Revenue,CAHD,South - community based support,Other Small Contracts,Caring Comes 1st Limited,1355.75, 17-Sep-2019
534,Revenue,CAHD,South - community based support,Other Small Contracts,Caring Comes 1st Limited,673.20, 17-Sep-2019
535,Revenue,CAHD,South - community based support,Other Small Contracts,Caring Comes 1st Limited,852.72, 11-Sep-2019
536,Revenue,CAHD,South - community based support,Other Small Contracts,Caring Comes 1st Limited,942.48, 11-Sep-2019
537,Revenue,CAHD,South - community based support,Other Small Contracts,Caring Comes 1st Limited,1604.46, 11-Sep-2019
538,Revenue,CAHD,South - community based support,Other Small Contracts,Caring Comes 1st Limited,684.42, 17-Sep-2019
539,Revenue,CAHD,South - community based support,Other Small Contracts,Caring Comes 1st Limited,1391.28, 17-Sep-2019
540,Revenue,CAHD,South - community based support,Other Small Contracts,Caring Comes 1st Limited,2827.44, 17-Sep-2019
541,Revenue,CAHD,CSC - Adoption Support Fund,Post Adoption,Carly Kingswood,1362.50, 25-Sep-2019
542,Revenue,CAHD,Central - Community based support,Supported Living,Cartrefi Cymru Co Operative,1340.32, 24-Sep-2019
543,Revenue,CAHD,Central - Community based support,Other Small Contracts,Cartrefi Cymru Co-operative Ltd,7194.32, 13-Sep-2019
544,Revenue,CAHD,Statemented Support Academies,Other Public Bodies,Castle School Education Trust,530.55, 30-Sep-2019
545,Revenue,CAHD,Statemented Support Academies,Other Public Bodies,Castle School Education Trust,565.92, 30-Sep-2019
546,Revenue,CAHD,Statemented Support Academies,Other Public Bodies,Castle School Education Trust,778.14, 30-Sep-2019
547,Revenue,CAHD,Statemented Support Academies,Other Public Bodies,Castle School Education Trust,931.41, 30-Sep-2019
548,Revenue,CAHD,Statemented Support Academies,Other Public Bodies,Castle School Education Trust,542.34, 30-Sep-2019
549,Revenue,CAHD,Statemented Support Academies,Other Public Bodies,Castle School Education Trust,672.03, 30-Sep-2019
550,Revenue,CAHD,Statemented Support Academies,Other Public Bodies,Castle School Education Trust,577.71, 30-Sep-2019
551,Revenue,CAHD,Statemented Support Academies,Other Public Bodies,Castle School Education Trust,505.08, 30-Sep-2019
552,Revenue,CAHD,Statemented Support Academies,Other Public Bodies,Castle School Education Trust,860.67, 30-Sep-2019
553,Revenue,CAHD,Statemented Support Academies,Other Public Bodies,Castle School Education Trust,1461.96, 30-Sep-2019
554,Revenue,CAHD,Statemented Support Academies,Other Public Bodies,Castle School Education Trust,860.67, 30-Sep-2019
555,Revenue,CAHD,Statemented Support Academies,Other Public Bodies,Castle School Education Trust,1002.15, 30-Sep-2019
556,Revenue,CAHD,Statemented Support Academies,Other Public Bodies,Castle School Education Trust,672.03, 30-Sep-2019
557,Revenue,CAHD,Statemented Support Academies,Other Public Bodies,Castle School Education Trust,1120.05, 30-Sep-2019
558,Revenue,CAHD,Statemented Support Academies,Other Public Bodies,Castle School Education Trust,506.97, 30-Sep-2019
559,Revenue,CAHD,Statemented Support Academies,Other Public Bodies,Castle School Education Trust,636.66, 30-Sep-2019
560,Revenue,CAHD,Statemented Support Academies,Other Public Bodies,Castle School Education Trust,589.50, 30-Sep-2019
561,Revenue,CAHD,Statemented Support Academies,Other Public Bodies,Castle School Education Trust,577.71, 30-Sep-2019
562,Revenue,CAHD,Statemented Support Academies,Other Public Bodies,Castle School Education Trust,624.87, 30-Sep-2019
563,Revenue,CAHD,Statemented Support Academies,Other Public Bodies,Castle School Education Trust,825.30, 30-Sep-2019
564,Revenue,CAHD,Statemented Support Academies,Other Public Bodies,Castle School Education Trust,1190.79, 30-Sep-2019
565,Revenue,CAHD,Statemented Support Academies,Other Public Bodies,Castle School Education Trust,707.40, 30-Sep-2019
566,Revenue,CAHD,Statemented Support Academies,Other Public Bodies,Castle School Education Trust,848.88, 30-Sep-2019
567,Revenue,CAHD,Statemented Support Academies,Other Public Bodies,Castle School Education Trust,1237.95, 30-Sep-2019
568,Revenue,CAHD,Statemented Support Academies,Other Public Bodies,Castle School Education Trust,1061.10, 30-Sep-2019
569,Revenue,CAHD,Statemented Support Academies,Other Public Bodies,Castle School Education Trust,518.76, 30-Sep-2019
570,Revenue,CAHD,Statemented Support Academies,Other Public Bodies,Castle School Education Trust,577.71, 30-Sep-2019
571,Revenue,CAHD,Statemented Support Academies,Other Public Bodies,Castle School Education Trust,1143.63, 30-Sep-2019
572,Revenue,CAHD,Statemented Support Academies,Other Public Bodies,Castle School Education Trust,1072.89, 30-Sep-2019
573,Revenue,CAHD,Statemented Support Academies,Other Public Bodies,Castle School Education Trust,825.30, 30-Sep-2019
574,Revenue,CAHD,Statemented Support Academies,Other Public Bodies,Castle School Education Trust,1485.54, 30-Sep-2019
575,Revenue,CAHD,Academy Resource Base Funding,Other Public Bodies,Castle School Education Trust,1643.52, 30-Sep-2019
576,Revenue,CAHD,Academy Resource Base Funding,Other Public Bodies,Castle School Education Trust,1643.52, 30-Sep-2019
577,Revenue,CAHD,Statemented Support Academies,Other Public Bodies,Castle School Education Trust,1643.52, 30-Sep-2019
578,Revenue,CAHD,Academy Resource Base Funding,Other Public Bodies,Castle School Education Trust,1643.52, 30-Sep-2019
579,Revenue,CAHD,Academy Resource Base Funding,Other Public Bodies,Castle School Education Trust,1643.52, 30-Sep-2019
580,Revenue,CAHD,Academy Resource Base Funding,Other Public Bodies,Castle School Education Trust,1643.52, 30-Sep-2019
581,Revenue,CAHD,Academy Resource Base Funding,Other Public Bodies,Castle School Education Trust,1643.52, 30-Sep-2019
582,Revenue,CAHD,Academy Resource Base Funding,Other Public Bodies,Castle School Education Trust,1643.52, 30-Sep-2019
583,Revenue,CAHD,Academy Resource Base Funding,Other Public Bodies,Castle School Education Trust,1643.52, 30-Sep-2019
584,Revenue,CAHD,Academy Resource Base Funding,Other Public Bodies,Castle School Education Trust,1643.52, 30-Sep-2019
585,Revenue,CAHD,Statemented Support Academies,Other Public Bodies,Castle School Education Trust,1322.75, 30-Sep-2019
586,Revenue,CAHD,Statemented Support Academies,Other Public Bodies,Castle School Education Trust,1017.08, 30-Sep-2019
587,Revenue,CAHD,Statemented Support Academies,Other Public Bodies,Castle School Education Trust,672.03, 30-Sep-2019
588,Revenue,CAHD,Statemented Support Academies,Other Public Bodies,Castle School Education Trust,872.46, 30-Sep-2019
589,Revenue,CAHD,Statemented Support Academies,Other Public Bodies,Castle School Education Trust,848.88, 30-Sep-2019
590,Revenue,CAHD,Statemented Support Academies,Other Public Bodies,Castle School Education Trust,907.83, 30-Sep-2019
591,Revenue,CAHD,Statemented Support Academies,Other Public Bodies,Castle School Education Trust,1556.28, 30-Sep-2019
592,Revenue,CAHD,Statemented Support Academies,Other Public Bodies,Castle School Education Trust,1025.73, 30-Sep-2019
593,Revenue,CAHD,Statemented Support Academies,Other Public Bodies,Castle School Education Trust,1473.75, 30-Sep-2019
594,Revenue,CAHD,Statemented Support Academies,Other Public Bodies,Castle School Education Trust,630.58, 30-Sep-2019
595,Revenue,CAHD,Statemented Support Academies,Other Public Bodies,Castle School Education Trust,778.14, 30-Sep-2019
596,Revenue,CAHD,Statemented Support Academies,Other Public Bodies,Castle School Education Trust,613.08, 30-Sep-2019
597,Revenue,CAHD,North - Community based support,Day Care / Social Activities,Causeway House,2133.96, 24-Sep-2019
598,Revenue,CAHD,Central - Community based support,Day Care / Social Activities,Causeway House,1136.76, 24-Sep-2019
599,Revenue,CAHD,South - community based support,Day Care / Social Activities,Causeway House,5253.12, 24-Sep-2019
600,Revenue,CAHD,18-25 Year Olds,Day Care / Social Activities,Causeway House,1418.72, 24-Sep-2019
601,Revenue,CAHD,18-25 Year Olds,Day Care / Social Activities,Causeway House,4414.64, 24-Sep-2019
602,Revenue,CAHD,Central - Community based support,Day Care / Social Activities,Causeway House,3891.60, 24-Sep-2019
603,Revenue,CAHD,Central - Community based support,Day Care / Social Activities,Causeway House,1704.96, 24-Sep-2019
604,Revenue,CAHD,North - Community based support,Day Care / Social Activities,Causeway House,3226.20, 24-Sep-2019
605,Revenue,CAHD,North - Community based support,Day Care / Social Activities,Causeway House,4806.44, 24-Sep-2019
606,Revenue,CAHD,Central - Community based support,Day Care / Social Activities,Causeway House,3652.12, 24-Sep-2019
607,Revenue,CAHD,North - Community based support,Day Care / Social Activities,Causeway House,3149.08, 24-Sep-2019
608,Revenue,CAHD,North - Community based support,Day Care / Social Activities,Causeway House,568.32, 24-Sep-2019
609,Revenue,CAHD,South - Bed Purchasing and Direct payments,Permanent Nursing,Cedar Care Homes Limited,3095.92, 24-Sep-2019
610,Revenue,CAHD,North - bed purchasing and direct  payments,Respite Emergency - Residential,Cedar Care Homes Limited,4622.59, 24-Sep-2019
611,Revenue,CAHD,North - bed purchasing and direct  payments,Permanent Residential,Cepen Lodge,2741.48, 24-Sep-2019
612,Revenue,CAHD,South - Bed Purchasing and Direct payments,Permanent Residential,Challenge House,2834.44, 24-Sep-2019
613,Revenue,CAHD,North - S117,Permanent Residential,Challenge House,2571.40, 24-Sep-2019
614,Revenue,CAHD,North - bed purchasing and direct  payments,Permanent Residential,Challenge House,2233.00, 24-Sep-2019
615,Revenue,CAHD,North - bed purchasing and direct  payments,Permanent Residential,Challenge House,2900.00, 24-Sep-2019
616,Revenue,CAHD,North - bed purchasing and direct  payments,Permanent Residential,Challenge House,2370.72, 24-Sep-2019
617,Revenue,CAHD,Central - Bed Purchasing and Direct Payments,Permanent Residential,Challenge House,2365.60, 24-Sep-2019
618,Revenue,CAHD,Central - Bed Purchasing and Direct Payments,Permanent Residential,Challenge House,2363.40, 24-Sep-2019
619,Revenue,CAHD,North - bed purchasing and direct  payments,Permanent Residential,Challenge House,2363.40, 24-Sep-2019
620,Revenue,CAHD,Central - Bed Purchasing and Direct Payments,Respite Emergency - Residential,Challenge House,2834.44, 24-Sep-2019
621,Revenue,CAHD,North - bed purchasing and direct  payments,Permanent Residential,Challenge House,2834.40, 24-Sep-2019
622,Revenue,CAHD,North - bed purchasing and direct  payments,Permanent Nursing,Challenge House,3130.36, 24-Sep-2019
623,Revenue,CAHD,Central - Bed Purchasing and Direct Payments,Permanent Nursing,Challenge House,3000.00, 24-Sep-2019
624,Revenue,CAHD,North - S117,Permanent Nursing,Challenge House,2395.80, 24-Sep-2019
625,Revenue,CAHD,Central - Bed Purchasing and Direct Payments,Permanent Nursing,Challenge House,3056.00, 24-Sep-2019
626,Revenue,CAHD,North - bed purchasing and direct  payments,Permanent Nursing,Challenge House,2571.40, 24-Sep-2019
627,Revenue,CAHD,North - bed purchasing and direct  payments,Permanent Nursing,Challenge House,2395.80, 24-Sep-2019
628,Revenue,CAHD,North - bed purchasing and direct  payments,Permanent Nursing,Challenge House,3130.36, 24-Sep-2019
629,Revenue,CAHD,South Glos Users in South Glos Homes,Permanent Nursing,Challenge House,662.24, 24-Sep-2019
630,Revenue,CAHD,North - bed purchasing and direct  payments,Permanent Nursing,Challenge House,2087.00, 24-Sep-2019
631,Revenue,CAHD,South Glos Users in South Glos Homes,Permanent Nursing,Challenge House,662.24, 24-Sep-2019
632,Revenue,CAHD,South Glos Users in South Glos Homes,Permanent Nursing,Challenge House,662.24, 24-Sep-2019
633,Revenue,CAHD,South - Bed Purchasing and Direct payments,Permanent Nursing,Challenge House,2884.20, 24-Sep-2019
634,Revenue,CAHD,South Glos Users in South Glos Homes,Permanent Nursing,Challenge House,662.24, 24-Sep-2019
635,Revenue,CAHD,North - bed purchasing and direct  payments,Permanent Nursing,Challenge House,3335.08, 24-Sep-2019
636,Revenue,CAHD,North - bed purchasing and direct  payments,Permanent Nursing,Challenge House,3208.48, 24-Sep-2019
637,Revenue,CAHD,South Glos Users in South Glos Homes,Permanent Nursing,Challenge House,662.24, 24-Sep-2019
638,Revenue,CAHD,South Glos Users in South Glos Homes,Permanent Nursing,Challenge House,662.24, 24-Sep-2019
639,Revenue,CAHD,North - bed purchasing and direct  payments,Permanent Nursing,Challenge House,3338.84, 24-Sep-2019
640,Revenue,CAHD,South Glos Users in South Glos Homes,Permanent Nursing,Challenge House,662.24, 24-Sep-2019
641,Revenue,CAHD,South Glos Users in South Glos Homes,Permanent Nursing,Challenge House,662.24, 24-Sep-2019
642,Revenue,CAHD,South Glos Users in South Glos Homes,Permanent Nursing,Challenge House,662.24, 24-Sep-2019
643,Revenue,CAHD,South Glos Users in South Glos Homes,Permanent Nursing,Challenge House,662.24, 24-Sep-2019
644,Revenue,CAHD,South - Bed Purchasing and Direct payments,Permanent Residential,Challenge House,3000.00, 24-Sep-2019
645,Revenue,CAHD,South Glos Users in South Glos Homes,Permanent Nursing,Challenge House,662.24, 24-Sep-2019
646,Revenue,CAHD,South Glos Users in South Glos Homes,Permanent Nursing,Challenge House,3216.59, 24-Sep-2019
647,Revenue,CAHD,South Glos Users in South Glos Homes,Permanent Nursing,Challenge House,662.24, 24-Sep-2019
648,Revenue,CAHD,South Glos Users in South Glos Homes,Permanent Nursing,Challenge House,662.24, 24-Sep-2019
649,Revenue,CAHD,Central - Bed Purchasing and Direct Payments,Permanent Nursing,Challenge House,3000.00, 24-Sep-2019
650,Revenue,CAHD,Central - Bed Purchasing and Direct Payments,Permanent Nursing,Challenge House,1928.57, 24-Sep-2019
651,Revenue,CAHD,South - Bed Purchasing and Direct payments,Permanent Nursing,Challenge House,3000.00, 24-Sep-2019
652,Revenue,CAHD,South - Bed Purchasing and Direct payments,Permanent Nursing,Challenge House,528.73, 24-Sep-2019
653,Revenue,CAHD,North - bed purchasing and direct  payments,Permanent Nursing,Challenge House,2827.52, 24-Sep-2019
654,Revenue,CAHD,South Glos Users in South Glos Homes,Permanent Nursing,Challenge House,662.24, 24-Sep-2019
655,Revenue,CAHD,North - bed purchasing and direct  payments,Permanent Nursing,Challenge House,3338.84, 24-Sep-2019
656,Revenue,CAHD,South Glos Users in South Glos Homes,Permanent Nursing,Challenge House,662.24, 24-Sep-2019
657,Revenue,CAHD,South Glos Users in South Glos Homes,Permanent Nursing,Challenge House,662.24, 24-Sep-2019
658,Revenue,CAHD,South Glos Users in South Glos Homes,Permanent Nursing,Challenge House,662.24, 24-Sep-2019
659,Revenue,CAHD,North - bed purchasing and direct  payments,Permanent Nursing,Challenge House,2827.52, 24-Sep-2019
660,Revenue,CAHD,South Glos Users in South Glos Homes,Permanent Nursing,Challenge House,662.24, 24-Sep-2019
661,Revenue,CAHD,South Glos Users in South Glos Homes,Permanent Nursing,Challenge House,662.24, 24-Sep-2019
662,Revenue,CAHD,North - bed purchasing and direct  payments,Permanent Nursing,Challenge House,3263.84, 24-Sep-2019
663,Revenue,CAHD,South Glos Users in South Glos Homes,Permanent Nursing,Challenge House,662.24, 24-Sep-2019
664,Revenue,CAHD,Alexandra Way,"Provisions (Food, etc)",Charles Saunders Limited,738.34, 09-Sep-2019
665,Revenue,CAHD,Alexandra Way,"Provisions (Food, etc)",Charles Saunders Limited,509.75, 25-Sep-2019
666,Revenue,CAHD,Statemented Support Academies,Other Public Bodies,Charlton Wood Primary Academy,702.17, 30-Sep-2019
667,Revenue,CAHD,Sexual Health,Other Small Contracts,Chelsea and Westminster Hospital,581.11, 20-Sep-2019
668,Revenue,CAHD,Central - Community based support,Other Small Contracts,Cherish Able Care Limited,2133.23, 09-Sep-2019
669,Revenue,CAHD,South - community based support,Other Small Contracts,Cherish Able Care Limited,5596.86, 09-Sep-2019
670,Revenue,CAHD,North - Community based support,Other Small Contracts,Cherish Able Care Limited,1409.54, 09-Sep-2019
671,Revenue,CAHD,Central - Community based support,Other Small Contracts,Cherish Able Care Limited,2109.58, 23-Sep-2019
672,Revenue,CAHD,South - community based support,Other Small Contracts,Cherish Able Care Limited,6085.43, 23-Sep-2019
673,Revenue,CAHD,North - Community based support,Other Small Contracts,Cherish Able Care Limited,1452.11, 23-Sep-2019
674,Revenue,CAHD,Central - Community based support,Other Small Contracts,Cherish Able Care Limited,2109.58, 23-Sep-2019
675,Revenue,CAHD,South - community based support,Other Small Contracts,Cherish Able Care Limited,7293.73, 23-Sep-2019
676,Revenue,CAHD,North - Community based support,Other Small Contracts,Cherish Able Care Limited,1423.73, 23-Sep-2019
677,Revenue,CAHD,Central - Community based support,Other Small Contracts,Cherish Able Care Limited,2114.31, 30-Sep-2019
678,Revenue,CAHD,South - community based support,Other Small Contracts,Cherish Able Care Limited,7305.77, 30-Sep-2019
679,Revenue,CAHD,North - Community based support,Other Small Contracts,Cherish Able Care Limited,1442.65, 30-Sep-2019
680,Revenue,CAHD,South - community based support,Supported Living,Cherry Orchards,2648.80, 17-Sep-2019
681,Revenue,CAHD,18-25 Year Olds,Other Small Contracts,Cherry Orchards,3216.41, 16-Sep-2019
682,Revenue,CAHD,18-25 Year Olds,Other Small Contracts,Cherry Orchards,3216.40, 17-Sep-2019
683,Revenue,CAHD,S28A cases,Permanent Residential,Chescombe Lodge,9764.44, 24-Sep-2019
684,Revenue,CAHD,Early Years Inclusion Fund,Other Public Bodies,Chipping Sodbury Pre School,2000.00, 16-Sep-2019
685,Revenue,CAHD,Early Years Inclusion Fund,Other Public Bodies,Christchurch Pre School,1000.00, 19-Sep-2019
686,Revenue,CAHD,18-25 Year Olds,Other Small Contracts,Cintre,102.48, 03-Sep-2019
687,Revenue,CAHD,Central - Community based support,Other Small Contracts,Cintre,390.40, 03-Sep-2019
688,Revenue,CAHD,South - community based support,Other Small Contracts,Cintre,668.56, 03-Sep-2019
689,Revenue,CAHD,18-25 Year Olds,Other Small Contracts,Cintre,58.56, 03-Sep-2019
690,Revenue,CAHD,Central - Community based support,Other Small Contracts,Cintre,385.52, 03-Sep-2019
691,Revenue,CAHD,South - community based support,Other Small Contracts,Cintre,312.32, 03-Sep-2019
692,Revenue,CAHD,18-25 Year Olds,Other Small Contracts,Cintre,107.36, 19-Sep-2019
693,Revenue,CAHD,Central - Community based support,Other Small Contracts,Cintre,390.40, 19-Sep-2019
694,Revenue,CAHD,South - community based support,Other Small Contracts,Cintre,312.32, 19-Sep-2019
695,Revenue,CAHD,18-25 Year Olds,Other Small Contracts,Cintre,102.48, 19-Sep-2019
696,Revenue,CAHD,Central - Community based support,Other Small Contracts,Cintre,390.40, 19-Sep-2019
697,Revenue,CAHD,South - community based support,Other Small Contracts,Cintre,814.96, 19-Sep-2019
698,Revenue,CAHD,18-25 Year Olds,Other Small Contracts,Cintre,107.36, 24-Sep-2019
699,Revenue,CAHD,Central - Community based support,Other Small Contracts,Cintre,380.64, 24-Sep-2019
700,Revenue,CAHD,South - community based support,Other Small Contracts,Cintre,678.32, 24-Sep-2019
701,Revenue,CAHD,Future Bright,Fees - General,City of Bristol College,635.00, 06-Sep-2019
702,Revenue,CAHD,MH Purchasing - Younger,Permanent Residential,Claro Homes,2870.88, 24-Sep-2019
703,Revenue,CAHD,Section 117 Placements MH Younger,Permanent Residential,Claro Homes,3554.60, 24-Sep-2019
704,Revenue,CAHD,North - bed purchasing and direct  payments,Permanent Nursing,Claro Homes,3318.20, 24-Sep-2019
705,Revenue,CAHD,South - Bed Purchasing and Direct payments,Permanent Residential,Cleeve Lodge,3686.40, 24-Sep-2019
706,Revenue,CAHD,South - Bed Purchasing and Direct payments,Permanent Residential,Cleeve Lodge,3686.40, 24-Sep-2019
707,Revenue,CAHD,South - Bed Purchasing and Direct payments,Permanent Residential,Cleeve Lodge,1308.44, 24-Sep-2019
708,Revenue,CAHD,South - Bed Purchasing and Direct payments,Permanent Residential,Cleeve Lodge,2921.68, 24-Sep-2019
709,Revenue,CAHD,South - Bed Purchasing and Direct payments,Permanent Residential,Cleeve Lodge,3086.48, 24-Sep-2019
710,Revenue,CAHD,South - Bed Purchasing and Direct payments,Respite Planned - Residential,Cleeve Lodge,1428.57, 24-Sep-2019
711,Revenue,CAHD,South - Bed Purchasing and Direct payments,Respite Planned - Residential,Cleeve Lodge,571.43, 24-Sep-2019
712,Revenue,CAHD,South - Bed Purchasing and Direct payments,Permanent Residential,Cleeve Lodge,4000.00, 24-Sep-2019
713,Revenue,CAHD,South - Bed Purchasing and Direct payments,Permanent Residential,Cleeve Lodge,2893.00, 24-Sep-2019
714,Revenue,CAHD,South - Bed Purchasing and Direct payments,Permanent Residential,Cleeve Lodge,2635.60, 24-Sep-2019
715,Revenue,CAHD,North - bed purchasing and direct  payments,Permanent Nursing,Clevedon Court Nursing Home,3448.16, 24-Sep-2019
716,Revenue,CAHD,Central - Community based support,Other Small Contracts,Clover Health and Home Care Ltd,1210.68, 02-Sep-2019
717,Revenue,CAHD,South - Bed Purchasing and Direct payments,Permanent Residential,Collingwood Care Home,2826.24, 24-Sep-2019
718,Revenue,CAHD,South - Bed Purchasing and Direct payments,Permanent Residential,Collingwood Care Home,2241.28, 24-Sep-2019
719,Revenue,CAHD,South - Bed Purchasing and Direct payments,Permanent Residential,Collingwood Care Home,2420.80, 24-Sep-2019
720,Revenue,CAHD,North - bed purchasing and direct  payments,Permanent Residential,Collingwood Care Home,3000.00, 24-Sep-2019
721,Revenue,CAHD,South - Bed Purchasing and Direct payments,Permanent Residential,Collingwood Care Home,2504.28, 24-Sep-2019
722,Revenue,CAHD,Future Bright,Fees - General,CompTIA,598.00, 04-Sep-2019
723,Revenue,CAHD,South - Bed Purchasing and Direct payments,Permanent Residential,Concorde Lodge,19007.60, 24-Sep-2019
724,Revenue,CAHD,Future Bright,Fees - General,Connected Kids Limited,894.00, 13-Sep-2019
725,Revenue,CAHD,Bed and Breakfast,Bed & Breakfast,Connolly & Callaghan Limited,504.00, 12-Sep-2019
726,Revenue,CAHD,Bed and Breakfast,Bed & Breakfast,Connolly & Callaghan Limited,448.00, 12-Sep-2019
727,Revenue,CAHD,Bed and Breakfast,Bed & Breakfast,Connolly & Callaghan Limited,455.00, 12-Sep-2019
728,Revenue,CAHD,Bed and Breakfast,Bed & Breakfast,Connolly & Callaghan Limited,497.00, 12-Sep-2019
729,Revenue,CAHD,Bed and Breakfast,Bed & Breakfast,Connolly & Callaghan Limited,763.00, 27-Sep-2019
730,Revenue,CAHD,Bed and Breakfast,Bed & Breakfast,Connolly & Callaghan Limited,763.00, 30-Sep-2019
731,Revenue,CAHD,Bed and Breakfast,Bed & Breakfast,Connolly & Callaghan Limited,763.00, 30-Sep-2019
732,Revenue,CAHD,Bed and Breakfast,Bed & Breakfast,Connolly & Callaghan Limited,455.00, 20-Sep-2019
733,Revenue,CAHD,Bed and Breakfast,Bed & Breakfast,Connolly & Callaghan Limited,448.00, 12-Sep-2019
734,Revenue,CAHD,Bed and Breakfast,Bed & Breakfast,Connolly & Callaghan Limited,700.00, 12-Sep-2019
735,Revenue,CAHD,Bed and Breakfast,Bed & Breakfast,Connolly & Callaghan Limited,623.00, 12-Sep-2019
736,Revenue,CAHD,Bed and Breakfast,Bed & Breakfast,Connolly & Callaghan Limited,504.00, 20-Sep-2019
737,Revenue,CAHD,Bed and Breakfast,Bed & Breakfast,Connolly & Callaghan Limited,504.00, 12-Sep-2019
738,Revenue,CAHD,Bed and Breakfast,Bed & Breakfast,Connolly & Callaghan Limited,455.00, 11-Sep-2019
739,Revenue,CAHD,Bed and Breakfast,Bed & Breakfast,Connolly & Callaghan Limited,539.00, 11-Sep-2019
740,Revenue,CAHD,Bed and Breakfast,Bed & Breakfast,Connolly & Callaghan Limited,455.00, 03-Sep-2019
741,Revenue,CAHD,Bed and Breakfast,Bed & Breakfast,Connolly & Callaghan Limited,497.00, 11-Sep-2019
742,Revenue,CAHD,Bed and Breakfast,Bed & Breakfast,Connolly & Callaghan Limited,910.00, 03-Sep-2019
743,Revenue,CAHD,Bed and Breakfast,Bed & Breakfast,Connolly & Callaghan Limited,581.00, 05-Sep-2019
744,Revenue,CAHD,Bed and Breakfast,Bed & Breakfast,Connolly & Callaghan Limited,714.00, 06-Sep-2019
745,Revenue,CAHD,Bed and Breakfast,Bed & Breakfast,Connolly & Callaghan Limited,539.00, 11-Sep-2019
746,Revenue,CAHD,Bed and Breakfast,Bed & Breakfast,Connolly & Callaghan Limited,455.00, 11-Sep-2019
747,Revenue,CAHD,Bed and Breakfast,Bed & Breakfast,Connolly & Callaghan Limited,539.00, 11-Sep-2019
748,Revenue,CAHD,Bed and Breakfast,Bed & Breakfast,Connolly & Callaghan Limited,497.00, 05-Sep-2019
749,Revenue,CAHD,Bed and Breakfast,Bed & Breakfast,Connolly & Callaghan Limited,448.00, 11-Sep-2019
750,Revenue,CAHD,Bed and Breakfast,Bed & Breakfast,Connolly & Callaghan Limited,574.00, 05-Sep-2019
751,Revenue,CAHD,Bed and Breakfast,Bed & Breakfast,Connolly & Callaghan Limited,539.00, 05-Sep-2019
752,Revenue,CAHD,Bed and Breakfast,Bed & Breakfast,Connolly & Callaghan Limited,539.00, 11-Sep-2019
753,Revenue,CAHD,Bed and Breakfast,Bed & Breakfast,Connolly & Callaghan Limited,490.00, 06-Sep-2019
754,Revenue,CAHD,Bed and Breakfast,Bed & Breakfast,Connolly & Callaghan Limited,455.00, 11-Sep-2019
755,Revenue,CAHD,Bed and Breakfast,Bed & Breakfast,Connolly & Callaghan Limited,497.00, 11-Sep-2019
756,Revenue,CAHD,Bed and Breakfast,Bed & Breakfast,Connolly & Callaghan Limited,910.00, 06-Sep-2019
757,Revenue,CAHD,Bed and Breakfast,Bed & Breakfast,Connolly & Callaghan Limited,581.00, 06-Sep-2019
758,Revenue,CAHD,Bed and Breakfast,Bed & Breakfast,Connolly & Callaghan Limited,714.00, 06-Sep-2019
759,Revenue,CAHD,Bed and Breakfast,Bed & Breakfast,Connolly & Callaghan Limited,539.00, 06-Sep-2019
760,Revenue,CAHD,Bed and Breakfast,Bed & Breakfast,Connolly & Callaghan Limited,455.00, 13-Sep-2019
761,Revenue,CAHD,Bed and Breakfast,Bed & Breakfast,Connolly & Callaghan Limited,539.00, 11-Sep-2019
762,Revenue,CAHD,Bed and Breakfast,Bed & Breakfast,Connolly & Callaghan Limited,497.00, 06-Sep-2019
763,Revenue,CAHD,Bed and Breakfast,Bed & Breakfast,Connolly & Callaghan Limited,448.00, 06-Sep-2019
764,Revenue,CAHD,Bed and Breakfast,Bed & Breakfast,Connolly & Callaghan Limited,574.00, 06-Sep-2019
765,Revenue,CAHD,Bed and Breakfast,Bed & Breakfast,Connolly & Callaghan Limited,539.00, 06-Sep-2019
766,Revenue,CAHD,Bed and Breakfast,Bed & Breakfast,Connolly & Callaghan Limited,490.00, 23-Sep-2019
767,Revenue,CAHD,Bed and Breakfast,Bed & Breakfast,Connolly & Callaghan Limited,455.00, 13-Sep-2019
768,Revenue,CAHD,Bed and Breakfast,Bed & Breakfast,Connolly & Callaghan Limited,475.00, 13-Sep-2019
769,Revenue,CAHD,Bed and Breakfast,Bed & Breakfast,Connolly & Callaghan Limited,910.00, 13-Sep-2019
770,Revenue,CAHD,Bed and Breakfast,Bed & Breakfast,Connolly & Callaghan Limited,581.00, 13-Sep-2019
771,Revenue,CAHD,Bed and Breakfast,Bed & Breakfast,Connolly & Callaghan Limited,714.00, 13-Sep-2019
772,Revenue,CAHD,Bed and Breakfast,Bed & Breakfast,Connolly & Callaghan Limited,539.00, 13-Sep-2019
773,Revenue,CAHD,Bed and Breakfast,Bed & Breakfast,Connolly & Callaghan Limited,455.00, 20-Sep-2019
774,Revenue,CAHD,Bed and Breakfast,Bed & Breakfast,Connolly & Callaghan Limited,539.00, 19-Sep-2019
775,Revenue,CAHD,Bed and Breakfast,Bed & Breakfast,Connolly & Callaghan Limited,497.00, 13-Sep-2019
776,Revenue,CAHD,Bed and Breakfast,Bed & Breakfast,Connolly & Callaghan Limited,448.00, 13-Sep-2019
777,Revenue,CAHD,Bed and Breakfast,Bed & Breakfast,Connolly & Callaghan Limited,574.00, 20-Sep-2019
778,Revenue,CAHD,Bed and Breakfast,Bed & Breakfast,Connolly & Callaghan Limited,539.00, 13-Sep-2019
779,Revenue,CAHD,Bed and Breakfast,Bed & Breakfast,Connolly & Callaghan Limited,455.00, 27-Sep-2019
780,Revenue,CAHD,Bed and Breakfast,Bed & Breakfast,Connolly & Callaghan Limited,665.00, 27-Sep-2019
781,Revenue,CAHD,Bed and Breakfast,Bed & Breakfast,Connolly & Callaghan Limited,910.00, 27-Sep-2019
782,Revenue,CAHD,Bed and Breakfast,Bed & Breakfast,Connolly & Callaghan Limited,581.00, 27-Sep-2019
783,Revenue,CAHD,Bed and Breakfast,Bed & Breakfast,Connolly & Callaghan Limited,714.00, 27-Sep-2019
784,Revenue,CAHD,Bed and Breakfast,Bed & Breakfast,Connolly & Callaghan Limited,539.00, 27-Sep-2019
785,Revenue,CAHD,Bed and Breakfast,Bed & Breakfast,Connolly & Callaghan Limited,455.00, 27-Sep-2019
786,Revenue,CAHD,Bed and Breakfast,Bed & Breakfast,Connolly & Callaghan Limited,497.00, 27-Sep-2019
787,Revenue,CAHD,Bed and Breakfast,Bed & Breakfast,Connolly & Callaghan Limited,448.00, 27-Sep-2019
788,Revenue,CAHD,Bed and Breakfast,Bed & Breakfast,Connolly & Callaghan Limited,483.00, 27-Sep-2019
789,Revenue,CAHD,Bed and Breakfast,Bed & Breakfast,Connolly & Callaghan Limited,539.00, 27-Sep-2019
790,Revenue,CAHD,Future Bright,Fees - General,Consultancy Management & Training Services Ltd,450.00, 24-Sep-2019
791,Revenue,CAHD,Schools Specific Grant Income,Software Support & Maintenance,Contact Group,3407.04, 10-Sep-2019
792,Revenue,CAHD,Alexandra Way,Cleaning & Domestic Services,Countrywide Healthcare Supplies Ltd,947.39, 16-Sep-2019
793,Revenue,CAHD,North - bed purchasing and direct  payments,Permanent Residential,Cream Iii Ltd,8644.00, 24-Sep-2019
794,Revenue,CAHD,S28A cases,Permanent Residential,Creedy Court,10597.96, 24-Sep-2019
795,Revenue,CAHD,S28A cases,Permanent Residential,Creedy Court,8904.92, 24-Sep-2019
796,Revenue,CAHD,North - bed purchasing and direct  payments,Permanent Residential,Creedy Court,14054.00, 24-Sep-2019
797,Revenue,CAHD,EARLY YEARS DISABILITY  ACCES FUND,Preventative Assistance,Crossways Pre-School,615.00, 09-Sep-2019
798,Revenue,CAHD,Training Budget - Children`s Social Serv,Training Expenses,Cruidin Training and Consultancy Ltd,1058.50, 25-Sep-2019
799,Revenue,CAHD,Telecare,Other Supplies & Services,CSL Dualcom,546.00, 19-Sep-2019
800,Revenue,CAHD,South - Bed Purchasing and Direct payments,Permanent Residential,Daneswood,12268.80, 24-Sep-2019
801,Revenue,CAHD,South - community based support,Day Care / Social Activities,Daneswood,1413.28, 24-Sep-2019
802,Revenue,CAHD,North - bed purchasing and direct  payments,Permanent Residential,Daneswood,10264.00, 24-Sep-2019
803,Revenue,CAHD,North - S117,Permanent Nursing,Danshell Healthcare Group,10872.28, 24-Sep-2019
804,Revenue,CAHD,Jointly Funded H&SC Packages,Permanent Nursing,Danshell Healthcare Group,1613.28, 24-Sep-2019
805,Revenue,CAHD,Learning Difficulties PSL,Other Supplies & Services,Individual,2400.00, 20-Sep-2019
806,Revenue,CAHD,Children Centres - North Locality,Printing & Stationery,De Lage Landen Leasing Ltd,1253.35, 02-Sep-2019
807,Revenue,CAHD,Children Centres - South Locality,Printing & Stationery,De Lage Landen Leasing Ltd,981.10, 02-Sep-2019
808,Revenue,CAHD,South - community based support,Day Care / Social Activities,Deafblind Uk,1386.32, 17-Sep-2019
809,Revenue,CAHD,South - community based support,Day Care / Social Activities,Deafblind Uk,1352.78, 17-Sep-2019
810,Revenue,CAHD,North - Community based support,Day Care / Social Activities,Deafblind Uk,626.08, 17-Sep-2019
811,Revenue,CAHD,North - Community based support,Day Care / Social Activities,Deafblind Uk,641.76, 17-Sep-2019
812,Revenue,CAHD,South - community based support,Day Care / Social Activities,Deafblind Uk,1042.86, 27-Sep-2019
813,Revenue,CAHD,North - Community based support,Day Care / Social Activities,Deafblind Uk,641.76, 27-Sep-2019
814,Revenue,CAHD,CSC - Special Guardianship Orders,Special Payments,Individual,1381.06, 27-Sep-2019
815,Revenue,CAHD,Post 16 High Needs Placements,Other Private Contractors,Derwen College,17183.73, 11-Sep-2019
816,Revenue,CAHD,South - community based support,Supported Living,Design House,2661.20, 24-Sep-2019
817,Revenue,CAHD,South - community based support,Supported Living,Design House,3063.00, 24-Sep-2019
818,Revenue,CAHD,South - community based support,Supported Living,Design House,3132.76, 24-Sep-2019
819,Revenue,CAHD,South - community based support,Supported Living,Design House,2993.28, 24-Sep-2019
820,Revenue,CAHD,South - community based support,Day Care / Social Activities,Design House,516.32, 24-Sep-2019
821,Revenue,CAHD,South - community based support,Day Care / Social Activities,Design House,1183.20, 24-Sep-2019
822,Revenue,CAHD,South - community based support,Day Care / Social Activities,Design House,1138.60, 24-Sep-2019
823,Revenue,CAHD,Central - Community based support,Day Care / Social Activities,Design House,2440.84, 24-Sep-2019
824,Revenue,CAHD,South - community based support,Day Care / Social Activities,Design House,921.28, 24-Sep-2019
825,Revenue,CAHD,South - community based support,Supported Living,Design House,2638.60, 24-Sep-2019
826,Revenue,CAHD,South - community based support,Supported Living,Design House,2638.60, 24-Sep-2019
827,Revenue,CAHD,South - community based support,Supported Living,Design House,2149.32, 24-Sep-2019
828,Revenue,CAHD,South - community based support,Day Care / Social Activities,Design House,516.32, 24-Sep-2019
829,Revenue,CAHD,South - community based support,Supported Living,Design House,1896.52, 24-Sep-2019
830,Revenue,CAHD,South - community based support,Supported Living,Design House,2516.60, 24-Sep-2019
831,Revenue,CAHD,South - community based support,Supported Living,Design House,4307.12, 24-Sep-2019
832,Revenue,CAHD,North - Community based support,Supported Living,Design House,3054.24, 24-Sep-2019
833,Revenue,CAHD,South - community based support,Day Care / Social Activities,Design House,1505.96, 24-Sep-2019
834,Revenue,CAHD,South - community based support,Supported Living,Design House,2924.68, 24-Sep-2019
835,Revenue,CAHD,South - community based support,Supported Living,Design House,2542.80, 24-Sep-2019
836,Revenue,CAHD,South - community based support,Supported Living,Design House,2257.48, 24-Sep-2019
837,Revenue,CAHD,South - community based support,Supported Living,Design House,2257.48, 24-Sep-2019
838,Revenue,CAHD,Central - Community based support,Other Small Contracts,Dhek Bhal,42.16, 03-Sep-2019
839,Revenue,CAHD,South - community based support,Other Small Contracts,Dhek Bhal,495.38, 03-Sep-2019
840,Revenue,CAHD,Central - Community based support,Other Small Contracts,Dhek Bhal,42.16, 06-Sep-2019
841,Revenue,CAHD,South - community based support,Other Small Contracts,Dhek Bhal,500.65, 06-Sep-2019
842,Revenue,CAHD,South - community based support,Supported Living,Dimensions  Suite 2,1903.12, 24-Sep-2019
843,Revenue,CAHD,South - community based support,Supported Living,Dimensions  Suite 2,1902.28, 24-Sep-2019
844,Revenue,CAHD,South - community based support,Supported Living,Dimensions  Suite 2,1902.28, 24-Sep-2019
845,Revenue,CAHD,South - community based support,Supported Living,Dimensions  Suite 2,1902.28, 24-Sep-2019
846,Revenue,CAHD,South - Bed Purchasing and Direct payments,Permanent Residential,Dimensions  Suite 2,5630.76, 24-Sep-2019
847,Revenue,CAHD,South - Bed Purchasing and Direct payments,Permanent Residential,Dimensions  Suite 2,2806.12, 24-Sep-2019
848,Revenue,CAHD,School Improvement and Support,Premises Hire,Dings Crusaders RFC,982.33, 12-Sep-2019
849,Revenue,CAHD,School Improvement and Support,Premises Hire,Dings Crusaders RFC,433.33, 12-Sep-2019
850,Revenue,CAHD,School Improvement and Support,Premises Hire,Dings Crusaders RFC,433.33, 12-Sep-2019
851,Revenue,CAHD,Central - Community based support,Other Small Contracts,DoCare Limited,13729.20, 30-Sep-2019
852,Revenue,CAHD,South - community based support,Day Care / Social Activities,DoCare Limited,32.40, 30-Sep-2019
853,Revenue,CAHD,South - community based support,Other Small Contracts,DoCare Limited,691.47, 30-Sep-2019
854,Revenue,CAHD,North - Community based support,Other Small Contracts,DoCare Limited,5381.46, 30-Sep-2019
855,Revenue,CAHD,Central - Community based support,Other Small Contracts,DoCare Limited,13589.76, 09-Sep-2019
856,Revenue,CAHD,South - community based support,Day Care / Social Activities,DoCare Limited,91.80, 09-Sep-2019
857,Revenue,CAHD,South - community based support,Other Small Contracts,DoCare Limited,697.38, 09-Sep-2019
858,Revenue,CAHD,North - Community based support,Other Small Contracts,DoCare Limited,5220.72, 09-Sep-2019
859,Revenue,CAHD,Pathway 1 - Re-Ablement Home Care,Other Small Contracts,DoCare Limited,998.82, 30-Sep-2019
860,Revenue,CAHD,Statemented Support Academies,Other Public Bodies,Downend School,978.57, 30-Sep-2019
861,Revenue,CAHD,Statemented Support Academies,Other Public Bodies,Downend School,660.24, 30-Sep-2019
862,Revenue,CAHD,Statemented Support Academies,Other Public Bodies,Downend School,1025.73, 30-Sep-2019
863,Revenue,CAHD,Statemented Support Academies,Other Public Bodies,Downend School,1013.94, 30-Sep-2019
864,Revenue,CAHD,Statemented Support Academies,Other Public Bodies,Downend School,801.72, 30-Sep-2019
865,Revenue,CAHD,Statemented Support Academies,Other Public Bodies,Downend School,530.55, 30-Sep-2019
866,Revenue,CAHD,Statemented Support Academies,Other Public Bodies,Downend School,1108.26, 30-Sep-2019
867,Revenue,CAHD,Statemented Support Academies,Other Public Bodies,Downend School,554.13, 30-Sep-2019
868,Revenue,CAHD,Statemented Support Academies,Other Public Bodies,Downend School,1438.38, 30-Sep-2019
869,Revenue,CAHD,Statemented Support Academies,Other Public Bodies,Downend School,1709.55, 30-Sep-2019
870,Revenue,CAHD,Statemented Support Academies,Other Public Bodies,Downend School,1544.49, 30-Sep-2019
871,Revenue,CAHD,Social Lettings Agency,Other Supplies & Services,Individual,605.64, 24-Sep-2019
872,Revenue,CAHD,Bed and Breakfast,Bed & Breakfast,Individual,494.50, 27-Sep-2019
873,Revenue,CAHD,Bed and Breakfast,Bed & Breakfast,Individual,494.50, 11-Sep-2019
874,Revenue,CAHD,Bed and Breakfast,Bed & Breakfast,Individual,494.50, 24-Sep-2019
875,Revenue,CAHD,Bed and Breakfast,Bed & Breakfast,Individual,494.50, 25-Sep-2019
876,Revenue,CAHD,CSC - Vinney Green Secure Unit,Mechanical & Electrical Maintenance,E J Heating & Engineering Company Ltd,2033.00, 12-Sep-2019
877,Revenue,CAHD,North - bed purchasing and direct  payments,Permanent Residential,East Court,2763.56, 24-Sep-2019
878,Revenue,CAHD,CSC - Vinney Green Secure Unit,Long Service Awards,Edenred (UK Group) Limited,1940.00, 30-Sep-2019
879,Revenue,CAHD,South - Bed Purchasing and Direct payments,Permanent Residential,Edgecumbe Lodge,2662.40, 24-Sep-2019
880,Revenue,CAHD,South - Bed Purchasing and Direct payments,Permanent Residential,Edgecumbe Lodge,2662.40, 24-Sep-2019
881,Revenue,CAHD,South - Bed Purchasing and Direct payments,Permanent Residential,Edgecumbe Lodge,2230.32, 24-Sep-2019
882,Revenue,CAHD,Central - Bed Purchasing and Direct Payments,Respite Emergency - Residential,Edgecumbe Lodge,2642.14, 24-Sep-2019
883,Revenue,CAHD,North - S117,Permanent Residential,Edgecumbe Lodge,2719.76, 24-Sep-2019
884,Revenue,CAHD,South - Bed Purchasing and Direct payments,Permanent Residential,Edgecumbe Lodge,2662.40, 24-Sep-2019
885,Revenue,CAHD,North - bed purchasing and direct  payments,Permanent Residential,Edgecumbe Lodge,2740.00, 24-Sep-2019
886,Revenue,CAHD,South - Bed Purchasing and Direct payments,Permanent Residential,Edgecumbe Lodge,2303.60, 24-Sep-2019
887,Revenue,CAHD,South - Bed Purchasing and Direct payments,Permanent Residential,Edgecumbe Lodge,2504.28, 24-Sep-2019
888,Revenue,CAHD,South - Bed Purchasing and Direct payments,Permanent Residential,Edgecumbe Lodge,2536.84, 24-Sep-2019
889,Revenue,CAHD,South - Bed Purchasing and Direct payments,Permanent Residential,Edgecumbe Lodge,2662.40, 24-Sep-2019
890,Revenue,CAHD,South - Bed Purchasing and Direct payments,Permanent Residential,Edgemont House Ltd,7085.71, 24-Sep-2019
891,Revenue,CAHD,South - Bed Purchasing and Direct payments,Permanent Residential,Edgemont House Ltd,3200.00, 24-Sep-2019
892,Revenue,CAHD,South - Bed Purchasing and Direct payments,Permanent Residential,Edgemont House Ltd,2826.24, 24-Sep-2019
893,Revenue,CAHD,South - Bed Purchasing and Direct payments,Permanent Residential,Edgemont House Ltd,2022.76, 24-Sep-2019
894,Revenue,CAHD,South - Bed Purchasing and Direct payments,Respite Planned - Residential,Edgemont House Ltd,1092.86, 24-Sep-2019
895,Revenue,CAHD,South - Bed Purchasing and Direct payments,Respite Planned - Residential,Edgemont House Ltd,607.14, 24-Sep-2019
896,Revenue,CAHD,South Glos Users in South Glos Homes,Permanent Nursing,Edgemont View Nursing Home,662.24, 24-Sep-2019
897,Revenue,CAHD,South - Bed Purchasing and Direct payments,Permanent Nursing,Edgemont View Nursing Home,3584.00, 24-Sep-2019
898,Revenue,CAHD,South Glos Users in South Glos Homes,Permanent Nursing,Edgemont View Nursing Home,662.24, 24-Sep-2019
899,Revenue,CAHD,South Glos Users in South Glos Homes,Permanent Nursing,Edgemont View Nursing Home,662.24, 24-Sep-2019
900,Revenue,CAHD,South - Bed Purchasing and Direct payments,Permanent Nursing,Edgemont View Nursing Home,2560.00, 24-Sep-2019
901,Revenue,CAHD,South Glos Users in South Glos Homes,Permanent Nursing,Edgemont View Nursing Home,662.24, 24-Sep-2019
902,Revenue,CAHD,South - Bed Purchasing and Direct payments,Permanent Nursing,Edgemont View Nursing Home,4129.44, 24-Sep-2019
903,Revenue,CAHD,South Glos Users in South Glos Homes,Permanent Nursing,Edgemont View Nursing Home,662.24, 24-Sep-2019
904,Revenue,CAHD,South Glos Users in South Glos Homes,Permanent Nursing,Edgemont View Nursing Home,662.24, 24-Sep-2019
905,Revenue,CAHD,South Glos Users in South Glos Homes,Permanent Nursing,Edgemont View Nursing Home,662.24, 24-Sep-2019
906,Revenue,CAHD,South Glos Users in South Glos Homes,Permanent Nursing,Edgemont View Nursing Home,662.24, 24-Sep-2019
907,Revenue,CAHD,South Glos Users in South Glos Homes,Permanent Nursing,Edgemont View Nursing Home,662.24, 24-Sep-2019
908,Revenue,CAHD,South - Bed Purchasing and Direct payments,Permanent Nursing,Edgemont View Nursing Home,3005.16, 24-Sep-2019
909,Revenue,CAHD,South Glos Users in South Glos Homes,Permanent Nursing,Edgemont View Nursing Home,662.24, 24-Sep-2019
910,Revenue,CAHD,South Glos Users in South Glos Homes,Permanent Nursing,Edgemont View Nursing Home,662.24, 24-Sep-2019
911,Revenue,CAHD,South Glos Users in South Glos Homes,Permanent Nursing,Edgemont View Nursing Home,662.24, 24-Sep-2019
912,Revenue,CAHD,South - Bed Purchasing and Direct payments,Respite Emergency - Residential,Edgemont View Nursing Home,1500.00, 24-Sep-2019
913,Revenue,CAHD,South Glos Users in South Glos Homes,Permanent Nursing,Edgemont View Nursing Home,662.24, 24-Sep-2019
914,Revenue,CAHD,South - Bed Purchasing and Direct payments,Permanent Nursing,Edgemont View Nursing Home,3005.16, 24-Sep-2019
915,Revenue,CAHD,South Glos Users in South Glos Homes,Permanent Nursing,Edgemont View Nursing Home,662.24, 24-Sep-2019
916,Revenue,CAHD,South Glos Users in South Glos Homes,Permanent Nursing,Edgemont View Nursing Home,662.24, 24-Sep-2019
917,Revenue,CAHD,South - Bed Purchasing and Direct payments,Permanent Nursing,Edgemont View Nursing Home,3584.00, 24-Sep-2019
918,Revenue,CAHD,South Glos Users in South Glos Homes,Permanent Nursing,Edgemont View Nursing Home,662.24, 24-Sep-2019
919,Revenue,CAHD,South - Bed Purchasing and Direct payments,Permanent Nursing,Edgemont View Nursing Home,3400.00, 24-Sep-2019
920,Revenue,CAHD,South Glos Users in South Glos Homes,Permanent Nursing,Edgemont View Nursing Home,662.24, 24-Sep-2019
921,Revenue,CAHD,CSC - Special Guardianship Orders,Special Payments,Ekom Bassey Ezeigwe,1365.06, 27-Sep-2019
922,Revenue,CAHD,Planning and Partnerships Procurement,Other Supplies & Services,Eldercare,3034.14, 30-Sep-2019
923,Revenue,CAHD,Planning and Partnerships Procurement,Other Supplies & Services,Eldercare,2561.89, 30-Sep-2019
924,Revenue,CAHD,Pathway 1 - Re-Ablement Home Care,Other Small Contracts,Elite Home Care Ltd,724.16, 30-Sep-2019
925,Revenue,CAHD,South - community based support,Day Care / Social Activities,Elite Home Care Ltd,218.24, 03-Sep-2019
926,Revenue,CAHD,South - community based support,Other Small Contracts,Elite Home Care Ltd,8684.94, 03-Sep-2019
927,Revenue,CAHD,North - Community based support,Other Small Contracts,Elite Home Care Ltd,282.72, 03-Sep-2019
928,Revenue,CAHD,South - community based support,Day Care / Social Activities,Elite Home Care Ltd,198.40, 03-Sep-2019
929,Revenue,CAHD,South - community based support,Other Small Contracts,Elite Home Care Ltd,9411.78, 03-Sep-2019
930,Revenue,CAHD,North - Community based support,Other Small Contracts,Elite Home Care Ltd,376.96, 03-Sep-2019
931,Revenue,CAHD,South - community based support,Day Care / Social Activities,Elite Home Care Ltd,198.40, 09-Sep-2019
932,Revenue,CAHD,South - community based support,Other Small Contracts,Elite Home Care Ltd,8816.75, 09-Sep-2019
933,Revenue,CAHD,North - Community based support,Other Small Contracts,Elite Home Care Ltd,391.84, 09-Sep-2019
934,Revenue,CAHD,South - community based support,Day Care / Social Activities,Elite Home Care Ltd,218.24, 19-Sep-2019
935,Revenue,CAHD,South - community based support,Other Small Contracts,Elite Home Care Ltd,9113.04, 19-Sep-2019
936,Revenue,CAHD,North - Community based support,Other Small Contracts,Elite Home Care Ltd,386.88, 19-Sep-2019
937,Revenue,CAHD,South - community based support,Day Care / Social Activities,Elite Home Care Ltd,198.40, 23-Sep-2019
938,Revenue,CAHD,South - community based support,Other Small Contracts,Elite Home Care Ltd,8810.94, 23-Sep-2019
939,Revenue,CAHD,North - Community based support,Other Small Contracts,Elite Home Care Ltd,391.84, 23-Sep-2019
940,Revenue,CAHD,South - community based support,Day Care / Social Activities,Elite Home Care Ltd,198.40, 30-Sep-2019
941,Revenue,CAHD,South - community based support,Other Small Contracts,Elite Home Care Ltd,8314.43, 30-Sep-2019
942,Revenue,CAHD,North - Community based support,Other Small Contracts,Elite Home Care Ltd,386.88, 30-Sep-2019
943,Revenue,CAHD,CSC - Legal Fees,Legal Fees,Individual,1000.00, 11-Sep-2019
944,Revenue,CAHD,CSC - Legal Fees,Legal Fees,Individual,500.00, 26-Sep-2019
945,Revenue,CAHD,CSC - Legal Fees,Legal Fees,Individual,750.00, 26-Sep-2019
946,Revenue,CAHD,Special ISB,Other Public Bodies,Enable Trust,626.06, 30-Sep-2019
947,Revenue,CAHD,Special ISB,Other Public Bodies,Enable Trust,1134.86, 30-Sep-2019
948,Revenue,CAHD,Special ISB,Other Public Bodies,Enable Trust,1134.86, 30-Sep-2019
949,Revenue,CAHD,Special ISB,Other Public Bodies,Enable Trust,1134.86, 30-Sep-2019
950,Revenue,CAHD,Special ISB,Other Public Bodies,Enable Trust,1134.86, 30-Sep-2019
951,Revenue,CAHD,Special ISB,Other Public Bodies,Enable Trust,1487.06, 30-Sep-2019
952,Revenue,CAHD,Special ISB,Other Public Bodies,Enable Trust,1487.06, 30-Sep-2019
953,Revenue,CAHD,Special ISB,Other Public Bodies,Enable Trust,1134.86, 30-Sep-2019
954,Revenue,CAHD,Special ISB,Other Public Bodies,Enable Trust,1134.86, 30-Sep-2019
955,Revenue,CAHD,Special ISB,Other Public Bodies,Enable Trust,1487.06, 30-Sep-2019
956,Revenue,CAHD,Special ISB,Other Public Bodies,Enable Trust,860.92, 30-Sep-2019
957,Revenue,CAHD,Special ISB,Other Public Bodies,Enable Trust,1487.06, 30-Sep-2019
958,Revenue,CAHD,Special ISB,Other Public Bodies,Enable Trust,860.92, 30-Sep-2019
959,Revenue,CAHD,Special ISB,Other Public Bodies,Enable Trust,1134.86, 30-Sep-2019
960,Revenue,CAHD,Special ISB,Other Public Bodies,Enable Trust,1134.86, 30-Sep-2019
961,Revenue,CAHD,Special ISB,Other Public Bodies,Enable Trust,1134.86, 30-Sep-2019
962,Revenue,CAHD,Special ISB,Other Public Bodies,Enable Trust,860.92, 30-Sep-2019
963,Revenue,CAHD,Special ISB,Other Public Bodies,Enable Trust,2113.12, 30-Sep-2019
964,Revenue,CAHD,Special ISB,Other Public Bodies,Enable Trust,1134.86, 30-Sep-2019
965,Revenue,CAHD,Special ISB,Other Public Bodies,Enable Trust,1487.06, 30-Sep-2019
966,Revenue,CAHD,Special ISB,Other Public Bodies,Enable Trust,1134.86, 30-Sep-2019
967,Revenue,CAHD,Special ISB,Other Public Bodies,Enable Trust,626.06, 30-Sep-2019
968,Revenue,CAHD,Special ISB,Other Public Bodies,Enable Trust,1134.86, 30-Sep-2019
969,Revenue,CAHD,Special ISB,Other Public Bodies,Enable Trust,1487.06, 30-Sep-2019
970,Revenue,CAHD,Special ISB,Other Public Bodies,Enable Trust,1487.06, 30-Sep-2019
971,Revenue,CAHD,Special ISB,Other Public Bodies,Enable Trust,1134.86, 30-Sep-2019
972,Revenue,CAHD,Special ISB,Other Public Bodies,Enable Trust,860.92, 30-Sep-2019
973,Revenue,CAHD,Special ISB,Other Public Bodies,Enable Trust,860.92, 30-Sep-2019
974,Revenue,CAHD,Special ISB,Other Public Bodies,Enable Trust,1134.86, 30-Sep-2019
975,Revenue,CAHD,Special ISB,Other Public Bodies,Enable Trust,1487.06, 30-Sep-2019
976,Revenue,CAHD,Special ISB,Other Public Bodies,Enable Trust,1134.86, 30-Sep-2019
977,Revenue,CAHD,Special ISB,Other Public Bodies,Enable Trust,1487.06, 30-Sep-2019
978,Revenue,CAHD,Special ISB,Other Public Bodies,Enable Trust,860.92, 30-Sep-2019
979,Revenue,CAHD,Special ISB,Other Public Bodies,Enable Trust,1487.06, 30-Sep-2019
980,Revenue,CAHD,Special ISB,Other Public Bodies,Enable Trust,1134.86, 30-Sep-2019
981,Revenue,CAHD,Special ISB,Other Public Bodies,Enable Trust,1134.86, 30-Sep-2019
982,Revenue,CAHD,Special ISB,Other Public Bodies,Enable Trust,1134.86, 30-Sep-2019
983,Revenue,CAHD,Special ISB,Other Public Bodies,Enable Trust,860.92, 30-Sep-2019
984,Revenue,CAHD,Special ISB,Other Public Bodies,Enable Trust,1487.06, 30-Sep-2019
985,Revenue,CAHD,Special ISB,Other Public Bodies,Enable Trust,860.92, 30-Sep-2019
986,Revenue,CAHD,Special ISB,Other Public Bodies,Enable Trust,1134.86, 30-Sep-2019
987,Revenue,CAHD,Special ISB,Other Public Bodies,Enable Trust,1487.06, 30-Sep-2019
988,Revenue,CAHD,Special ISB,Other Public Bodies,Enable Trust,2113.12, 30-Sep-2019
989,Revenue,CAHD,Special ISB,Other Public Bodies,Enable Trust,1134.86, 30-Sep-2019
990,Revenue,CAHD,Special ISB,Other Public Bodies,Enable Trust,860.92, 30-Sep-2019
991,Revenue,CAHD,Special ISB,Other Public Bodies,Enable Trust,860.92, 30-Sep-2019
992,Revenue,CAHD,Special ISB,Other Public Bodies,Enable Trust,1134.86, 30-Sep-2019
993,Revenue,CAHD,Special ISB,Other Public Bodies,Enable Trust,1134.86, 30-Sep-2019
994,Revenue,CAHD,Special ISB,Other Public Bodies,Enable Trust,860.92, 30-Sep-2019
995,Revenue,CAHD,Special ISB,Other Public Bodies,Enable Trust,1134.86, 30-Sep-2019
996,Revenue,CAHD,Special ISB,Other Public Bodies,Enable Trust,1487.06, 30-Sep-2019
997,Revenue,CAHD,Special ISB,Other Public Bodies,Enable Trust,1487.06, 30-Sep-2019
998,Revenue,CAHD,Special ISB,Other Public Bodies,Enable Trust,1487.06, 30-Sep-2019
999,Revenue,CAHD,Special ISB,Other Public Bodies,Enable Trust,860.92, 30-Sep-2019
1000,Revenue,CAHD,Special ISB,Other Public Bodies,Enable Trust,860.92, 30-Sep-2019
1001,Revenue,CAHD,Special ISB,Other Public Bodies,Enable Trust,1487.06, 30-Sep-2019
1002,Revenue,CAHD,Special ISB,Other Public Bodies,Enable Trust,860.92, 30-Sep-2019
1003,Revenue,CAHD,Special ISB,Other Public Bodies,Enable Trust,1134.86, 30-Sep-2019
1004,Revenue,CAHD,Special ISB,Other Public Bodies,Enable Trust,1487.06, 30-Sep-2019
1005,Revenue,CAHD,Special ISB,Other Public Bodies,Enable Trust,1134.86, 30-Sep-2019
1006,Revenue,CAHD,Special ISB,Other Public Bodies,Enable Trust,1134.86, 30-Sep-2019
1007,Revenue,CAHD,Special ISB,Other Public Bodies,Enable Trust,1134.86, 30-Sep-2019
1008,Revenue,CAHD,Special ISB,Other Public Bodies,Enable Trust,1487.06, 30-Sep-2019
1009,Revenue,CAHD,Special ISB,Other Public Bodies,Enable Trust,1134.86, 30-Sep-2019
1010,Revenue,CAHD,Special ISB,Other Public Bodies,Enable Trust,1487.06, 30-Sep-2019
1011,Revenue,CAHD,Special ISB,Other Public Bodies,Enable Trust,1487.06, 30-Sep-2019
1012,Revenue,CAHD,Special ISB,Other Public Bodies,Enable Trust,1134.86, 30-Sep-2019
1013,Revenue,CAHD,Special ISB,Other Public Bodies,Enable Trust,1134.86, 30-Sep-2019
1014,Revenue,CAHD,Special ISB,Other Public Bodies,Enable Trust,1134.86, 30-Sep-2019
1015,Revenue,CAHD,Special ISB,Other Public Bodies,Enable Trust,860.92, 30-Sep-2019
1016,Revenue,CAHD,Special ISB,Other Public Bodies,Enable Trust,1134.86, 30-Sep-2019
1017,Revenue,CAHD,Special ISB,Other Public Bodies,Enable Trust,1643.52, 30-Sep-2019
1018,Revenue,CAHD,Special ISB,Other Public Bodies,Enable Trust,1134.86, 30-Sep-2019
1019,Revenue,CAHD,Special ISB,Other Public Bodies,Enable Trust,1134.86, 30-Sep-2019
1020,Revenue,CAHD,Special ISB,Other Public Bodies,Enable Trust,1134.86, 30-Sep-2019
1021,Revenue,CAHD,Special ISB,Other Public Bodies,Enable Trust,860.92, 30-Sep-2019
1022,Revenue,CAHD,Special ISB,Other Public Bodies,Enable Trust,1134.86, 30-Sep-2019
1023,Revenue,CAHD,Special ISB,Other Public Bodies,Enable Trust,860.92, 30-Sep-2019
1024,Revenue,CAHD,Special ISB,Other Public Bodies,Enable Trust,1134.86, 30-Sep-2019
1025,Revenue,CAHD,Special ISB,Other Public Bodies,Enable Trust,2426.14, 30-Sep-2019
1026,Revenue,CAHD,Special ISB,Other Public Bodies,Enable Trust,626.06, 30-Sep-2019
1027,Revenue,CAHD,Special ISB,Other Public Bodies,Enable Trust,1643.52, 30-Sep-2019
1028,Revenue,CAHD,Special ISB,Other Public Bodies,Enable Trust,1643.52, 30-Sep-2019
1029,Revenue,CAHD,Special ISB,Other Public Bodies,Enable Trust,1487.06, 30-Sep-2019
1030,Revenue,CAHD,Special ISB,Other Public Bodies,Enable Trust,860.92, 30-Sep-2019
1031,Revenue,CAHD,Special ISB,Other Public Bodies,Enable Trust,2426.14, 30-Sep-2019
1032,Revenue,CAHD,Special ISB,Other Public Bodies,Enable Trust,2426.14, 30-Sep-2019
1033,Revenue,CAHD,Special ISB,Other Public Bodies,Enable Trust,1643.52, 30-Sep-2019
1034,Revenue,CAHD,Special ISB,Other Public Bodies,Enable Trust,1134.86, 30-Sep-2019
1035,Revenue,CAHD,Special ISB,Other Public Bodies,Enable Trust,1134.86, 30-Sep-2019
1036,Revenue,CAHD,Special ISB,Other Public Bodies,Enable Trust,2113.12, 30-Sep-2019
1037,Revenue,CAHD,Special ISB,Other Public Bodies,Enable Trust,1643.52, 30-Sep-2019
1038,Revenue,CAHD,Special ISB,Other Public Bodies,Enable Trust,860.92, 30-Sep-2019
1039,Revenue,CAHD,Special ISB,Other Public Bodies,Enable Trust,1643.52, 30-Sep-2019
1040,Revenue,CAHD,Special ISB,Other Public Bodies,Enable Trust,1134.86, 30-Sep-2019
1041,Revenue,CAHD,Special ISB,Other Public Bodies,Enable Trust,1134.86, 30-Sep-2019
1042,Revenue,CAHD,Special ISB,Other Public Bodies,Enable Trust,1643.52, 30-Sep-2019
1043,Revenue,CAHD,Special ISB,Other Public Bodies,Enable Trust,860.92, 30-Sep-2019
1044,Revenue,CAHD,Special ISB,Other Public Bodies,Enable Trust,860.92, 30-Sep-2019
1045,Revenue,CAHD,Special ISB,Other Public Bodies,Enable Trust,1643.52, 30-Sep-2019
1046,Revenue,CAHD,Special ISB,Other Public Bodies,Enable Trust,1643.52, 30-Sep-2019
1047,Revenue,CAHD,Special ISB,Other Public Bodies,Enable Trust,860.92, 30-Sep-2019
1048,Revenue,CAHD,Special ISB,Other Public Bodies,Enable Trust,1134.86, 30-Sep-2019
1049,Revenue,CAHD,Special ISB,Other Public Bodies,Enable Trust,978.34, 30-Sep-2019
1050,Revenue,CAHD,Special ISB,Other Public Bodies,Enable Trust,860.92, 30-Sep-2019
1051,Revenue,CAHD,Special ISB,Other Public Bodies,Enable Trust,1134.86, 30-Sep-2019
1052,Revenue,CAHD,Special ISB,Other Public Bodies,Enable Trust,1643.52, 30-Sep-2019
1053,Revenue,CAHD,Special ISB,Other Public Bodies,Enable Trust,1643.52, 30-Sep-2019
1054,Revenue,CAHD,Special ISB,Other Public Bodies,Enable Trust,2113.12, 30-Sep-2019
1055,Revenue,CAHD,Special ISB,Other Public Bodies,Enable Trust,1643.52, 30-Sep-2019
1056,Revenue,CAHD,Special ISB,Other Public Bodies,Enable Trust,1134.86, 30-Sep-2019
1057,Revenue,CAHD,Special ISB,Other Public Bodies,Enable Trust,2113.12, 30-Sep-2019
1058,Revenue,CAHD,Special ISB,Other Public Bodies,Enable Trust,860.92, 30-Sep-2019
1059,Revenue,CAHD,Special ISB,Other Public Bodies,Enable Trust,860.92, 30-Sep-2019
1060,Revenue,CAHD,Special ISB,Other Public Bodies,Enable Trust,1134.86, 30-Sep-2019
1061,Revenue,CAHD,Special ISB,Other Public Bodies,Enable Trust,1134.86, 30-Sep-2019
1062,Revenue,CAHD,Special ISB,Other Public Bodies,Enable Trust,1134.86, 30-Sep-2019
1063,Revenue,CAHD,Special ISB,Other Public Bodies,Enable Trust,2113.12, 30-Sep-2019
1064,Revenue,CAHD,Special ISB,Other Public Bodies,Enable Trust,860.92, 30-Sep-2019
1065,Revenue,CAHD,Special ISB,Other Public Bodies,Enable Trust,1134.86, 30-Sep-2019
1066,Revenue,CAHD,Special ISB,Other Public Bodies,Enable Trust,1643.52, 30-Sep-2019
1067,Revenue,CAHD,Special ISB,Other Public Bodies,Enable Trust,860.92, 30-Sep-2019
1068,Revenue,CAHD,Special ISB,Other Public Bodies,Enable Trust,2113.12, 30-Sep-2019
1069,Revenue,CAHD,Special ISB,Other Public Bodies,Enable Trust,860.92, 30-Sep-2019
1070,Revenue,CAHD,Special ISB,Other Public Bodies,Enable Trust,860.92, 30-Sep-2019
1071,Revenue,CAHD,Special ISB,Other Public Bodies,Enable Trust,1134.86, 30-Sep-2019
1072,Revenue,CAHD,Special ISB,Other Public Bodies,Enable Trust,1134.86, 30-Sep-2019
1073,Revenue,CAHD,Special ISB,Other Public Bodies,Enable Trust,1643.52, 30-Sep-2019
1074,Revenue,CAHD,Special ISB,Other Public Bodies,Enable Trust,1134.86, 30-Sep-2019
1075,Revenue,CAHD,Special ISB,Other Public Bodies,Enable Trust,860.92, 30-Sep-2019
1076,Revenue,CAHD,Special ISB,Other Public Bodies,Enable Trust,860.92, 30-Sep-2019
1077,Revenue,CAHD,Special ISB,Other Public Bodies,Enable Trust,1134.86, 30-Sep-2019
1078,Revenue,CAHD,Special ISB,Other Public Bodies,Enable Trust,1134.86, 30-Sep-2019
1079,Revenue,CAHD,Special ISB,Other Public Bodies,Enable Trust,1134.86, 30-Sep-2019
1080,Revenue,CAHD,Special ISB,Other Public Bodies,Enable Trust,1455.68, 30-Sep-2019
1081,Revenue,CAHD,Special ISB,Other Public Bodies,Enable Trust,1134.86, 30-Sep-2019
1082,Revenue,CAHD,Special ISB,Other Public Bodies,Enable Trust,2113.12, 30-Sep-2019
1083,Revenue,CAHD,Special ISB,Other Public Bodies,Enable Trust,1643.52, 30-Sep-2019
1084,Revenue,CAHD,Special ISB,Other Public Bodies,Enable Trust,1134.86, 30-Sep-2019
1085,Revenue,CAHD,Special ISB,Other Public Bodies,Enable Trust,860.92, 30-Sep-2019
1086,Revenue,CAHD,Special ISB,Other Public Bodies,Enable Trust,1134.86, 30-Sep-2019
1087,Revenue,CAHD,Special ISB,Other Public Bodies,Enable Trust,1643.52, 30-Sep-2019
1088,Revenue,CAHD,Special ISB,Other Public Bodies,Enable Trust,1643.52, 30-Sep-2019
1089,Revenue,CAHD,Special ISB,Other Public Bodies,Enable Trust,2426.14, 30-Sep-2019
1090,Revenue,CAHD,Special ISB,Other Public Bodies,Enable Trust,1643.52, 30-Sep-2019
1091,Revenue,CAHD,Special ISB,Other Public Bodies,Enable Trust,1134.86, 30-Sep-2019
1092,Revenue,CAHD,Special ISB,Other Public Bodies,Enable Trust,1134.86, 30-Sep-2019
1093,Revenue,CAHD,Special ISB,Other Public Bodies,Enable Trust,860.92, 30-Sep-2019
1094,Revenue,CAHD,Special ISB,Other Public Bodies,Enable Trust,1134.86, 30-Sep-2019
1095,Revenue,CAHD,Special ISB,Other Public Bodies,Enable Trust,1134.86, 30-Sep-2019
1096,Revenue,CAHD,Special ISB,Other Public Bodies,Enable Trust,1134.86, 30-Sep-2019
1097,Revenue,CAHD,Special ISB,Other Public Bodies,Enable Trust,860.92, 30-Sep-2019
1098,Revenue,CAHD,Special ISB,Other Public Bodies,Enable Trust,860.92, 30-Sep-2019
1099,Revenue,CAHD,Special ISB,Other Public Bodies,Enable Trust,860.92, 30-Sep-2019
1100,Revenue,CAHD,Special ISB,Other Public Bodies,Enable Trust,860.92, 30-Sep-2019
1101,Revenue,CAHD,Special ISB,Other Public Bodies,Enable Trust,1643.52, 30-Sep-2019
1102,Revenue,CAHD,South - community based support,Day Care / Social Activities,Epiphany In Care,1163.74, 23-Sep-2019
1103,Revenue,CAHD,South - community based support,Day Care / Social Activities,Epiphany In Care,1343.45, 23-Sep-2019
1104,Revenue,CAHD,South - community based support,Day Care / Social Activities,Epiphany In Care,1202.80, 20-Sep-2019
1105,Revenue,CAHD,Central - Community based support,Other Small Contracts,Epiphany In Care,1149.87, 27-Sep-2019
1106,Revenue,CAHD,North - Community based support,Other Small Contracts,Epiphany In Care,4644.00, 30-Sep-2019
1107,Revenue,CAHD,South - community based support,Day Care / Social Activities,Epiphany In Care,640.20, 20-Sep-2019
1108,Revenue,CAHD,South - Bed Purchasing and Direct payments,Permanent Nursing,Epworth House,16896.00, 24-Sep-2019
1109,Revenue,CAHD,South - Bed Purchasing and Direct payments,Permanent Nursing,Epworth House,13714.29, 24-Sep-2019
1110,Revenue,CAHD,South - Bed Purchasing and Direct payments,Permanent Nursing,Epworth House,3072.00, 24-Sep-2019
1111,Revenue,CAHD,South - Bed Purchasing and Direct payments,Fees & Charges Income - General,Epworth House,2505.53, 24-Sep-2019
1112,Revenue,CAHD,Travel to School - General Accout,Consultants Fees,Ernst & Young LLP,67000.00, 09-Sep-2019
1113,Revenue,CAHD,South - Bed Purchasing and Direct payments,Permanent Residential,Evolve House,2681.76, 24-Sep-2019
1114,Revenue,CAHD,Placements OLA Special Schools and RB,Other L.A.'s - General,Excalibur Academies Trust T/A,1511.83, 20-Sep-2019
1115,Revenue,CAHD,Post 16 High Needs Placements,Other Private Contractors,Exeter Royal Academy For Deaf Education,2157.46, 27-Sep-2019
1116,Revenue,CAHD,Independent Special Placements - Pre 16,Other Private Contractors,Exeter Royal Academy For Deaf Education,1966.00, 06-Sep-2019
1117,Revenue,CAHD,Independent Special Placements - Pre 16,Other Private Contractors,Exeter Royal Academy For Deaf Education,16513.00, 03-Sep-2019
1118,Revenue,CAHD,Post 16 High Needs Placements,Other Private Contractors,Exeter Royal Academy For Deaf Education,34152.00, 30-Sep-2019
1119,Revenue,CAHD,Extra Care Housing,Private & Voluntary Home Care,Extra Care Charitable Trust,30382.22, 12-Sep-2019
1120,Revenue,CAHD,South - Bed Purchasing and Direct payments,Permanent Nursing,Fairview Court,3810.56, 24-Sep-2019
1121,Revenue,CAHD,South Glos Users in South Glos Homes,Permanent Nursing,Fairview Court,662.24, 24-Sep-2019
1122,Revenue,CAHD,South Glos Users in South Glos Homes,Permanent Nursing,Fairview Court,662.24, 24-Sep-2019
1123,Revenue,CAHD,South Glos Users in South Glos Homes,Permanent Nursing,Fairview Court,662.24, 24-Sep-2019
1124,Revenue,CAHD,South - Bed Purchasing and Direct payments,Permanent Nursing,Fairview Court,3810.56, 24-Sep-2019
1125,Revenue,CAHD,South Glos Users in South Glos Homes,Permanent Nursing,Fairview Court,662.24, 24-Sep-2019
1126,Revenue,CAHD,South Glos Users in South Glos Homes,Permanent Nursing,Fairview Court,662.24, 24-Sep-2019
1127,Revenue,CAHD,South Glos Users in South Glos Homes,Permanent Nursing,Fairview Court,662.24, 24-Sep-2019
1128,Revenue,CAHD,South Glos Users in South Glos Homes,Permanent Nursing,Fairview Court,662.24, 24-Sep-2019
1129,Revenue,CAHD,South Glos Users in South Glos Homes,Permanent Nursing,Fairview Court,662.24, 24-Sep-2019
1130,Revenue,CAHD,South - Bed Purchasing and Direct payments,Permanent Nursing,Fairview Court,3547.76, 24-Sep-2019
1131,Revenue,CAHD,South Glos Users in South Glos Homes,Permanent Nursing,Fairview Court,662.24, 24-Sep-2019
1132,Revenue,CAHD,South - Bed Purchasing and Direct payments,Permanent Nursing,Fairview Court,3506.00, 24-Sep-2019
1133,Revenue,CAHD,South Glos Users in South Glos Homes,Permanent Nursing,Fairview Court,662.24, 24-Sep-2019
1134,Revenue,CAHD,South Glos Users in South Glos Homes,Permanent Nursing,Fairview Court,662.24, 24-Sep-2019
1135,Revenue,CAHD,South Glos Users in South Glos Homes,Permanent Nursing,Fairview Court,662.24, 24-Sep-2019
1136,Revenue,CAHD,South Glos Users in South Glos Homes,Permanent Nursing,Fairview Court,662.24, 24-Sep-2019
1137,Revenue,CAHD,South - S117,Permanent Nursing,Fairview Court,4173.84, 24-Sep-2019
1138,Revenue,CAHD,South Glos Users in South Glos Homes,Permanent Nursing,Fairview Court,662.24, 24-Sep-2019
1139,Revenue,CAHD,South Glos Users in South Glos Homes,Permanent Nursing,Fairview Court,662.24, 24-Sep-2019
1140,Revenue,CAHD,South - Bed Purchasing and Direct payments,Permanent Nursing,Fairview Court,3382.48, 24-Sep-2019
1141,Revenue,CAHD,South Glos Users in South Glos Homes,Permanent Nursing,Fairview Court,662.24, 24-Sep-2019
1142,Revenue,CAHD,South Glos Users in South Glos Homes,Permanent Nursing,Fairview Court,662.24, 24-Sep-2019
1143,Revenue,CAHD,South Glos Users in South Glos Homes,Permanent Nursing,Fairview Court,662.24, 24-Sep-2019
1144,Revenue,CAHD,South Glos Users in South Glos Homes,Permanent Nursing,Fairview Court,662.24, 24-Sep-2019
1145,Revenue,CAHD,South Glos Users in South Glos Homes,Permanent Nursing,Fairview Court,662.24, 24-Sep-2019
1146,Revenue,CAHD,South Glos Users in South Glos Homes,Permanent Nursing,Fairview Court,662.24, 24-Sep-2019
1147,Revenue,CAHD,South Glos Users in South Glos Homes,Permanent Nursing,Fairview Court,662.24, 24-Sep-2019
1148,Revenue,CAHD,South Glos Users in South Glos Homes,Permanent Nursing,Fairview Court,662.24, 24-Sep-2019
1149,Revenue,CAHD,South Glos Users in South Glos Homes,Permanent Nursing,Fairview Court,662.24, 24-Sep-2019
1150,Revenue,CAHD,South - Bed Purchasing and Direct payments,Permanent Nursing,Fairview Court,3810.56, 24-Sep-2019
1151,Revenue,CAHD,South Glos Users in South Glos Homes,Permanent Nursing,Fairview Court,662.24, 24-Sep-2019
1152,Revenue,CAHD,South Glos Users in South Glos Homes,Permanent Nursing,Fairview Court,662.24, 24-Sep-2019
1153,Revenue,CAHD,South Glos Users in South Glos Homes,Permanent Nursing,Fairview Court,662.24, 24-Sep-2019
1154,Revenue,CAHD,South Glos Users in South Glos Homes,Permanent Nursing,Fairview Court,662.24, 24-Sep-2019
1155,Revenue,CAHD,South Glos Users in South Glos Homes,Permanent Nursing,Fairview Court,662.24, 24-Sep-2019
1156,Revenue,CAHD,South Glos Users in South Glos Homes,Permanent Nursing,Fairview Court,662.24, 24-Sep-2019
1157,Revenue,CAHD,North - bed purchasing and direct  payments,Permanent Nursing,Fairview Court,3547.76, 24-Sep-2019
1158,Revenue,CAHD,South Glos Users in South Glos Homes,Permanent Nursing,Fairview Court,662.24, 24-Sep-2019
1159,Revenue,CAHD,South Glos Users in South Glos Homes,Permanent Nursing,Fairview Court,662.24, 24-Sep-2019
1160,Revenue,CAHD,South Glos Users in South Glos Homes,Permanent Nursing,Fairview Court,662.24, 24-Sep-2019
1161,Revenue,CAHD,South - Bed Purchasing and Direct payments,Permanent Residential,Fairview Court,4048.64, 24-Sep-2019
1162,Revenue,CAHD,South Glos Users in South Glos Homes,Permanent Nursing,Fairview Court,662.24, 24-Sep-2019
1163,Revenue,CAHD,South Glos Users in South Glos Homes,Permanent Nursing,Fairview Court,662.24, 24-Sep-2019
1164,Revenue,CAHD,South Glos Users in South Glos Homes,Permanent Nursing,Fairview Court,662.24, 24-Sep-2019
1165,Revenue,CAHD,North - bed purchasing and direct  payments,Permanent Residential,Fairview Court,3256.32, 24-Sep-2019
1166,Revenue,CAHD,South Glos Users in South Glos Homes,Permanent Nursing,Fairview Court,662.24, 24-Sep-2019
1167,Revenue,CAHD,South - Bed Purchasing and Direct payments,Permanent Nursing,Fairview Court,3483.68, 24-Sep-2019
1168,Revenue,CAHD,South Glos Users in South Glos Homes,Permanent Nursing,Fairview Court,662.24, 24-Sep-2019
1169,Revenue,CAHD,North - bed purchasing and direct  payments,Permanent Nursing,Fairview Court,3810.56, 24-Sep-2019
1170,Revenue,CAHD,South Glos Users in South Glos Homes,Permanent Nursing,Fairview Court,662.24, 24-Sep-2019
1171,Revenue,CAHD,South - Bed Purchasing and Direct payments,Permanent Nursing,Fairview Court,3130.36, 24-Sep-2019
1172,Revenue,CAHD,South Glos Users in South Glos Homes,Permanent Nursing,Fairview Court,662.24, 24-Sep-2019
1173,Revenue,CAHD,South - Bed Purchasing and Direct payments,Permanent Nursing,Fairview Court,3810.56, 24-Sep-2019
1174,Revenue,CAHD,South Glos Users in South Glos Homes,Permanent Nursing,Fairview Court,662.24, 24-Sep-2019
1175,Revenue,CAHD,South - Bed Purchasing and Direct payments,Permanent Nursing,Fairview Court,3547.76, 24-Sep-2019
1176,Revenue,CAHD,South Glos Users in South Glos Homes,Permanent Nursing,Fairview Court,662.24, 24-Sep-2019
1177,Revenue,CAHD,South Glos Users in South Glos Homes,Permanent Nursing,Fairview Court,662.24, 24-Sep-2019
1178,Revenue,CAHD,South Glos Users in South Glos Homes,Permanent Nursing,Fairview Court,662.24, 24-Sep-2019
1179,Revenue,CAHD,South - S117,Permanent Residential,Fairview House,2303.52, 24-Sep-2019
1180,Revenue,CAHD,South - Bed Purchasing and Direct payments,Permanent Residential,Fairview House,2303.52, 24-Sep-2019
1181,Revenue,CAHD,North - bed purchasing and direct  payments,Permanent Residential,Fairview House,2846.72, 24-Sep-2019
1182,Revenue,CAHD,South - Bed Purchasing and Direct payments,Permanent Residential,Fairview House,2303.52, 24-Sep-2019
1183,Revenue,CAHD,South - Bed Purchasing and Direct payments,Permanent Residential,Fairview House,2230.32, 24-Sep-2019
1184,Revenue,CAHD,South - Bed Purchasing and Direct payments,Permanent Residential,Fairview House,2230.40, 24-Sep-2019
1185,Revenue,CAHD,North - bed purchasing and direct  payments,Permanent Residential,Faith House,3297.28, 24-Sep-2019
1186,Revenue,CAHD,North - bed purchasing and direct  payments,Permanent Residential,Faith House,2805.76, 24-Sep-2019
1187,Revenue,CAHD,Central - Bed Purchasing and Direct Payments,Permanent Residential,Faith House,2928.64, 24-Sep-2019
1188,Revenue,CAHD,South - Bed Purchasing and Direct payments,Permanent Residential,Faith House,2805.76, 24-Sep-2019
1189,Revenue,CAHD,Post 16 High Needs Placements,Other Private Contractors,Farleigh FEC-Frome Priory,21479.39, 13-Sep-2019
1190,Revenue,CAHD,Post 16 High Needs Placements,Other Private Contractors,Farleigh FEC-Frome Priory,22687.99, 13-Sep-2019
1191,Revenue,CAHD,Post 16 High Needs Placements,Other Private Contractors,Farleigh FEC-Frome Priory,23275.85, 13-Sep-2019
1192,Revenue,CAHD,Post 16 High Needs Placements,Other Private Contractors,Farleigh FEC-Frome Priory,22271.92, 13-Sep-2019
1193,Revenue,CAHD,Post 16 High Needs Placements,Other Private Contractors,Farleigh FEC-Frome Priory,6251.79, 25-Sep-2019
1194,Revenue,CAHD,Post 16 High Needs Placements,Other Private Contractors,Farleigh FEC-Frome Priory,7123.59, 25-Sep-2019
1195,Revenue,CAHD,Central - Bed Purchasing and Direct Payments,Permanent Nursing,Festival House,3055.04, 24-Sep-2019
1196,Revenue,CAHD,North - bed purchasing and direct  payments,Permanent Nursing,Field House Care Home,3522.56, 24-Sep-2019
1197,Revenue,CAHD,South Glos Users in South Glos Homes,Permanent Nursing,Field House Care Home,662.24, 24-Sep-2019
1198,Revenue,CAHD,North - bed purchasing and direct  payments,Permanent Nursing,Field House Care Home,3522.56, 24-Sep-2019
1199,Revenue,CAHD,North - bed purchasing and direct  payments,Permanent Nursing,Field House Care Home,3403.60, 24-Sep-2019
1200,Revenue,CAHD,North - bed purchasing and direct  payments,Permanent Nursing,Field House Care Home,3589.48, 24-Sep-2019
1201,Revenue,CAHD,North - bed purchasing and direct  payments,Permanent Nursing,Field House Care Home,3422.52, 24-Sep-2019
1202,Revenue,CAHD,North - bed purchasing and direct  payments,Respite Planned - Nursing,Field House Care Home,1530.00, 24-Sep-2019
1203,Revenue,CAHD,North - bed purchasing and direct  payments,Permanent Nursing,Field House Care Home,3422.52, 24-Sep-2019
1204,Revenue,CAHD,Central - Bed Purchasing and Direct Payments,Fees & Charges Income - General,Field House Care Home,1231.24, 24-Sep-2019
1205,Revenue,CAHD,Central - Bed Purchasing and Direct Payments,Permanent Nursing,Field House Care Home,3740.00, 24-Sep-2019
1206,Revenue,CAHD,North - bed purchasing and direct  payments,Permanent Nursing,Field House Care Home,2216.32, 24-Sep-2019
1207,Revenue,CAHD,Central - Bed Purchasing and Direct Payments,Permanent Nursing,Field House Care Home,3740.00, 24-Sep-2019
1208,Revenue,CAHD,Central - Bed Purchasing and Direct Payments,Permanent Nursing,Field House Care Home,2805.00, 24-Sep-2019
1209,Revenue,CAHD,North - bed purchasing and direct  payments,Permanent Nursing,Field House Care Home,2216.32, 24-Sep-2019
1210,Revenue,CAHD,North - bed purchasing and direct  payments,Permanent Nursing,Field House Care Home,3506.00, 24-Sep-2019
1211,Revenue,CAHD,Central - Bed Purchasing and Direct Payments,Permanent Residential,Fieldview,3481.60, 24-Sep-2019
1212,Revenue,CAHD,North - bed purchasing and direct  payments,Permanent Residential,Fieldview,3756.44, 24-Sep-2019
1213,Revenue,CAHD,North - bed purchasing and direct  payments,Permanent Residential,Fieldview,3200.00, 24-Sep-2019
1214,Revenue,CAHD,North - bed purchasing and direct  payments,Fees & Charges Income - General,Fieldview,955.78, 24-Sep-2019
1215,Revenue,CAHD,MH Purchasing - Younger,Permanent Nursing,Fieldview,5496.52, 24-Sep-2019
1216,Revenue,CAHD,South - Bed Purchasing and Direct payments,Permanent Residential,Fieldview,1096.45, 24-Sep-2019
1217,Revenue,CAHD,Statemented Support Payments to OLAs,Other L.A.'s - General,Filton Avenue Primary School,1131.84, 30-Sep-2019
1218,Revenue,CAHD,Statemented Support Payments to OLAs,Other L.A.'s - General,Filton Avenue Primary School,1332.27, 30-Sep-2019
1219,Revenue,CAHD,Early Years Inclusion Fund,Other Public Bodies,First Steps Day Nursery,2450.00, 19-Sep-2019
1220,Revenue,CAHD,CSC - Agency Fostering,Foster Parent Allowances,Foster Care Associates Limited,3998.40, 23-Sep-2019
1221,Revenue,CAHD,CSC - Asylum Seekers - Unaccompanied,Foster Parent Allowances,Foster Care Associates Limited,2328.60, 30-Sep-2019
1222,Revenue,CAHD,CSC - Asylum Seekers - Unaccompanied,Foster Parent Allowances,Foster Care Associates Limited,3405.35, 13-Sep-2019
1223,Revenue,CAHD,Central - Community based support,Other Small Contracts,Fourways Care Limited,318.00, 03-Sep-2019
1224,Revenue,CAHD,South - community based support,Other Small Contracts,Fourways Care Limited,1037.84, 03-Sep-2019
1225,Revenue,CAHD,North - Community based support,Other Small Contracts,Fourways Care Limited,11649.04, 03-Sep-2019
1226,Revenue,CAHD,Central - Community based support,Other Small Contracts,Fourways Care Limited,318.00, 06-Sep-2019
1227,Revenue,CAHD,South - community based support,Other Small Contracts,Fourways Care Limited,1023.20, 06-Sep-2019
1228,Revenue,CAHD,North - Community based support,Other Small Contracts,Fourways Care Limited,11434.32, 06-Sep-2019
1229,Revenue,CAHD,Central - Community based support,Other Small Contracts,Fourways Care Limited,318.00, 19-Sep-2019
1230,Revenue,CAHD,South - community based support,Other Small Contracts,Fourways Care Limited,998.80, 19-Sep-2019
1231,Revenue,CAHD,North - Community based support,Other Small Contracts,Fourways Care Limited,10873.12, 19-Sep-2019
1232,Revenue,CAHD,Central - Community based support,Other Small Contracts,Fourways Care Limited,324.00, 24-Sep-2019
1233,Revenue,CAHD,South - community based support,Other Small Contracts,Fourways Care Limited,936.48, 24-Sep-2019
1234,Revenue,CAHD,North - Community based support,Other Small Contracts,Fourways Care Limited,10712.08, 24-Sep-2019
1235,Revenue,CAHD,Central - Community based support,Other Small Contracts,Fourways Care Limited,318.00, 30-Sep-2019
1236,Revenue,CAHD,South - community based support,Other Small Contracts,Fourways Care Limited,863.28, 30-Sep-2019
1237,Revenue,CAHD,North - Community based support,Other Small Contracts,Fourways Care Limited,10394.88, 30-Sep-2019
1238,Revenue,CAHD,Pathway 1 - Re-Ablement Home Care,Other Small Contracts,Fourways Care Limited,858.88, 26-Sep-2019
1239,Revenue,CAHD,Post 16 High Needs Placements,Other Private Contractors,Foxes Academy,15425.63, 30-Sep-2019
1240,Revenue,CAHD,Post 16 High Needs Placements,Other Private Contractors,Foxes Academy,15755.65, 30-Sep-2019
1241,Revenue,CAHD,Post 16 High Needs Placements,Other Private Contractors,Foxes Academy,15949.07, 30-Sep-2019
1242,Revenue,CAHD,Freeways,Permanent Residential,Freeways Trust Limited,3843.16, 20-Sep-2019
1243,Revenue,CAHD,Freeways,Permanent Residential,Freeways Trust Limited,2473.28, 20-Sep-2019
1244,Revenue,CAHD,Freeways,Permanent Residential,Freeways Trust Limited,2473.28, 20-Sep-2019
1245,Revenue,CAHD,Freeways,Permanent Residential,Freeways Trust Limited,3596.56, 20-Sep-2019
1246,Revenue,CAHD,Freeways,Permanent Residential,Freeways Trust Limited,2473.28, 20-Sep-2019
1247,Revenue,CAHD,Freeways,Permanent Residential,Freeways Trust Limited,3634.92, 20-Sep-2019
1248,Revenue,CAHD,Freeways,Permanent Residential,Freeways Trust Limited,2735.12, 20-Sep-2019
1249,Revenue,CAHD,Freeways,Permanent Residential,Freeways Trust Limited,3813.56, 20-Sep-2019
1250,Revenue,CAHD,Freeways,Permanent Residential,Freeways Trust Limited,2318.08, 20-Sep-2019
1251,Revenue,CAHD,Freeways,Permanent Residential,Freeways Trust Limited,2920.08, 20-Sep-2019
1252,Revenue,CAHD,Freeways,Permanent Residential,Freeways Trust Limited,2887.48, 20-Sep-2019
1253,Revenue,CAHD,Freeways,Permanent Residential,Freeways Trust Limited,4419.72, 20-Sep-2019
1254,Revenue,CAHD,Freeways,Permanent Residential,Freeways Trust Limited,2473.28, 20-Sep-2019
1255,Revenue,CAHD,Freeways,Respite Planned - Residential,Freeways Trust Limited,2532.95, 20-Sep-2019
1256,Revenue,CAHD,Freeways,Respite Planned - Residential,Freeways Trust Limited,1782.44, 20-Sep-2019
1257,Revenue,CAHD,Freeways,Respite Planned - Residential,Freeways Trust Limited,562.88, 20-Sep-2019
1258,Revenue,CAHD,Freeways,Respite Planned - Residential,Freeways Trust Limited,1594.82, 20-Sep-2019
1259,Revenue,CAHD,Freeways,Respite Planned - Residential,Freeways Trust Limited,844.32, 20-Sep-2019
1260,Revenue,CAHD,Freeways,Permanent Residential,Freeways Trust Limited,536.42, 20-Sep-2019
1261,Revenue,CAHD,North - Community based support,Other Small Contracts,Freeways Trust Limited,846.56, 23-Sep-2019
1262,Revenue,CAHD,South - community based support,Day Care / Social Activities,Freeways Trust Limited,1038.96, 09-Sep-2019
1263,Revenue,CAHD,Central - Community based support,Other Small Contracts,Freeways Trust Limited,654.16, 06-Sep-2019
1264,Revenue,CAHD,North - Community based support,Other Small Contracts,Freeways Trust Limited,846.56, 06-Sep-2019
1265,Revenue,CAHD,North - Community based support,Supported Living,Freeways Trust Ltd,845.52, 24-Sep-2019
1266,Revenue,CAHD,S28A cases,Permanent Residential,Freeways Trust Ltd,3886.64, 24-Sep-2019
1267,Revenue,CAHD,North - bed purchasing and direct  payments,Permanent Residential,Freeways Trust Ltd,3763.40, 24-Sep-2019
1268,Revenue,CAHD,South - Bed Purchasing and Direct payments,Permanent Residential,Freeways Trust Ltd,3991.40, 24-Sep-2019
1269,Revenue,CAHD,North - bed purchasing and direct  payments,Permanent Residential,Freeways Trust Ltd,3013.84, 24-Sep-2019
1270,Revenue,CAHD,South - Bed Purchasing and Direct payments,Permanent Residential,Freeways Trust Ltd,3175.92, 24-Sep-2019
1271,Revenue,CAHD,North - bed purchasing and direct  payments,Permanent Residential,Freeways Trust Ltd,3328.60, 24-Sep-2019
1272,Revenue,CAHD,North - bed purchasing and direct  payments,Permanent Residential,Freeways Trust Ltd,3984.12, 24-Sep-2019
1273,Revenue,CAHD,18-25 Year Olds,Permanent Residential,Freeways Trust Ltd,3680.48, 24-Sep-2019
1274,Revenue,CAHD,Section 117 Placements MH Younger,Permanent Residential,Freeways Trust Ltd,3339.04, 24-Sep-2019
1275,Revenue,CAHD,Central - Community based support,Day Care / Social Activities,Frenchay Beckspool Building,1895.60, 24-Sep-2019
1276,Revenue,CAHD,South - community based support,Day Care / Social Activities,Frenchay Beckspool Building,902.40, 24-Sep-2019
1277,Revenue,CAHD,South - community based support,Day Care / Social Activities,Frenchay Beckspool Building,640.08, 24-Sep-2019
1278,Revenue,CAHD,Pathway 3 - (Complex Beds),Permanent Nursing,Frenchay House,6686.00, 13-Sep-2019
1279,Revenue,CAHD,North - bed purchasing and direct  payments,Permanent Nursing,Frenchay Park Nursing Home,3481.60, 24-Sep-2019
1280,Revenue,CAHD,North - bed purchasing and direct  payments,Permanent Nursing,Frenchay Park Nursing Home,3520.00, 24-Sep-2019
1281,Revenue,CAHD,North - bed purchasing and direct  payments,Permanent Nursing,Frenchay Park Nursing Home,3481.60, 24-Sep-2019
1282,Revenue,CAHD,Central - Bed Purchasing and Direct Payments,Permanent Nursing,Frenchay Park Nursing Home,3400.00, 24-Sep-2019
1283,Revenue,CAHD,North - Community based support,Other Small Contracts,Frontline Staffing Ltd,561.00, 06-Sep-2019
1284,Revenue,CAHD,CSC - Through & Leaving Care Team,Agency Staff (Admin/Support Staff) Pay,Frontline Staffing Ltd,1778.02, 11-Sep-2019
1285,Revenue,CAHD,CSC - Social Work Team - CENTRAL,Agency Staff (Admin/Support Staff) Pay,Frontline Staffing Ltd,1871.60, 11-Sep-2019
1286,Revenue,CAHD,CSC - Social Work Team - NORTH,Agency Staff (Admin/Support Staff) Pay,Frontline Staffing Ltd,1871.60, 04-Sep-2019
1287,Revenue,CAHD,CSC - Through & Leaving Care Team,Agency Staff (Admin/Support Staff) Pay,Frontline Staffing Ltd,513.45, 03-Sep-2019
1288,Revenue,CAHD,CSC - Social Work Team - CENTRAL,Agency Staff (Admin/Support Staff) Pay,Frontline Staffing Ltd,1871.60, 03-Sep-2019
1289,Revenue,CAHD,CSC - Social Work Team - NORTH,Agency Staff (Admin/Support Staff) Pay,Frontline Staffing Ltd,1731.23, 09-Sep-2019
1290,Revenue,CAHD,CSC - Through & Leaving Care Team,Agency Staff (Admin/Support Staff) Pay,Frontline Staffing Ltd,1731.23, 09-Sep-2019
1291,Revenue,CAHD,CSC - Social Work Team - CENTRAL,Agency Staff (Admin/Support Staff) Pay,Frontline Staffing Ltd,1497.28, 10-Sep-2019
1292,Revenue,CAHD,CSC - Social Work Team - CENTRAL,Agency Staff (Admin/Support Staff) Pay,Frontline Staffing Ltd,1122.96, 10-Sep-2019
1293,Revenue,CAHD,CSC - Social Work Team - NORTH,Agency Staff (Admin/Support Staff) Pay,Frontline Staffing Ltd,1871.60, 10-Sep-2019
1294,Revenue,CAHD,CSC - Social Work Team - NORTH,Agency Staff (Admin/Support Staff) Pay,Frontline Staffing Ltd,1731.23, 16-Sep-2019
1295,Revenue,CAHD,CSC - Social Work Team - CENTRAL,Agency Staff (Admin/Support Staff) Pay,Frontline Staffing Ltd,1731.23, 16-Sep-2019
1296,Revenue,CAHD,CSC - Through & Leaving Care Team,Agency Staff (Admin/Support Staff) Pay,Frontline Staffing Ltd,1731.23, 16-Sep-2019
1297,Revenue,CAHD,CSC - Social Work Team - CENTRAL,Agency Staff (Admin/Support Staff) Pay,Frontline Staffing Ltd,1871.60, 17-Sep-2019
1298,Revenue,CAHD,CSC - Social Work Team - NORTH,Agency Staff (Admin/Support Staff) Pay,Frontline Staffing Ltd,1871.60, 18-Sep-2019
1299,Revenue,CAHD,CSC - Social Work Team - NORTH,Agency Staff (Admin/Support Staff) Pay,Frontline Staffing Ltd,1731.23, 20-Sep-2019
1300,Revenue,CAHD,CSC - Social Work Team - CENTRAL,Agency Staff (Admin/Support Staff) Pay,Frontline Staffing Ltd,1871.60, 23-Sep-2019
1301,Revenue,CAHD,CSC - Social Work Team - CENTRAL,Agency Staff (Admin/Support Staff) Pay,Frontline Staffing Ltd,1731.23, 23-Sep-2019
1302,Revenue,CAHD,CSC - Through & Leaving Care Team,Agency Staff (Admin/Support Staff) Pay,Frontline Staffing Ltd,1731.23, 25-Sep-2019
1303,Revenue,CAHD,South - Bed Purchasing and Direct payments,Permanent Nursing,Fshc  1St Floor,2735.08, 24-Sep-2019
1304,Revenue,CAHD,South Glos Users in South Glos Homes,Permanent Nursing,Fshc  1St Floor,662.24, 24-Sep-2019
1305,Revenue,CAHD,South - Bed Purchasing and Direct payments,Permanent Nursing,Fshc  1St Floor,2398.00, 24-Sep-2019
1306,Revenue,CAHD,South - Bed Purchasing and Direct payments,Permanent Nursing,Fshc  1St Floor,2398.00, 24-Sep-2019
1307,Revenue,CAHD,South Glos Users in South Glos Homes,Permanent Nursing,Fshc  1St Floor,662.24, 24-Sep-2019
1308,Revenue,CAHD,South - Bed Purchasing and Direct payments,Permanent Nursing,Fshc  1St Floor,2398.00, 24-Sep-2019
1309,Revenue,CAHD,South Glos Users in South Glos Homes,Permanent Nursing,Fshc  1St Floor,662.24, 24-Sep-2019
1310,Revenue,CAHD,South - Bed Purchasing and Direct payments,Permanent Residential,Fshc  1St Floor,2462.56, 24-Sep-2019
1311,Revenue,CAHD,South Glos Users in South Glos Homes,Permanent Nursing,Fshc  1St Floor,662.24, 24-Sep-2019
1312,Revenue,CAHD,North - bed purchasing and direct  payments,Permanent Nursing,Fshc  1St Floor,2891.76, 24-Sep-2019
1313,Revenue,CAHD,South Glos Users in South Glos Homes,Permanent Nursing,Fshc  1St Floor,662.24, 24-Sep-2019
1314,Revenue,CAHD,South - Bed Purchasing and Direct payments,Permanent Nursing,Fshc  1St Floor,2662.40, 24-Sep-2019
1315,Revenue,CAHD,South Glos Users in South Glos Homes,Permanent Nursing,Fshc  1St Floor,662.24, 24-Sep-2019
1316,Revenue,CAHD,South Glos Users in South Glos Homes,Permanent Nursing,Fshc  1St Floor,662.24, 24-Sep-2019
1317,Revenue,CAHD,South Glos Users in South Glos Homes,Permanent Nursing,Fshc  1St Floor,662.24, 24-Sep-2019
1318,Revenue,CAHD,South Glos Users in South Glos Homes,Permanent Nursing,Fshc  1St Floor,662.24, 24-Sep-2019
1319,Revenue,CAHD,South - Bed Purchasing and Direct payments,Permanent Nursing,Fshc  1St Floor,2891.76, 24-Sep-2019
1320,Revenue,CAHD,South - Bed Purchasing and Direct payments,Permanent Nursing,Fshc  1St Floor,2621.44, 24-Sep-2019
1321,Revenue,CAHD,South Glos Users in South Glos Homes,Permanent Nursing,Fshc  1St Floor,662.24, 24-Sep-2019
1322,Revenue,CAHD,South Glos Users in South Glos Homes,Permanent Nursing,Fshc  1St Floor,662.24, 24-Sep-2019
1323,Revenue,CAHD,South - Bed Purchasing and Direct payments,Permanent Residential,Fshc  1St Floor,3203.04, 24-Sep-2019
1324,Revenue,CAHD,South Glos Users in South Glos Homes,Permanent Nursing,Fshc  1St Floor,662.24, 24-Sep-2019
1325,Revenue,CAHD,South Glos Users in South Glos Homes,Permanent Nursing,Fshc  1St Floor,662.24, 24-Sep-2019
1326,Revenue,CAHD,South Glos Users in South Glos Homes,Permanent Nursing,Fshc  1St Floor,662.24, 24-Sep-2019
1327,Revenue,CAHD,South - Bed Purchasing and Direct payments,Permanent Nursing,Fshc  1St Floor,2867.20, 24-Sep-2019
1328,Revenue,CAHD,South - Bed Purchasing and Direct payments,Permanent Nursing,Fshc  1St Floor,3620.00, 24-Sep-2019
1329,Revenue,CAHD,South - Bed Purchasing and Direct payments,Permanent Nursing,Fshc  1St Floor,3102.86, 24-Sep-2019
1330,Revenue,CAHD,South - Bed Purchasing and Direct payments,Permanent Nursing,Fshc  1St Floor,2398.00, 24-Sep-2019
1331,Revenue,CAHD,South Glos Users in South Glos Homes,Permanent Nursing,Fshc  1St Floor,662.24, 24-Sep-2019
1332,Revenue,CAHD,South - Bed Purchasing and Direct payments,Permanent Nursing,Fshc  1St Floor,2462.56, 24-Sep-2019
1333,Revenue,CAHD,South Glos Users in South Glos Homes,Permanent Nursing,Fshc  1St Floor,662.24, 24-Sep-2019
1334,Revenue,CAHD,South - Bed Purchasing and Direct payments,Permanent Nursing,Fshc  1St Floor,2398.00, 24-Sep-2019
1335,Revenue,CAHD,South Glos Users in South Glos Homes,Permanent Nursing,Fshc  1St Floor,662.24, 24-Sep-2019
1336,Revenue,CAHD,South - Bed Purchasing and Direct payments,Permanent Nursing,Fshc  1St Floor,2398.00, 24-Sep-2019
1337,Revenue,CAHD,South Glos Users in South Glos Homes,Permanent Nursing,Fshc  1St Floor,662.24, 24-Sep-2019
1338,Revenue,CAHD,Bed Purchasing - Elderly MH - South,Permanent Residential,Fshc  1St Floor,3128.00, 24-Sep-2019
1339,Revenue,CAHD,Bed Purchasing - Elderly MH - South,Permanent Residential,Fshc  1St Floor,3128.00, 24-Sep-2019
1340,Revenue,CAHD,South - Bed Purchasing and Direct payments,Permanent Nursing,Fshc  1St Floor,2398.00, 24-Sep-2019
1341,Revenue,CAHD,South Glos Users in South Glos Homes,Permanent Nursing,Fshc  1St Floor,662.24, 24-Sep-2019
1342,Revenue,CAHD,South Glos Users in South Glos Homes,Permanent Nursing,Fshc  1St Floor,662.24, 24-Sep-2019
1343,Revenue,CAHD,South - Bed Purchasing and Direct payments,Permanent Nursing,Fshc  1St Floor,3172.12, 24-Sep-2019
1344,Revenue,CAHD,South Glos Users in South Glos Homes,Permanent Nursing,Fshc  1St Floor,662.24, 24-Sep-2019
1345,Revenue,CAHD,South - Bed Purchasing and Direct payments,Fees & Charges Income - General,Fshc  1St Floor,1158.12, 24-Sep-2019
1346,Revenue,CAHD,South - Bed Purchasing and Direct payments,Permanent Nursing,Fshc  1St Floor,2933.00, 24-Sep-2019
1347,Revenue,CAHD,North - bed purchasing and direct  payments,Permanent Residential,Fshc  1St Floor,2891.76, 24-Sep-2019
1348,Revenue,CAHD,South Glos Users in South Glos Homes,Permanent Nursing,Fshc  1St Floor,662.24, 24-Sep-2019
1349,Revenue,CAHD,Central - Bed Purchasing and Direct Payments,Permanent Nursing,Fshc  1St Floor,2398.00, 24-Sep-2019
1350,Revenue,CAHD,South Glos Users in South Glos Homes,Permanent Nursing,Fshc  1St Floor,662.24, 24-Sep-2019
1351,Revenue,CAHD,Central - Bed Purchasing and Direct Payments,Permanent Nursing,Fshc  1St Floor,2398.00, 24-Sep-2019
1352,Revenue,CAHD,South Glos Users in South Glos Homes,Permanent Nursing,Fshc  1St Floor,662.24, 24-Sep-2019
1353,Revenue,CAHD,Central - Bed Purchasing and Direct Payments,Permanent Nursing,Fshc  1St Floor,2398.00, 24-Sep-2019
1354,Revenue,CAHD,South Glos Users in South Glos Homes,Permanent Nursing,Fshc  1St Floor,662.24, 24-Sep-2019
1355,Revenue,CAHD,South Glos Users in South Glos Homes,Permanent Nursing,Fshc  1St Floor,662.24, 24-Sep-2019
1356,Revenue,CAHD,Central - Bed Purchasing and Direct Payments,Permanent Residential,Fshc  1St Floor,2764.80, 24-Sep-2019
1357,Revenue,CAHD,Central - Bed Purchasing and Direct Payments,Permanent Residential,Fshc  1St Floor,2764.80, 24-Sep-2019
1358,Revenue,CAHD,Central - Bed Purchasing and Direct Payments,Permanent Residential,Fshc  1St Floor,2230.32, 24-Sep-2019
1359,Revenue,CAHD,South Glos Users in South Glos Homes,Permanent Nursing,Fshc  1St Floor,662.24, 24-Sep-2019
1360,Revenue,CAHD,South Glos Users in South Glos Homes,Permanent Nursing,Fshc  1St Floor,662.24, 24-Sep-2019
1361,Revenue,CAHD,Central - Bed Purchasing and Direct Payments,Permanent Residential,Fshc  1St Floor,2768.00, 24-Sep-2019
1362,Revenue,CAHD,Central - Bed Purchasing and Direct Payments,Permanent Residential,Fshc  1St Floor,1098.13, 24-Sep-2019
1363,Revenue,CAHD,South - Bed Purchasing and Direct payments,Permanent Residential,Fshc  1St Floor,2817.36, 24-Sep-2019
1364,Revenue,CAHD,North - bed purchasing and direct  payments,Permanent Nursing,Fshc  1St Floor,2471.60, 24-Sep-2019
1365,Revenue,CAHD,North - bed purchasing and direct  payments,Permanent Nursing,Fshc  1St Floor,2398.00, 24-Sep-2019
1366,Revenue,CAHD,South Glos Users in South Glos Homes,Permanent Nursing,Fshc  1St Floor,662.24, 24-Sep-2019
1367,Revenue,CAHD,Central - Bed Purchasing and Direct Payments,Permanent Nursing,Fshc  1St Floor,2398.00, 24-Sep-2019
1368,Revenue,CAHD,South Glos Users in South Glos Homes,Permanent Nursing,Fshc  1St Floor,662.24, 24-Sep-2019
1369,Revenue,CAHD,Central - Bed Purchasing and Direct Payments,Permanent Nursing,Fshc  1St Floor,2398.00, 24-Sep-2019
1370,Revenue,CAHD,South Glos Users in South Glos Homes,Permanent Nursing,Fshc  1St Floor,662.24, 24-Sep-2019
1371,Revenue,CAHD,North - bed purchasing and direct  payments,Permanent Nursing,Fshc  1St Floor,7622.21, 24-Sep-2019
1372,Revenue,CAHD,North - bed purchasing and direct  payments,Permanent Nursing,Fshc  1St Floor,2398.00, 24-Sep-2019
1373,Revenue,CAHD,South Glos Users in South Glos Homes,Permanent Nursing,Fshc  1St Floor,662.24, 24-Sep-2019
1374,Revenue,CAHD,North - bed purchasing and direct  payments,Fees & Charges Income - General,Fshc  1St Floor,1789.54, 24-Sep-2019
1375,Revenue,CAHD,North - bed purchasing and direct  payments,Permanent Nursing,Fshc  1St Floor,2398.00, 24-Sep-2019
1376,Revenue,CAHD,South Glos Users in South Glos Homes,Permanent Nursing,Fshc  1St Floor,662.24, 24-Sep-2019
1377,Revenue,CAHD,South Glos Users in South Glos Homes,Permanent Nursing,Fshc  1St Floor,662.24, 24-Sep-2019
1378,Revenue,CAHD,North - bed purchasing and direct  payments,Permanent Nursing,Fshc  1St Floor,2398.00, 24-Sep-2019
1379,Revenue,CAHD,South Glos Users in South Glos Homes,Permanent Nursing,Fshc  1St Floor,662.24, 24-Sep-2019
1380,Revenue,CAHD,North - bed purchasing and direct  payments,Permanent Nursing,Fshc  1St Floor,2398.00, 24-Sep-2019
1381,Revenue,CAHD,South Glos Users in South Glos Homes,Permanent Nursing,Fshc  1St Floor,662.24, 24-Sep-2019
1382,Revenue,CAHD,South Glos Users in South Glos Homes,Permanent Nursing,Fshc  1St Floor,662.24, 24-Sep-2019
1383,Revenue,CAHD,Central - Bed Purchasing and Direct Payments,Permanent Nursing,Fshc  1St Floor,8500.00, 24-Sep-2019
1384,Revenue,CAHD,Central - Bed Purchasing and Direct Payments,Fees & Charges Income - General,Fshc  1St Floor,4600.00, 24-Sep-2019
1385,Revenue,CAHD,Central - Bed Purchasing and Direct Payments,Permanent Nursing,Fshc  1St Floor,2380.00, 24-Sep-2019
1386,Revenue,CAHD,South Glos Users in South Glos Homes,Permanent Nursing,Fshc  1St Floor,662.24, 24-Sep-2019
1387,Revenue,CAHD,Central - Bed Purchasing and Direct Payments,Fees & Charges Income - General,Fshc  1St Floor,3861.00, 24-Sep-2019
1388,Revenue,CAHD,North - bed purchasing and direct  payments,Permanent Nursing,Fshc  1St Floor,2439.16, 24-Sep-2019
1389,Revenue,CAHD,South Glos Users in South Glos Homes,Permanent Nursing,Fshc  1St Floor,662.24, 24-Sep-2019
1390,Revenue,CAHD,South Glos Users in South Glos Homes,Permanent Nursing,Fshc  1St Floor,662.24, 24-Sep-2019
1391,Revenue,CAHD,Central - Bed Purchasing and Direct Payments,Permanent Nursing,Fshc  1St Floor,2366.64, 24-Sep-2019
1392,Revenue,CAHD,North - bed purchasing and direct  payments,Permanent Residential,Fshc  1St Floor,1829.37, 24-Sep-2019
1393,Revenue,CAHD,South Glos Users in South Glos Homes,Permanent Nursing,Fshc  1St Floor,662.24, 24-Sep-2019
1394,Revenue,CAHD,North - bed purchasing and direct  payments,Permanent Residential,Fshc  1St Floor,609.79, 24-Sep-2019
1395,Revenue,CAHD,South Glos Users in South Glos Homes,Permanent Nursing,Fshc  1St Floor,662.24, 24-Sep-2019
1396,Revenue,CAHD,South Glos Users in South Glos Homes,Permanent Nursing,Fshc  1St Floor,662.24, 24-Sep-2019
1397,Revenue,CAHD,Central - Bed Purchasing and Direct Payments,Permanent Residential,Fshc  1St Floor,2768.00, 24-Sep-2019
1398,Revenue,CAHD,Central - Bed Purchasing and Direct Payments,Permanent Nursing,Fshc  1St Floor,2382.00, 24-Sep-2019
1399,Revenue,CAHD,South Glos Users in South Glos Homes,Permanent Nursing,Fshc  1St Floor,662.24, 24-Sep-2019
1400,Revenue,CAHD,South Glos Users in South Glos Homes,Permanent Nursing,Fshc  1St Floor,662.24, 24-Sep-2019
1401,Revenue,CAHD,North - bed purchasing and direct  payments,Permanent Nursing,Fshc  1St Floor,2398.00, 24-Sep-2019
1402,Revenue,CAHD,South Glos Users in South Glos Homes,Permanent Nursing,Fshc  1St Floor,662.24, 24-Sep-2019
1403,Revenue,CAHD,South Glos Users in South Glos Homes,Permanent Nursing,Fshc  1St Floor,662.24, 24-Sep-2019
1404,Revenue,CAHD,North - S117,Permanent Nursing,Fshc  1St Floor,2470.44, 24-Sep-2019
1405,Revenue,CAHD,South Glos Users in South Glos Homes,Permanent Nursing,Fshc  1St Floor,662.24, 24-Sep-2019
1406,Revenue,CAHD,Central - Bed Purchasing and Direct Payments,Permanent Nursing,Fshc  1St Floor,2398.00, 24-Sep-2019
1407,Revenue,CAHD,South Glos Users in South Glos Homes,Permanent Nursing,Fshc  1St Floor,662.24, 24-Sep-2019
1408,Revenue,CAHD,South Glos Users in South Glos Homes,Permanent Nursing,Fshc  1St Floor,662.24, 24-Sep-2019
1409,Revenue,CAHD,South Glos Users in South Glos Homes,Permanent Nursing,Fshc  1St Floor,662.24, 24-Sep-2019
1410,Revenue,CAHD,Central - Bed Purchasing and Direct Payments,Permanent Nursing,Fshc  1St Floor,2398.00, 24-Sep-2019
1411,Revenue,CAHD,South Glos Users in South Glos Homes,Permanent Nursing,Fshc  1St Floor,662.24, 24-Sep-2019
1412,Revenue,CAHD,Central - Bed Purchasing and Direct Payments,Permanent Nursing,Fshc  1St Floor,2398.00, 24-Sep-2019
1413,Revenue,CAHD,South Glos Users in South Glos Homes,Permanent Nursing,Fshc  1St Floor,662.24, 24-Sep-2019
1414,Revenue,CAHD,Central - Bed Purchasing and Direct Payments,Permanent Nursing,Fshc  1St Floor,2311.20, 24-Sep-2019
1415,Revenue,CAHD,South Glos Users in South Glos Homes,Permanent Nursing,Fshc  1St Floor,662.24, 24-Sep-2019
1416,Revenue,CAHD,North - bed purchasing and direct  payments,Permanent Nursing,Fshc  1St Floor,2437.12, 24-Sep-2019
1417,Revenue,CAHD,South Glos Users in South Glos Homes,Permanent Nursing,Fshc  1St Floor,662.24, 24-Sep-2019
1418,Revenue,CAHD,Central - Bed Purchasing and Direct Payments,Permanent Nursing,Fshc  1St Floor,2398.00, 24-Sep-2019
1419,Revenue,CAHD,South Glos Users in South Glos Homes,Permanent Nursing,Fshc  1St Floor,662.24, 24-Sep-2019
1420,Revenue,CAHD,Central - Bed Purchasing and Direct Payments,Permanent Residential,Fshc  1St Floor,2834.44, 24-Sep-2019
1421,Revenue,CAHD,North - bed purchasing and direct  payments,Permanent Nursing,Fshc  1St Floor,2398.00, 24-Sep-2019
1422,Revenue,CAHD,South Glos Users in South Glos Homes,Permanent Nursing,Fshc  1St Floor,662.24, 24-Sep-2019
1423,Revenue,CAHD,North - bed purchasing and direct  payments,Permanent Nursing,Fshc  1St Floor,2398.00, 24-Sep-2019
1424,Revenue,CAHD,South Glos Users in South Glos Homes,Permanent Nursing,Fshc  1St Floor,662.24, 24-Sep-2019
1425,Revenue,CAHD,Central - Bed Purchasing and Direct Payments,Permanent Nursing,Fshc  1St Floor,2398.00, 24-Sep-2019
1426,Revenue,CAHD,South Glos Users in South Glos Homes,Permanent Nursing,Fshc  1St Floor,662.24, 24-Sep-2019
1427,Revenue,CAHD,North - bed purchasing and direct  payments,Permanent Nursing,Fshc  1St Floor,2471.44, 24-Sep-2019
1428,Revenue,CAHD,South Glos Users in South Glos Homes,Permanent Nursing,Fshc  1St Floor,662.24, 24-Sep-2019
1429,Revenue,CAHD,South Glos Users in South Glos Homes,Permanent Nursing,Fshc  1St Floor,662.24, 24-Sep-2019
1430,Revenue,CAHD,North - bed purchasing and direct  payments,Permanent Nursing,Fshc  1St Floor,2356.60, 24-Sep-2019
1431,Revenue,CAHD,South Glos Users in South Glos Homes,Permanent Nursing,Fshc  1St Floor,662.24, 24-Sep-2019
1432,Revenue,CAHD,North - bed purchasing and direct  payments,Permanent Nursing,Fshc  1St Floor,2471.44, 24-Sep-2019
1433,Revenue,CAHD,South Glos Users in South Glos Homes,Permanent Nursing,Fshc  1St Floor,662.24, 24-Sep-2019
1434,Revenue,CAHD,Central - Bed Purchasing and Direct Payments,Permanent Nursing,Fshc  1St Floor,2486.12, 24-Sep-2019
1435,Revenue,CAHD,South Glos Users in South Glos Homes,Permanent Nursing,Fshc  1St Floor,662.24, 24-Sep-2019
1436,Revenue,CAHD,North - bed purchasing and direct  payments,Permanent Residential,Fshc  1St Floor,3400.00, 24-Sep-2019
1437,Revenue,CAHD,South Glos Users in South Glos Homes,Permanent Nursing,Fshc  1St Floor,662.24, 24-Sep-2019
1438,Revenue,CAHD,Central - Bed Purchasing and Direct Payments,Permanent Nursing,Fshc  1St Floor,6742.86, 24-Sep-2019
1439,Revenue,CAHD,Central - Bed Purchasing and Direct Payments,Permanent Nursing,Fshc  1St Floor,3200.00, 24-Sep-2019
1440,Revenue,CAHD,South Glos Users in South Glos Homes,Permanent Nursing,Fshc  1St Floor,662.24, 24-Sep-2019
1441,Revenue,CAHD,Central - Bed Purchasing and Direct Payments,Fees & Charges Income - General,Fshc  1St Floor,1162.90, 24-Sep-2019
1442,Revenue,CAHD,North - bed purchasing and direct  payments,Permanent Nursing,Fshc  1St Floor,2398.00, 24-Sep-2019
1443,Revenue,CAHD,South Glos Users in South Glos Homes,Permanent Nursing,Fshc  1St Floor,662.24, 24-Sep-2019
1444,Revenue,CAHD,Central - Bed Purchasing and Direct Payments,Permanent Nursing,Fshc  1St Floor,3234.72, 24-Sep-2019
1445,Revenue,CAHD,South Glos Users in South Glos Homes,Permanent Nursing,Fshc  1St Floor,662.24, 24-Sep-2019
1446,Revenue,CAHD,Central - Bed Purchasing and Direct Payments,Permanent Nursing,Fshc  1St Floor,3472.44, 24-Sep-2019
1447,Revenue,CAHD,South Glos Users in South Glos Homes,Permanent Nursing,Fshc  1St Floor,662.24, 24-Sep-2019
1448,Revenue,CAHD,South Glos Users in South Glos Homes,Permanent Nursing,Fshc  1St Floor,662.24, 24-Sep-2019
1449,Revenue,CAHD,South Glos Users in South Glos Homes,Permanent Nursing,Fshc  1St Floor,662.24, 24-Sep-2019
1450,Revenue,CAHD,South Glos Users in South Glos Homes,Permanent Nursing,Fshc  1St Floor,662.24, 24-Sep-2019
1451,Revenue,CAHD,South Glos Users in South Glos Homes,Permanent Nursing,Fshc  1St Floor,662.24, 24-Sep-2019
1452,Revenue,CAHD,Central - Bed Purchasing and Direct Payments,Permanent Nursing,Fshc  1St Floor,2731.36, 24-Sep-2019
1453,Revenue,CAHD,South Glos Users in South Glos Homes,Permanent Nursing,Fshc  1St Floor,662.24, 24-Sep-2019
1454,Revenue,CAHD,Central - Bed Purchasing and Direct Payments,Permanent Nursing,Fshc  1St Floor,15419.14, 24-Sep-2019
1455,Revenue,CAHD,Central - Bed Purchasing and Direct Payments,Permanent Nursing,Fshc  1St Floor,15319.02, 24-Sep-2019
1456,Revenue,CAHD,Central - Bed Purchasing and Direct Payments,Permanent Nursing,Fshc  1St Floor,2803.48, 24-Sep-2019
1457,Revenue,CAHD,South Glos Users in South Glos Homes,Permanent Nursing,Fshc  1St Floor,662.24, 24-Sep-2019
1458,Revenue,CAHD,Central - Bed Purchasing and Direct Payments,Fees & Charges Income - General,Fshc  1St Floor,1449.79, 24-Sep-2019
1459,Revenue,CAHD,Central - Bed Purchasing and Direct Payments,Fees & Charges Income - General,Fshc  1St Floor,1426.29, 24-Sep-2019
1460,Revenue,CAHD,Central - Bed Purchasing and Direct Payments,Fees & Charges Income - General,Fshc  1St Floor,8257.49, 24-Sep-2019
1461,Revenue,CAHD,Central - Bed Purchasing and Direct Payments,Fees & Charges Income - General,Fshc  1St Floor,8492.92, 24-Sep-2019
1462,Revenue,CAHD,Central - Bed Purchasing and Direct Payments,Fees & Charges Income - General,Fshc  1St Floor,8492.54, 24-Sep-2019
1463,Revenue,CAHD,Central - Bed Purchasing and Direct Payments,Fees & Charges Income - General,Fshc  1St Floor,6799.93, 24-Sep-2019
1464,Revenue,CAHD,South Glos Users in South Glos Homes,Permanent Nursing,Fshc  1St Floor,662.24, 24-Sep-2019
1465,Revenue,CAHD,Central - Bed Purchasing and Direct Payments,Permanent Nursing,Fshc  1St Floor,2997.60, 24-Sep-2019
1466,Revenue,CAHD,South Glos Users in South Glos Homes,Permanent Nursing,Fshc  1St Floor,662.24, 24-Sep-2019
1467,Revenue,CAHD,South Glos Users in South Glos Homes,Permanent Nursing,Fshc  1St Floor,662.24, 24-Sep-2019
1468,Revenue,CAHD,South Glos Users in South Glos Homes,Permanent Nursing,Fshc  1St Floor,662.24, 24-Sep-2019
1469,Revenue,CAHD,Central - Bed Purchasing and Direct Payments,Permanent Nursing,Fshc  1St Floor,2428.94, 24-Sep-2019
1470,Revenue,CAHD,North - bed purchasing and direct  payments,Permanent Nursing,Fshc  1St Floor,2587.56, 24-Sep-2019
1471,Revenue,CAHD,South Glos Users in South Glos Homes,Permanent Nursing,Fshc  1St Floor,662.24, 24-Sep-2019
1472,Revenue,CAHD,South Glos Users in South Glos Homes,Permanent Nursing,Fshc  1St Floor,662.24, 24-Sep-2019
1473,Revenue,CAHD,South Glos Users in South Glos Homes,Permanent Nursing,Fshc  1St Floor,662.24, 24-Sep-2019
1474,Revenue,CAHD,Central - Bed Purchasing and Direct Payments,Fees & Charges Income - General,Fshc  1St Floor,561.40, 24-Sep-2019
1475,Revenue,CAHD,South Glos Users in South Glos Homes,Permanent Nursing,Fshc  1St Floor,662.24, 24-Sep-2019
1476,Revenue,CAHD,South Glos Users in South Glos Homes,Permanent Nursing,Fshc  1St Floor,662.24, 24-Sep-2019
1477,Revenue,CAHD,Central - Bed Purchasing and Direct Payments,Respite Planned - Nursing,Fshc  1St Floor,3686.40, 24-Sep-2019
1478,Revenue,CAHD,South Glos Users in South Glos Homes,Permanent Nursing,Fshc  1St Floor,662.24, 24-Sep-2019
1479,Revenue,CAHD,Central - Bed Purchasing and Direct Payments,Permanent Nursing,Fshc  1St Floor,2471.44, 24-Sep-2019
1480,Revenue,CAHD,South Glos Users in South Glos Homes,Permanent Nursing,Fshc  1St Floor,662.24, 24-Sep-2019
1481,Revenue,CAHD,Central - Bed Purchasing and Direct Payments,Permanent Nursing,Fshc  1St Floor,3038.56, 24-Sep-2019
1482,Revenue,CAHD,South Glos Users in South Glos Homes,Permanent Nursing,Fshc  1St Floor,662.24, 24-Sep-2019
1483,Revenue,CAHD,North - bed purchasing and direct  payments,Permanent Nursing,Fshc  1St Floor,2834.20, 24-Sep-2019
1484,Revenue,CAHD,South Glos Users in South Glos Homes,Permanent Nursing,Fshc  1St Floor,662.24, 24-Sep-2019
1485,Revenue,CAHD,South Glos Users in South Glos Homes,Permanent Nursing,Fshc  1St Floor,662.24, 24-Sep-2019
1486,Revenue,CAHD,Central - Bed Purchasing and Direct Payments,Permanent Nursing,Fshc  1St Floor,3234.72, 24-Sep-2019
1487,Revenue,CAHD,South Glos Users in South Glos Homes,Permanent Nursing,Fshc  1St Floor,662.24, 24-Sep-2019
1488,Revenue,CAHD,North - bed purchasing and direct  payments,Permanent Nursing,Fshc  1St Floor,2515.48, 24-Sep-2019
1489,Revenue,CAHD,South Glos Users in South Glos Homes,Permanent Nursing,Fshc  1St Floor,662.24, 24-Sep-2019
1490,Revenue,CAHD,South - Bed Purchasing and Direct payments,Permanent Nursing,Fshc  1St Floor,2616.12, 24-Sep-2019
1491,Revenue,CAHD,South Glos Users in South Glos Homes,Permanent Nursing,Fshc  1St Floor,662.24, 24-Sep-2019
1492,Revenue,CAHD,North - bed purchasing and direct  payments,Permanent Nursing,Fshc  1St Floor,2533.71, 24-Sep-2019
1493,Revenue,CAHD,Central - Bed Purchasing and Direct Payments,Permanent Nursing,Fshc  1St Floor,2471.44, 24-Sep-2019
1494,Revenue,CAHD,South Glos Users in South Glos Homes,Permanent Nursing,Fshc  1St Floor,662.24, 24-Sep-2019
1495,Revenue,CAHD,South - Bed Purchasing and Direct payments,Permanent Nursing,Fshc  1St Floor,3243.36, 24-Sep-2019
1496,Revenue,CAHD,South Glos Users in South Glos Homes,Permanent Nursing,Fshc  1St Floor,662.24, 24-Sep-2019
1497,Revenue,CAHD,South - Bed Purchasing and Direct payments,Permanent Nursing,Fshc  1St Floor,2608.68, 24-Sep-2019
1498,Revenue,CAHD,South Glos Users in South Glos Homes,Permanent Nursing,Fshc  1St Floor,662.24, 24-Sep-2019
1499,Revenue,CAHD,South - Bed Purchasing and Direct payments,Permanent Nursing,Fshc  1St Floor,2504.28, 24-Sep-2019
1500,Revenue,CAHD,South Glos Users in South Glos Homes,Permanent Nursing,Fshc  1St Floor,662.24, 24-Sep-2019
1501,Revenue,CAHD,South Glos Users in South Glos Homes,Permanent Nursing,Fshc  1St Floor,662.24, 24-Sep-2019
1502,Revenue,CAHD,South Glos Users in South Glos Homes,Permanent Nursing,Fshc  1St Floor,662.24, 24-Sep-2019
1503,Revenue,CAHD,South - Bed Purchasing and Direct payments,Permanent Residential,Fshc  1St Floor,2662.40, 24-Sep-2019
1504,Revenue,CAHD,South Glos Users in South Glos Homes,Permanent Nursing,Fshc  1St Floor,662.24, 24-Sep-2019
1505,Revenue,CAHD,South Glos Users in South Glos Homes,Permanent Nursing,Fshc  1St Floor,662.24, 24-Sep-2019
1506,Revenue,CAHD,South - Bed Purchasing and Direct payments,Permanent Residential,Fshc  1St Floor,2399.96, 24-Sep-2019
1507,Revenue,CAHD,South Glos Users in South Glos Homes,Permanent Nursing,Fshc  1St Floor,662.24, 24-Sep-2019
1508,Revenue,CAHD,South Glos Users in South Glos Homes,Permanent Nursing,Fshc  1St Floor,662.24, 24-Sep-2019
1509,Revenue,CAHD,South Glos Users in South Glos Homes,Permanent Nursing,Fshc  1St Floor,662.24, 24-Sep-2019
1510,Revenue,CAHD,South - Bed Purchasing and Direct payments,Permanent Nursing,Fshc  1St Floor,2471.44, 24-Sep-2019
1511,Revenue,CAHD,South Glos Users in South Glos Homes,Permanent Nursing,Fshc  1St Floor,662.24, 24-Sep-2019
1512,Revenue,CAHD,South - Bed Purchasing and Direct payments,Permanent Nursing,Fshc  1St Floor,2398.00, 24-Sep-2019
1513,Revenue,CAHD,South Glos Users in South Glos Homes,Permanent Nursing,Fshc  1St Floor,662.24, 24-Sep-2019
1514,Revenue,CAHD,South - Bed Purchasing and Direct payments,Permanent Residential,Fshc  1St Floor,2303.60, 24-Sep-2019
1515,Revenue,CAHD,South - Bed Purchasing and Direct payments,Permanent Nursing,Fshc  1St Floor,2287.36, 24-Sep-2019
1516,Revenue,CAHD,South - S117,Permanent Nursing,Fshc  1St Floor,2287.36, 24-Sep-2019
1517,Revenue,CAHD,South - Bed Purchasing and Direct payments,Permanent Nursing,Fshc  1St Floor,3593.88, 24-Sep-2019
1518,Revenue,CAHD,North - bed purchasing and direct  payments,Permanent Nursing,Fshc  1St Floor,2287.36, 24-Sep-2019
1519,Revenue,CAHD,North - bed purchasing and direct  payments,Permanent Nursing,Fshc  1St Floor,3234.72, 24-Sep-2019
1520,Revenue,CAHD,South - Bed Purchasing and Direct payments,Permanent Nursing,Fshc  1St Floor,2287.36, 24-Sep-2019
1521,Revenue,CAHD,South - Bed Purchasing and Direct payments,Permanent Residential,Fshc  1St Floor,3744.04, 24-Sep-2019
1522,Revenue,CAHD,North - bed purchasing and direct  payments,Permanent Nursing,Fshc  1St Floor,2401.84, 24-Sep-2019
1523,Revenue,CAHD,North - bed purchasing and direct  payments,Fees & Charges Income - General,Fshc  1St Floor,744.29, 24-Sep-2019
1524,Revenue,CAHD,North - bed purchasing and direct  payments,Permanent Residential,Fshc  1St Floor,2174.20, 24-Sep-2019
1525,Revenue,CAHD,Central - Bed Purchasing and Direct Payments,Permanent Nursing,Fshc  1St Floor,4173.84, 24-Sep-2019
1526,Revenue,CAHD,North - bed purchasing and direct  payments,Respite Planned - Residential,Fshc  1St Floor,1695.86, 24-Sep-2019
1527,Revenue,CAHD,North - bed purchasing and direct  payments,Fees & Charges Income - General,Fshc  1St Floor,533.04, 24-Sep-2019
1528,Revenue,CAHD,North - bed purchasing and direct  payments,Permanent Residential,Fshc  1St Floor,2273.28, 24-Sep-2019
1529,Revenue,CAHD,North - bed purchasing and direct  payments,Permanent Nursing,Fshc  1St Floor,2657.80, 24-Sep-2019
1530,Revenue,CAHD,CSC - Fostering Carer Support,Advertising - General,Fuelcast,1060.00, 11-Sep-2019
1531,Revenue,CAHD,CSC - Agency Fostering,Foster Parent Allowances,Fusion Fostering Ltd,4477.71, 24-Sep-2019
1532,Revenue,CAHD,CSC - Care Leavers Independent Living,Independent Living,Fusion Independence Limited,17714.28, 26-Sep-2019
1533,Revenue,CAHD,CSC - Vinney Green Secure Unit,External Lecturers Fees,Future Sports Development,780.00, 11-Sep-2019
1534,Revenue,CAHD,CSC - Corporate Parenting Manager,Agency Staff (Admin/Support Staff) Pay,Gatenby Sanderson Limited,2320.00, 11-Sep-2019
1535,Revenue,CAHD,CSC - Ofsted Work,Consultants Fees,Gatenby Sanderson Limited,1740.00, 04-Sep-2019
1536,Revenue,CAHD,CSC - Ofsted Work,Consultants Fees,Gatenby Sanderson Limited,5220.00, 23-Sep-2019
1537,Revenue,CAHD,CSC - Ofsted Work,Consultants Fees,Gatenby Sanderson Limited,2900.00, 26-Sep-2019
1538,Revenue,CAHD,Alexandra Way,Premises Maintenance by Contractor,Individual,850.00, 19-Sep-2019
1539,Revenue,CAHD,Alexandra Way,Premises Maintenance by Contractor,Individual,1825.00, 19-Sep-2019
1540,Revenue,CAHD,MH Purchasing - Younger,Permanent Residential,Gladstone House,3702.52, 24-Sep-2019
1541,Revenue,CAHD,South - Bed Purchasing and Direct payments,Permanent Residential,Gladstone House,5999.84, 24-Sep-2019
1542,Revenue,CAHD,Jointly Funded H&SC Packages,Permanent Residential,Gladstone House,783.98, 24-Sep-2019
1543,Revenue,CAHD,MH Purchasing - Younger,Permanent Residential,Gladstone House,3135.90, 24-Sep-2019
1544,Revenue,CAHD,North - bed purchasing and direct  payments,Permanent Residential,Glan Y Felin,6803.40, 24-Sep-2019
1545,Revenue,CAHD,South - Bed Purchasing and Direct payments,Permanent Residential,Glasallt Fawr,5344.40, 24-Sep-2019
1546,Revenue,CAHD,North - bed purchasing and direct  payments,Permanent Nursing,Glebe House Nursing Home,3664.16, 24-Sep-2019
1547,Revenue,CAHD,South Glos Users in South Glos Homes,Permanent Nursing,Glebe House Nursing Home,662.24, 24-Sep-2019
1548,Revenue,CAHD,South Glos Users in South Glos Homes,Permanent Nursing,Glebe House Nursing Home,662.24, 24-Sep-2019
1549,Revenue,CAHD,North - bed purchasing and direct  payments,Permanent Nursing,Glebe House Nursing Home,3973.12, 24-Sep-2019
1550,Revenue,CAHD,South Glos Users in South Glos Homes,Permanent Nursing,Glebe House Nursing Home,662.24, 24-Sep-2019
1551,Revenue,CAHD,South Glos Users in South Glos Homes,Permanent Nursing,Glebe House Nursing Home,662.24, 24-Sep-2019
1552,Revenue,CAHD,South Glos Users in South Glos Homes,Permanent Nursing,Glebe House Nursing Home,662.24, 24-Sep-2019
1553,Revenue,CAHD,South Glos Users in South Glos Homes,Permanent Nursing,Glebe House Nursing Home,662.24, 24-Sep-2019
1554,Revenue,CAHD,South Glos Users in South Glos Homes,Permanent Nursing,Glebe House Nursing Home,1324.48, 24-Sep-2019
1555,Revenue,CAHD,South Glos Users in South Glos Homes,Permanent Nursing,Glebe House Nursing Home,662.24, 24-Sep-2019
1556,Revenue,CAHD,North - bed purchasing and direct  payments,Permanent Residential,Glebe House Nursing Home,3785.04, 24-Sep-2019
1557,Revenue,CAHD,South Glos Users in South Glos Homes,Permanent Nursing,Glebe House Nursing Home,662.24, 24-Sep-2019
1558,Revenue,CAHD,North - bed purchasing and direct  payments,Permanent Residential,Glebe House Nursing Home,3833.84, 24-Sep-2019
1559,Revenue,CAHD,North - bed purchasing and direct  payments,Permanent Nursing,Glebe House Nursing Home,4080.00, 24-Sep-2019
1560,Revenue,CAHD,South Glos Users in South Glos Homes,Permanent Nursing,Glebe House Nursing Home,662.24, 24-Sep-2019
1561,Revenue,CAHD,South Glos Users in South Glos Homes,Permanent Nursing,Glebe House Nursing Home,662.24, 24-Sep-2019
1562,Revenue,CAHD,North - bed purchasing and direct  payments,Permanent Nursing,Glebe House Nursing Home,4048.60, 24-Sep-2019
1563,Revenue,CAHD,South Glos Users in South Glos Homes,Permanent Nursing,Glebe House Nursing Home,662.24, 24-Sep-2019
1564,Revenue,CAHD,South Glos Users in South Glos Homes,Permanent Nursing,Glebe House Nursing Home,662.24, 24-Sep-2019
1565,Revenue,CAHD,South Glos Users in South Glos Homes,Permanent Nursing,Glebe House Nursing Home,662.24, 24-Sep-2019
1566,Revenue,CAHD,North - bed purchasing and direct  payments,Permanent Nursing,Glebe House Nursing Home,3960.16, 24-Sep-2019
1567,Revenue,CAHD,South Glos Users in South Glos Homes,Permanent Nursing,Glebe House Nursing Home,662.24, 24-Sep-2019
1568,Revenue,CAHD,South Glos Users in South Glos Homes,Permanent Nursing,Glebe House Nursing Home,662.24, 24-Sep-2019
1569,Revenue,CAHD,South Glos Users in South Glos Homes,Permanent Nursing,Glebe House Nursing Home,2932.78, 24-Sep-2019
1570,Revenue,CAHD,South Glos Users in South Glos Homes,Permanent Nursing,Glebe House Nursing Home,662.24, 24-Sep-2019
1571,Revenue,CAHD,North - bed purchasing and direct  payments,Permanent Nursing,Glebe House Nursing Home,3760.00, 24-Sep-2019
1572,Revenue,CAHD,South Glos Users in South Glos Homes,Permanent Nursing,Glebe House Nursing Home,662.24, 24-Sep-2019
1573,Revenue,CAHD,North - bed purchasing and direct  payments,Permanent Nursing,Glebe House Nursing Home,3502.08, 24-Sep-2019
1574,Revenue,CAHD,South Glos Users in South Glos Homes,Permanent Nursing,Glebe House Nursing Home,662.24, 24-Sep-2019
1575,Revenue,CAHD,South - Bed Purchasing and Direct payments,Permanent Nursing,Glenview,2891.76, 24-Sep-2019
1576,Revenue,CAHD,North - S117,Permanent Nursing,Glenview,3301.36, 24-Sep-2019
1577,Revenue,CAHD,South - Bed Purchasing and Direct payments,Permanent Nursing,Glenview,3993.60, 24-Sep-2019
1578,Revenue,CAHD,North - bed purchasing and direct  payments,Permanent Nursing,Glenview,2891.76, 24-Sep-2019
1579,Revenue,CAHD,Parent Partnership,Fees - General,Global Mediation Limited,2200.00, 30-Sep-2019
1580,Revenue,CAHD,CSC - Fostering Carer Support,Advertising - General,Global Radio Services Ltd,650.00, 20-Sep-2019
1581,Revenue,CAHD,South - Bed Purchasing and Direct payments,Permanent Residential,Gordena Care Home,4018.92, 24-Sep-2019
1582,Revenue,CAHD,South - Bed Purchasing and Direct payments,Permanent Residential,Gordena Care Home,2736.12, 24-Sep-2019
1583,Revenue,CAHD,South - Bed Purchasing and Direct payments,Permanent Residential,Gordena Care Home,3895.40, 24-Sep-2019
1584,Revenue,CAHD,South - Bed Purchasing and Direct payments,Permanent Residential,Gordena Care Home,3907.28, 24-Sep-2019
1585,Revenue,CAHD,South - Bed Purchasing and Direct payments,Permanent Residential,Gordena Care Limited,5105.52, 24-Sep-2019
1586,Revenue,CAHD,S28A cases,Permanent Residential,Gordena Care Limited,4965.36, 24-Sep-2019
1587,Revenue,CAHD,North - bed purchasing and direct  payments,Permanent Residential,Gordena Care Limited,5175.04, 24-Sep-2019
1588,Revenue,CAHD,Central - Bed Purchasing and Direct Payments,Permanent Residential,Grace Care Centre,4915.20, 24-Sep-2019
1589,Revenue,CAHD,North - bed purchasing and direct  payments,Permanent Residential,Grace Care Centre,4800.00, 24-Sep-2019
1590,Revenue,CAHD,North - bed purchasing and direct  payments,Permanent Residential,Grace Care Centre,5160.00, 24-Sep-2019
1591,Revenue,CAHD,South - Bed Purchasing and Direct payments,Permanent Nursing,Gracefields Nursing Home,3761.76, 24-Sep-2019
1592,Revenue,CAHD,South Glos Users in South Glos Homes,Permanent Nursing,Gracefields Nursing Home,662.24, 24-Sep-2019
1593,Revenue,CAHD,South Glos Users in South Glos Homes,Permanent Nursing,Gracefields Nursing Home,662.24, 24-Sep-2019
1594,Revenue,CAHD,South - Bed Purchasing and Direct payments,Permanent Nursing,Gracefields Nursing Home,3285.06, 24-Sep-2019
1595,Revenue,CAHD,South Glos Users in South Glos Homes,Permanent Nursing,Gracefields Nursing Home,662.24, 24-Sep-2019
1596,Revenue,CAHD,South - Bed Purchasing and Direct payments,Permanent Nursing,Gracefields Nursing Home,3652.12, 24-Sep-2019
1597,Revenue,CAHD,South Glos Users in South Glos Homes,Permanent Nursing,Gracefields Nursing Home,662.24, 24-Sep-2019
1598,Revenue,CAHD,South Glos Users in South Glos Homes,Permanent Nursing,Gracefields Nursing Home,662.24, 24-Sep-2019
1599,Revenue,CAHD,South Glos Users in South Glos Homes,Permanent Nursing,Gracefields Nursing Home,662.24, 24-Sep-2019
1600,Revenue,CAHD,South - Bed Purchasing and Direct payments,Permanent Nursing,Gracefields Nursing Home,3652.96, 24-Sep-2019
1601,Revenue,CAHD,South Glos Users in South Glos Homes,Permanent Nursing,Gracefields Nursing Home,662.24, 24-Sep-2019
1602,Revenue,CAHD,South - Bed Purchasing and Direct payments,Permanent Nursing,Gracefields Nursing Home,3652.96, 24-Sep-2019
1603,Revenue,CAHD,South Glos Users in South Glos Homes,Permanent Nursing,Gracefields Nursing Home,662.24, 24-Sep-2019
1604,Revenue,CAHD,South - S117,Permanent Nursing,Gracefields Nursing Home,2551.96, 24-Sep-2019
1605,Revenue,CAHD,South Glos Users in South Glos Homes,Permanent Nursing,Gracefields Nursing Home,662.24, 24-Sep-2019
1606,Revenue,CAHD,South - Bed Purchasing and Direct payments,Permanent Nursing,Gracefields Nursing Home,3229.20, 24-Sep-2019
1607,Revenue,CAHD,South Glos Users in South Glos Homes,Permanent Nursing,Gracefields Nursing Home,662.24, 24-Sep-2019
1608,Revenue,CAHD,South Glos Users in South Glos Homes,Permanent Nursing,Gracefields Nursing Home,662.24, 24-Sep-2019
1609,Revenue,CAHD,North - bed purchasing and direct  payments,Permanent Nursing,Gracefields Nursing Home,3571.04, 24-Sep-2019
1610,Revenue,CAHD,South Glos Users in South Glos Homes,Permanent Nursing,Gracefields Nursing Home,662.24, 24-Sep-2019
1611,Revenue,CAHD,South - Bed Purchasing and Direct payments,Permanent Nursing,Gracefields Nursing Home,3874.16, 24-Sep-2019
1612,Revenue,CAHD,South Glos Users in South Glos Homes,Permanent Nursing,Gracefields Nursing Home,662.24, 24-Sep-2019
1613,Revenue,CAHD,Central - Bed Purchasing and Direct Payments,Permanent Nursing,Gracefields Nursing Home,3652.96, 24-Sep-2019
1614,Revenue,CAHD,South Glos Users in South Glos Homes,Permanent Nursing,Gracefields Nursing Home,662.24, 24-Sep-2019
1615,Revenue,CAHD,South Glos Users in South Glos Homes,Permanent Nursing,Gracefields Nursing Home,662.24, 24-Sep-2019
1616,Revenue,CAHD,South Glos Users in South Glos Homes,Permanent Nursing,Gracefields Nursing Home,662.24, 24-Sep-2019
1617,Revenue,CAHD,South - Bed Purchasing and Direct payments,Permanent Nursing,Gracefields Nursing Home,3652.96, 24-Sep-2019
1618,Revenue,CAHD,South Glos Users in South Glos Homes,Permanent Nursing,Gracefields Nursing Home,662.24, 24-Sep-2019
1619,Revenue,CAHD,South Glos Users in South Glos Homes,Permanent Nursing,Gracefields Nursing Home,662.24, 24-Sep-2019
1620,Revenue,CAHD,South Glos Users in South Glos Homes,Permanent Nursing,Gracefields Nursing Home,662.24, 24-Sep-2019
1621,Revenue,CAHD,South - Bed Purchasing and Direct payments,Permanent Nursing,Gracefields Nursing Home,3204.88, 24-Sep-2019
1622,Revenue,CAHD,South Glos Users in South Glos Homes,Permanent Nursing,Gracefields Nursing Home,662.24, 24-Sep-2019
1623,Revenue,CAHD,South Glos Users in South Glos Homes,Permanent Nursing,Gracefields Nursing Home,662.24, 24-Sep-2019
1624,Revenue,CAHD,South Glos Users in South Glos Homes,Permanent Nursing,Gracefields Nursing Home,662.24, 24-Sep-2019
1625,Revenue,CAHD,South - Bed Purchasing and Direct payments,Permanent Nursing,Gracefields Nursing Home,3229.20, 24-Sep-2019
1626,Revenue,CAHD,South Glos Users in South Glos Homes,Permanent Nursing,Gracefields Nursing Home,662.24, 24-Sep-2019
1627,Revenue,CAHD,South Glos Users in South Glos Homes,Permanent Nursing,Gracefields Nursing Home,662.24, 24-Sep-2019
1628,Revenue,CAHD,South Glos Users in South Glos Homes,Permanent Nursing,Gracefields Nursing Home,662.24, 24-Sep-2019
1629,Revenue,CAHD,South Glos Users in South Glos Homes,Permanent Nursing,Gracefields Nursing Home,662.24, 24-Sep-2019
1630,Revenue,CAHD,South Glos Users in South Glos Homes,Permanent Nursing,Gracefields Nursing Home,662.24, 24-Sep-2019
1631,Revenue,CAHD,South Glos Users in South Glos Homes,Permanent Nursing,Gracefields Nursing Home,662.24, 24-Sep-2019
1632,Revenue,CAHD,South Glos Users in South Glos Homes,Permanent Nursing,Gracefields Nursing Home,662.24, 24-Sep-2019
1633,Revenue,CAHD,South Glos Users in South Glos Homes,Permanent Nursing,Gracefields Nursing Home,662.24, 24-Sep-2019
1634,Revenue,CAHD,South Glos Users in South Glos Homes,Permanent Nursing,Gracefields Nursing Home,662.24, 24-Sep-2019
1635,Revenue,CAHD,South Glos Users in South Glos Homes,Permanent Nursing,Gracefields Nursing Home,662.24, 24-Sep-2019
1636,Revenue,CAHD,South Glos Users in South Glos Homes,Permanent Nursing,Gracefields Nursing Home,662.24, 24-Sep-2019
1637,Revenue,CAHD,South Glos Users in South Glos Homes,Permanent Nursing,Gracefields Nursing Home,662.24, 24-Sep-2019
1638,Revenue,CAHD,South Glos Users in South Glos Homes,Permanent Nursing,Gracefields Nursing Home,662.24, 24-Sep-2019
1639,Revenue,CAHD,South Glos Users in South Glos Homes,Permanent Nursing,Gracefields Nursing Home,662.24, 24-Sep-2019
1640,Revenue,CAHD,South - Bed Purchasing and Direct payments,Permanent Nursing,Gracefields Nursing Home,3565.76, 24-Sep-2019
1641,Revenue,CAHD,South - Bed Purchasing and Direct payments,Permanent Nursing,Gracefields Nursing Home,1400.83, 24-Sep-2019
1642,Revenue,CAHD,South - Bed Purchasing and Direct payments,Permanent Nursing,Gracefields Nursing Home,3481.60, 24-Sep-2019
1643,Revenue,CAHD,South Glos Users in South Glos Homes,Permanent Nursing,Gracefields Nursing Home,662.24, 24-Sep-2019
1644,Revenue,CAHD,South - Bed Purchasing and Direct payments,Permanent Nursing,Gracefields Nursing Home,3652.96, 24-Sep-2019
1645,Revenue,CAHD,South - Bed Purchasing and Direct payments,Permanent Nursing,Gracefields Nursing Home,2551.96, 24-Sep-2019
1646,Revenue,CAHD,South Glos Users in South Glos Homes,Permanent Nursing,Gracefields Nursing Home,662.24, 24-Sep-2019
1647,Revenue,CAHD,South - Bed Purchasing and Direct payments,Permanent Nursing,Gracefields Nursing Home,3547.76, 24-Sep-2019
1648,Revenue,CAHD,South Glos Users in South Glos Homes,Permanent Nursing,Gracefields Nursing Home,662.24, 24-Sep-2019
1649,Revenue,CAHD,South Glos Users in South Glos Homes,Permanent Nursing,Gracefields Nursing Home,662.24, 24-Sep-2019
1650,Revenue,CAHD,South Glos Users in South Glos Homes,Permanent Nursing,Gracefields Nursing Home,662.24, 24-Sep-2019
1651,Revenue,CAHD,South Glos Users in South Glos Homes,Permanent Nursing,Gracefields Nursing Home,662.24, 24-Sep-2019
1652,Revenue,CAHD,CSC - Residential Placements,Permanent Residential,Greenfields Adolecent Development Limited,26527.14, 30-Sep-2019
1653,Revenue,CAHD,CSC - Residential Placements,Permanent Residential,Greenfields Adolecent Development Limited,21035.71, 30-Sep-2019
1654,Revenue,CAHD,Statemented Support Academies,Other Public Bodies,Greenshaw Learning Trust T/A Yate Academy,1061.10, 30-Sep-2019
1655,Revenue,CAHD,Academy Resource Base Funding,Other Public Bodies,Greenshaw Learning Trust T/A Yate Academy,626.06, 30-Sep-2019
1656,Revenue,CAHD,Academy Resource Base Funding,Other Public Bodies,Greenshaw Learning Trust T/A Yate Academy,1487.06, 30-Sep-2019
1657,Revenue,CAHD,Academy Resource Base Funding,Other Public Bodies,Greenshaw Learning Trust T/A Yate Academy,1487.06, 30-Sep-2019
1658,Revenue,CAHD,Academy Resource Base Funding,Other Public Bodies,Greenshaw Learning Trust T/A Yate Academy,978.34, 30-Sep-2019
1659,Revenue,CAHD,Academy Resource Base Funding,Other Public Bodies,Greenshaw Learning Trust T/A Yate Academy,1134.86, 30-Sep-2019
1660,Revenue,CAHD,Statemented Support Academies,Other Public Bodies,Greenshaw Learning Trust T/A Yate Academy,554.13, 30-Sep-2019
1661,Revenue,CAHD,Statemented Support Academies,Other Public Bodies,Greenshaw Learning Trust T/A Yate Academy,1072.89, 30-Sep-2019
1662,Revenue,CAHD,Statemented Support Academies,Other Public Bodies,Greenshaw Learning Trust T/A Yate Academy,707.40, 30-Sep-2019
1663,Revenue,CAHD,Statemented Support Academies,Other Public Bodies,Greenshaw Learning Trust T/A Yate Academy,1320.48, 30-Sep-2019
1664,Revenue,CAHD,Statemented Support Academies,Other Public Bodies,Greenshaw Learning Trust T/A Yate Academy,1320.48, 30-Sep-2019
1665,Revenue,CAHD,Statemented Support Academies,Other Public Bodies,Greenshaw Learning Trust T/A Yate Academy,1072.89, 30-Sep-2019
1666,Revenue,CAHD,Statemented Support Academies,Other Public Bodies,Greenshaw Learning Trust T/A Yate Academy,1072.89, 30-Sep-2019
1667,Revenue,CAHD,Statemented Support Academies,Other Public Bodies,Greenshaw Learning Trust T/A Yate Academy,837.09, 30-Sep-2019
1668,Revenue,CAHD,Statemented Support Academies,Other Public Bodies,Greenshaw Learning Trust T/A Yate Academy,801.72, 30-Sep-2019
1669,Revenue,CAHD,Statemented Support Academies,Other Public Bodies,Greenshaw Learning Trust T/A Yate Academy,742.77, 30-Sep-2019
1670,Revenue,CAHD,Statemented Support Academies,Other Public Bodies,Greenshaw Learning Trust T/A Yate Academy,825.30, 30-Sep-2019
1671,Revenue,CAHD,Statemented Support Academies,Other Public Bodies,Greenshaw Learning Trust T/A Yate Academy,778.14, 30-Sep-2019
1672,Revenue,CAHD,Statemented Support Academies,Other Public Bodies,Greenshaw Learning Trust T/A Yate Academy,541.58, 30-Sep-2019
1673,Revenue,CAHD,Statemented Support Academies,Other Public Bodies,Greenshaw Learning Trust T/A Yate Academy,860.67, 30-Sep-2019
1674,Revenue,CAHD,Statemented Support Academies,Other Public Bodies,Greenshaw Learning Trust T/A Yate Academy,624.87, 30-Sep-2019
1675,Revenue,CAHD,Statemented Support Academies,Other Public Bodies,Greenshaw Learning Trust T/A Yate Academy,554.13, 30-Sep-2019
1676,Revenue,CAHD,Statemented Support Academies,Other Public Bodies,Greenshaw Learning Trust T/A Yate Academy,624.87, 30-Sep-2019
1677,Revenue,CAHD,Central - Bed Purchasing and Direct Payments,Permanent Residential,Greensleeves,2704.36, 24-Sep-2019
1678,Revenue,CAHD,North - S117,Permanent Residential,Grove View,7204.88, 24-Sep-2019
1679,Revenue,CAHD,South - Bed Purchasing and Direct payments,Permanent Residential,Gwendoline House,2600.00, 24-Sep-2019
1680,Revenue,CAHD,South - Bed Purchasing and Direct payments,Permanent Residential,Gwendoline House,2473.40, 24-Sep-2019
1681,Revenue,CAHD,South - Bed Purchasing and Direct payments,Permanent Residential,Gwendoline House,2600.00, 24-Sep-2019
1682,Revenue,CAHD,South - Bed Purchasing and Direct payments,Permanent Residential,Gwendoline House,2600.00, 24-Sep-2019
1683,Revenue,CAHD,North - Community based support,Other Small Contracts,H F T,810.24, 06-Sep-2019
1684,Revenue,CAHD,Social Lettings Agency,Fees - General,Individual,13.13, 27-Sep-2019
1685,Revenue,CAHD,Social Lettings Agency,Other Supplies & Services,Individual,577.72, 27-Sep-2019
1686,Revenue,CAHD,Care Management Team - North,Grant Income - Government Depts,Hands Free Computing Ltd,1434.00, 02-Sep-2019
1687,Revenue,CAHD,Early Years Inclusion Fund,Other Public Bodies,Hanham Toddlers Pre School,2000.00, 20-Sep-2019
1688,Revenue,CAHD,Early Years Inclusion Fund,Other Public Bodies,Hanham Toddlers Pre School,2000.00, 23-Sep-2019
1689,Revenue,CAHD,Home Care Monitoring (CM2000),Other Supplies & Services,HAS Technology Limited T/A CM2000,9965.07, 13-Sep-2019
1690,Revenue,CAHD,North - bed purchasing and direct  payments,Permanent Nursing,Hazelwood Gardens Nursing Home,2721.84, 24-Sep-2019
1691,Revenue,CAHD,North - bed purchasing and direct  payments,Permanent Nursing,Hazelwood Gardens Nursing Home,2343.48, 24-Sep-2019
1692,Revenue,CAHD,Central - Bed Purchasing and Direct Payments,Permanent Residential,Hc-One Ltd,2233.36, 24-Sep-2019
1693,Revenue,CAHD,North - bed purchasing and direct  payments,Permanent Nursing,Hc-One Ltd,2883.88, 24-Sep-2019
1694,Revenue,CAHD,Central - Bed Purchasing and Direct Payments,Permanent Residential,Hc-One Ltd,2277.92, 24-Sep-2019
1695,Revenue,CAHD,Central - Bed Purchasing and Direct Payments,Permanent Residential,Hc-One Ltd,2369.24, 24-Sep-2019
1696,Revenue,CAHD,Central - Bed Purchasing and Direct Payments,Permanent Nursing,Hc-One Ltd,2321.72, 24-Sep-2019
1697,Revenue,CAHD,North - bed purchasing and direct  payments,Respite Planned - Residential,Hc-One Ltd,1803.00, 24-Sep-2019
1698,Revenue,CAHD,North - bed purchasing and direct  payments,Permanent Nursing,Hc-One Ltd,2223.20, 24-Sep-2019
1699,Revenue,CAHD,Bed Purchasing - Southmead Hospital,Permanent Nursing,Hc-One Ltd,2737.76, 24-Sep-2019
1700,Revenue,CAHD,Bed Purchasing - Southmead Hospital,Permanent Nursing,Hc-One Ltd,2346.65, 24-Sep-2019
1701,Revenue,CAHD,North - bed purchasing and direct  payments,Permanent Residential,Hc-One Ltd,2264.52, 24-Sep-2019
1702,Revenue,CAHD,North - bed purchasing and direct  payments,Permanent Nursing,Head Office,2470.80, 24-Sep-2019
1703,Revenue,CAHD,North - bed purchasing and direct  payments,Permanent Nursing,Head Office,4554.08, 24-Sep-2019
1704,Revenue,CAHD,CSC - Residential Placements,Permanent Residential,Headway Adolescent Resources Limited,13600.00, 10-Sep-2019
1705,Revenue,CAHD,CSC - Residential Placements,Permanent Residential,Headway Adolescent Resources Limited,13600.00, 19-Sep-2019
1706,Revenue,CAHD,Central - Community based support,Day Care / Social Activities,Headway Bristol,406.08, 02-Sep-2019
1707,Revenue,CAHD,Central - Community based support,Other Small Contracts,Headway Bristol,609.12, 02-Sep-2019
1708,Revenue,CAHD,South - community based support,Day Care / Social Activities,Headway Bristol,135.36, 02-Sep-2019
1709,Revenue,CAHD,South - community based support,Other Small Contracts,Headway Bristol,203.04, 02-Sep-2019
1710,Revenue,CAHD,North - Community based support,Day Care / Social Activities,Headway Bristol,67.68, 02-Sep-2019
1711,Revenue,CAHD,North - Community based support,Other Small Contracts,Headway Bristol,90.24, 02-Sep-2019
1712,Revenue,CAHD,Younger MH non-res purchasing,Day Care / Social Activities,Headway Bristol,90.24, 02-Sep-2019
1713,Revenue,CAHD,Central - Community based support,Day Care / Social Activities,Headway Bristol,564.00, 06-Sep-2019
1714,Revenue,CAHD,Central - Community based support,Other Small Contracts,Headway Bristol,541.44, 06-Sep-2019
1715,Revenue,CAHD,South - community based support,Day Care / Social Activities,Headway Bristol,338.40, 06-Sep-2019
1716,Revenue,CAHD,South - community based support,Other Small Contracts,Headway Bristol,203.04, 06-Sep-2019
1717,Revenue,CAHD,North - Community based support,Day Care / Social Activities,Headway Bristol,67.68, 06-Sep-2019
1718,Revenue,CAHD,Younger MH non-res purchasing,Day Care / Social Activities,Headway Bristol,90.24, 06-Sep-2019
1719,Revenue,CAHD,Central - Community based support,Day Care / Social Activities,Headway Bristol,518.88, 16-Sep-2019
1720,Revenue,CAHD,Central - Community based support,Other Small Contracts,Headway Bristol,541.44, 16-Sep-2019
1721,Revenue,CAHD,South - community based support,Day Care / Social Activities,Headway Bristol,338.40, 16-Sep-2019
1722,Revenue,CAHD,South - community based support,Other Small Contracts,Headway Bristol,203.04, 16-Sep-2019
1723,Revenue,CAHD,North - Community based support,Day Care / Social Activities,Headway Bristol,67.68, 16-Sep-2019
1724,Revenue,CAHD,North - Community based support,Other Small Contracts,Headway Bristol,90.24, 16-Sep-2019
1725,Revenue,CAHD,Younger MH non-res purchasing,Day Care / Social Activities,Headway Bristol,90.24, 16-Sep-2019
1726,Revenue,CAHD,Central - Community based support,Day Care / Social Activities,Headway Bristol,564.00, 24-Sep-2019
1727,Revenue,CAHD,Central - Community based support,Other Small Contracts,Headway Bristol,541.44, 24-Sep-2019
1728,Revenue,CAHD,South - community based support,Day Care / Social Activities,Headway Bristol,338.40, 24-Sep-2019
1729,Revenue,CAHD,South - community based support,Other Small Contracts,Headway Bristol,270.72, 24-Sep-2019
1730,Revenue,CAHD,North - Community based support,Day Care / Social Activities,Headway Bristol,67.68, 24-Sep-2019
1731,Revenue,CAHD,Younger MH non-res purchasing,Day Care / Social Activities,Headway Bristol,90.24, 24-Sep-2019
1732,Revenue,CAHD,Central - Community based support,Day Care / Social Activities,Headway Bristol,112.80, 30-Sep-2019
1733,Revenue,CAHD,Central - Community based support,Other Small Contracts,Headway Bristol,609.12, 30-Sep-2019
1734,Revenue,CAHD,South - community based support,Day Care / Social Activities,Headway Bristol,338.40, 30-Sep-2019
1735,Revenue,CAHD,South - community based support,Other Small Contracts,Headway Bristol,135.36, 30-Sep-2019
1736,Revenue,CAHD,North - Community based support,Day Care / Social Activities,Headway Bristol,67.68, 30-Sep-2019
1737,Revenue,CAHD,North - Community based support,Other Small Contracts,Headway Bristol,90.24, 30-Sep-2019
1738,Revenue,CAHD,Younger MH non-res purchasing,Day Care / Social Activities,Headway Bristol,45.12, 30-Sep-2019
1739,Revenue,CAHD,Hospital Tuition,Other Private Contractors,Heath House School Priory,1662.50, 13-Sep-2019
1740,Revenue,CAHD,South - community based support,Other Small Contracts,Helping Hands Homecare,833.00, 02-Sep-2019
1741,Revenue,CAHD,Central - Community based support,Other Small Contracts,Helping Hands Homecare,1222.00, 23-Sep-2019
1742,Revenue,CAHD,South - community based support,Other Small Contracts,Helping Hands Homecare,530.12, 23-Sep-2019
1743,Revenue,CAHD,North - Community based support,Other Small Contracts,Helping Hands Homecare,1137.98, 23-Sep-2019
1744,Revenue,CAHD,Central - Community based support,Other Small Contracts,Helping Hands Homecare,1233.36, 23-Sep-2019
1745,Revenue,CAHD,South - community based support,Other Small Contracts,Helping Hands Homecare,516.41, 23-Sep-2019
1746,Revenue,CAHD,North - Community based support,Other Small Contracts,Helping Hands Homecare,1137.98, 23-Sep-2019
1747,Revenue,CAHD,Central - Community based support,Other Small Contracts,Helping Hands Homecare,1828.67, 23-Sep-2019
1748,Revenue,CAHD,South - community based support,Other Small Contracts,Helping Hands Homecare,591.25, 23-Sep-2019
1749,Revenue,CAHD,North - Community based support,Other Small Contracts,Helping Hands Homecare,1090.55, 23-Sep-2019
1750,Revenue,CAHD,Central - Community based support,Other Small Contracts,Helping Hands Homecare,1755.57, 19-Sep-2019
1751,Revenue,CAHD,South - community based support,Other Small Contracts,Helping Hands Homecare,624.36, 19-Sep-2019
1752,Revenue,CAHD,North - Community based support,Other Small Contracts,Helping Hands Homecare,2185.03, 19-Sep-2019
1753,Revenue,CAHD,Central - Community based support,Other Small Contracts,Helping Hands Homecare,1414.12, 19-Sep-2019
1754,Revenue,CAHD,South - community based support,Other Small Contracts,Helping Hands Homecare,624.36, 19-Sep-2019
1755,Revenue,CAHD,North - Community based support,Other Small Contracts,Helping Hands Homecare,2300.71, 19-Sep-2019
1756,Revenue,CAHD,Central - Community based support,Other Small Contracts,Helping Hands Homecare,571.17, 26-Sep-2019
1757,Revenue,CAHD,Central - Community based support,Other Small Contracts,Helping Hands Homecare,592.86, 24-Sep-2019
1758,Revenue,CAHD,Statemented Support Payments to OLAs,Other L.A.'s - General,Henbury School,907.83, 30-Sep-2019
1759,Revenue,CAHD,Placements OLA Special Schools and RB,Other L.A.'s - General,Henbury School,833.33, 20-Sep-2019
1760,Revenue,CAHD,S117 Placements PCT,Permanent Residential,Hesley Hall,19720.32, 24-Sep-2019
1761,Revenue,CAHD,Central - Bed Purchasing and Direct Payments,Permanent Residential,High Border Lodge,2142.20, 24-Sep-2019
1762,Revenue,CAHD,North - bed purchasing and direct  payments,Permanent Residential,High Border Lodge,2088.68, 24-Sep-2019
1763,Revenue,CAHD,18-25 Year Olds,Supported Living,Hillcairnie House,3487.72, 24-Sep-2019
1764,Revenue,CAHD,South - community based support,Supported Living,Hillcairnie House,4295.80, 24-Sep-2019
1765,Revenue,CAHD,South - community based support,Supported Living,Hillcairnie House,2517.76, 24-Sep-2019
1766,Revenue,CAHD,South - community based support,Supported Living,Hillcairnie House,2577.92, 24-Sep-2019
1767,Revenue,CAHD,North - Community based support,Supported Living,Hillcairnie House,2577.92, 24-Sep-2019
1768,Revenue,CAHD,South - community based support,Supported Living,Hillcairnie House,4295.80, 24-Sep-2019
1769,Revenue,CAHD,South - community based support,Supported Living,Hillcairnie House,2577.92, 24-Sep-2019
1770,Revenue,CAHD,CSC - Residential Placements,Permanent Residential,Hillcrest Care Services Limited,20236.80, 11-Sep-2019
1771,Revenue,CAHD,18-25 Year Olds,Permanent Residential,Hilltop Residential Home,8810.20, 24-Sep-2019
1772,Revenue,CAHD,Jointly Funded H&SC Packages,Permanent Residential,Hilltop Residential Home,5594.24, 24-Sep-2019
1773,Revenue,CAHD,North - bed purchasing and direct  payments,Permanent Residential,Holly Tree Cottage,8531.24, 24-Sep-2019
1774,Revenue,CAHD,Jointly Funded H&SC Packages,Permanent Residential,Holly Tree Cottage,2577.68, 24-Sep-2019
1775,Revenue,CAHD,Central - Bed Purchasing and Direct Payments,Permanent Nursing,Holly Villa,2153.16, 24-Sep-2019
1776,Revenue,CAHD,CSC - Residential Placements,Permanent Residential,Holmleigh Care Home Ltd,29432.14, 02-Sep-2019
1777,Revenue,CAHD,North - bed purchasing and direct  payments,Permanent Residential,Holmleigh Care Homes Ltd,4778.12, 24-Sep-2019
1778,Revenue,CAHD,Central - Bed Purchasing and Direct Payments,Permanent Residential,Holmleigh Care Homes Ltd,8903.60, 24-Sep-2019
1779,Revenue,CAHD,Jointly Funded H&SC Packages,Permanent Residential,Holmleigh Care Homes Ltd,4833.28, 24-Sep-2019
1780,Revenue,CAHD,South - Bed Purchasing and Direct payments,Permanent Residential,Holmleigh Care Homes Ltd,4564.24, 24-Sep-2019
